{"text_format":"1","workbook":"xlsx","n_sheets":11,"sheets":["Alfrimpa_Formule","Alfrimpa_VBA","brontolo","Cromagno","isy","Luca_73","Mister_x","ninai","Textomb","Zohra","Foglio3"],"not_rendered":{"charts":0,"images":8,"macros":1,"external_links":0,"defined_names":41,"comments":0,"pivot_tables":1},"unopened":[],"bounds":{"document_bytes":16777216,"sheet_cells":100000,"rows_first":2000,"rows_last":500,"rows_between":2000,"halvings":0,"cell_chars":16384,"cell_head_chars":4096},"cells_cut":0,"cells_raw":0,"read":"whole","date_system":"1900"}

{"sheet":"Alfrimpa_Formule","index":0,"n_rows":86,"n_cols":12,"rows_kept":86,"cut":false,"hidden":false,"merged":[[1,2,1,3],[1,4,1,5],[6,2,6,5],[7,10,7,11]]}
[]
[null,null,"SELEZIONA VALORI",null,"ESTRAPOLA VALORI"]
[null,null,"Città","Casa","N.Automobili Vendute","Totali VENDITE"]
[null,null,"Napoli","GOLF",{"$f":"IFERROR(VLOOKUP($C$4&$D$4,$B$9:$F$86,4,FALSE),\"\")","v":195},{"$f":"IFERROR(VLOOKUP($C$4&$D$4,$B$9:$F$86,5,FALSE),\"\")","v":5752500}]
[]
[]
[null,null,"VENDITE REGISTRATE NEL 2014 CASE AUTOMOBILISTICHE"]
[null,"colonna nascosta","Città","Casa","N.Automobili Vendute","Totali VENDITE",null,null,null,null,"Tabella collegata alla convalida dati"]
[null,{"$f":"C9&D9","v":"ArezzoNISSAN"},"Arezzo","NISSAN",165,4702500,null,null,null,null,"Arezzo","NISSAN"]
[null,{"$f":"C10&D10","v":"ArezzoBMW"},"Arezzo","BMW",162,5127300,null,null,null,null,"Bari","BMW"]
[null,"ArezzoGOLF","Arezzo","GOLF",145,4277500,null,null,null,null,"Cesena","GOLF"]
[null,"ArezzoAUDI","Arezzo","AUDI",132,4184400,null,null,null,null,"Ferrara","AUDI"]
[null,"ArezzoMERCEDES","Arezzo","MERCEDES",111,3735150,null,null,null,null,"Firenze","MERCEDES"]
[null,"ArezzoRENAULT","Arezzo","RENAULT",98,2630320,null,null,null,null,"Monza","RENAULT"]
[null,"BariMERCEDES","Bari","MERCEDES",178,5989700,null,null,null,null,"Napoli"]
[null,"BariBMW","Bari","BMW",163,5158950,null,null,null,null,"Padova"]
[null,"BariNISSAN","Bari","NISSAN",145,4132500,null,null,null,null,"Palermo"]
[null,"BariGOLF","Bari","GOLF",132,3894000,null,null,null,null,"Roma"]
[null,"BariRENAULT","Bari","RENAULT",121,3247640,null,null,null,null,"Trieste"]
[null,"BariAUDI","Bari","AUDI",108,3423600,null,null,null,null,"Udine"]
[null,"CesenaNISSAN","Cesena","NISSAN",132,3762000,null,null,null,null,"Vicenza"]
[null,"CesenaBMW","Cesena","BMW",124,3924600]
[null,"CesenaAUDI","Cesena","AUDI",108,3423600]
[null,"CesenaMERCEDES","Cesena","MERCEDES",95,3196750]
[null,"CesenaGOLF","Cesena","GOLF",84,2478000]
[null,"CesenaRENAULT","Cesena","RENAULT",72,1932480]
[null,"FerraraAUDI","Ferrara","AUDI",106,3360200]
[null,"FerraraRENAULT","Ferrara","RENAULT",98,2630320]
[null,"FerraraBMW","Ferrara","BMW",94,2975100]
[null,"FerraraNISSAN","Ferrara","NISSAN",81,2308500]
[null,"FerraraMERCEDES","Ferrara","MERCEDES",77,2591050]
[null,"FerraraGOLF","Ferrara","GOLF",75,2212500]
[null,"FirenzeGOLF","Firenze","GOLF",123,3628500]
[null,"FirenzeNISSAN","Firenze","NISSAN",114,3249000]
[null,"FirenzeBMW","Firenze","BMW",107,3386550]
[null,"FirenzeMERCEDES","Firenze","MERCEDES",102,3432300]
[null,"FirenzeAUDI","Firenze","AUDI",95,3011500]
[null,"FirenzeRENAULT","Firenze","RENAULT",94,2522960]
[null,"MonzaBMW","Monza","BMW",132,4177800]
[null,"MonzaAUDI","Monza","AUDI",121,3835700]
[null,"MonzaNISSAN","Monza","NISSAN",116,3306000]
[null,"MonzaMERCEDES","Monza","MERCEDES",114,3836100]
[null,"MonzaGOLF","Monza","GOLF",102,3009000]
[null,"MonzaRENAULT","Monza","RENAULT",97,2603480]
[null,"NapoliGOLF","Napoli","GOLF",195,5752500]
[null,"NapoliRENAULT","Napoli","RENAULT",192,5153280]
[null,"NapoliBMW","Napoli","BMW",188,5950200]
[null,"NapoliAUDI","Napoli","AUDI",162,5135400]
[null,"NapoliNISSAN","Napoli","NISSAN",145,4132500]
[null,"NapoliMERCEDES","Napoli","MERCEDES",132,4441800]
[null,"PadovaMERCEDES","Padova","MERCEDES",140,4711000]
[null,"PadovaAUDI","Padova","AUDI",132,4184400]
[null,"PadovaNISSAN","Padova","NISSAN",128,3648000]
[null,"PadovaGOLF","Padova","GOLF",122,3599000]
[null,"PadovaRENAULT","Padova","RENAULT",114,3059760]
[null,"PadovaBMW","Padova","BMW",108,3418200]
[null,"PalermoBMW","Palermo","BMW",141,4462650]
[null,"PalermoRENAULT","Palermo","RENAULT",138,3703920]
[null,"PalermoGOLF","Palermo","GOLF",125,3687500]
[null,"PalermoMERCEDES","Palermo","MERCEDES",118,3970700]
[null,"PalermoNISSAN","Palermo","NISSAN",109,3106500]
[null,"PalermoAUDI","Palermo","AUDI",97,3074900]
[null,"RomaBMW","Roma","BMW",208,6583200]
[null,"RomaMERCEDES","Roma","MERCEDES",192,6460800]
[null,"RomaNISSAN","Roma","NISSAN",184,5244000]
[null,"RomaGOLF","Roma","GOLF",167,4926500]
[null,"RomaRENAULT","Roma","RENAULT",148,3972320]
[null,"RomaAUDI","Roma","AUDI",132,4184400]
[null,"TriesteGOLF","Trieste","GOLF",109,3215500]
[null,"TriesteAUDI","Trieste","AUDI",96,3043200]
[null,"TriesteBMW","Trieste","BMW",91,2880150]
[null,"TriesteMERCEDES","Trieste","MERCEDES",84,2826600]
[null,"TriesteNISSAN","Trieste","NISSAN",81,2308500]
[null,{"$f":"C74&D74","v":"TriesteRENAULT"},"Trieste","RENAULT",74,1986160]
[null,"UdineBMW","Udine","BMW",197,6235050]
[null,"UdineGOLF","Udine","GOLF",184,5428000]
[null,"UdineNISSAN","Udine","NISSAN",164,4674000]
[null,"UdineMERCEDES","Udine","MERCEDES",154,5182100]
[null,"UdineAUDI","Udine","AUDI",152,4818400]
[null,"UdineRENAULT","Udine","RENAULT",137,3677080]
[null,"VicenzaGOLF","Vicenza","GOLF",154,4543000]
[null,"VicenzaNISSAN","Vicenza","NISSAN",141,4018500]
[null,"VicenzaBMW","Vicenza","BMW",130,4114500]
[null,"VicenzaMERCEDES","Vicenza","MERCEDES",121,4071650]
[null,"VicenzaAUDI","Vicenza","AUDI",118,3740600]
[null,"VicenzaRENAULT","Vicenza","RENAULT",108,2898720]

{"sheet":"Alfrimpa_VBA","index":1,"n_rows":86,"n_cols":12,"rows_kept":86,"cut":false,"hidden":false,"merged":[[1,2,1,3],[1,4,1,5],[6,2,6,5],[7,10,7,11]]}
[]
[null,null,"SELEZIONA VALORI",null,"ESTRAPOLA VALORI"]
[null,null,"Città","Casa","N.Automobili Vendute","Totali VENDITE"]
[null,null,"Padova","GOLF",{"$f":"IFERROR(trovaval1($C$4,$D$4),\"\")","v":122},{"$f":"IFERROR(trovaval2($C$4,$D$4),\"\")","v":3599000}]
[]
[]
[null,null,"VENDITE REGISTRATE NEL 2014 CASE AUTOMOBILISTICHE"]
[null,null,"Città","Casa","N.Automobili Vendute","Totali VENDITE",null,null,null,null,"Tabella collegata alla convalida dati"]
[null,null,"Arezzo","NISSAN",165,4702500,null,null,null,null,"Arezzo","NISSAN"]
[null,null,"Arezzo","BMW",162,5127300,null,null,null,null,"Bari","BMW"]
[null,null,"Arezzo","GOLF",145,4277500,null,null,null,null,"Cesena","GOLF"]
[null,null,"Arezzo","AUDI",132,4184400,null,null,null,null,"Ferrara","AUDI"]
[null,null,"Arezzo","MERCEDES",111,3735150,null,null,null,null,"Firenze","MERCEDES"]
[null,null,"Arezzo","RENAULT",98,2630320,null,null,null,null,"Monza","RENAULT"]
[null,null,"Bari","MERCEDES",178,5989700,null,null,null,null,"Napoli"]
[null,null,"Bari","BMW",163,5158950,null,null,null,null,"Padova"]
[null,null,"Bari","NISSAN",145,4132500,null,null,null,null,"Palermo"]
[null,null,"Bari","GOLF",132,3894000,null,null,null,null,"Roma"]
[null,null,"Bari","RENAULT",121,3247640,null,null,null,null,"Trieste"]
[null,null,"Bari","AUDI",108,3423600,null,null,null,null,"Udine"]
[null,null,"Cesena","NISSAN",132,3762000,null,null,null,null,"Vicenza"]
[null,null,"Cesena","BMW",124,3924600]
[null,null,"Cesena","AUDI",108,3423600]
[null,null,"Cesena","MERCEDES",95,3196750]
[null,null,"Cesena","GOLF",84,2478000]
[null,null,"Cesena","RENAULT",72,1932480]
[null,null,"Ferrara","AUDI",106,3360200]
[null,null,"Ferrara","RENAULT",98,2630320]
[null,null,"Ferrara","BMW",94,2975100]
[null,null,"Ferrara","NISSAN",81,2308500]
[null,null,"Ferrara","MERCEDES",77,2591050]
[null,null,"Ferrara","GOLF",75,2212500]
[null,null,"Firenze","GOLF",123,3628500]
[null,null,"Firenze","NISSAN",114,3249000]
[null,null,"Firenze","BMW",107,3386550]
[null,null,"Firenze","MERCEDES",102,3432300]
[null,null,"Firenze","AUDI",95,3011500]
[null,null,"Firenze","RENAULT",94,2522960]
[null,null,"Monza","BMW",132,4177800]
[null,null,"Monza","AUDI",121,3835700]
[null,null,"Monza","NISSAN",116,3306000]
[null,null,"Monza","MERCEDES",114,3836100]
[null,null,"Monza","GOLF",102,3009000]
[null,null,"Monza","RENAULT",97,2603480]
[null,null,"Napoli","GOLF",195,5752500]
[null,null,"Napoli","RENAULT",192,5153280]
[null,null,"Napoli","BMW",188,5950200]
[null,null,"Napoli","AUDI",162,5135400]
[null,null,"Napoli","NISSAN",145,4132500]
[null,null,"Napoli","MERCEDES",132,4441800]
[null,null,"Padova","MERCEDES",140,4711000]
[null,null,"Padova","AUDI",132,4184400]
[null,null,"Padova","NISSAN",128,3648000]
[null,null,"Padova","GOLF",122,3599000]
[null,null,"Padova","RENAULT",114,3059760]
[null,null,"Padova","BMW",108,3418200]
[null,null,"Palermo","BMW",141,4462650]
[null,null,"Palermo","RENAULT",138,3703920]
[null,null,"Palermo","GOLF",125,3687500]
[null,null,"Palermo","MERCEDES",118,3970700]
[null,null,"Palermo","NISSAN",109,3106500]
[null,null,"Palermo","AUDI",97,3074900]
[null,null,"Roma","BMW",208,6583200]
[null,null,"Roma","MERCEDES",192,6460800]
[null,null,"Roma","NISSAN",184,5244000]
[null,null,"Roma","GOLF",167,4926500]
[null,null,"Roma","RENAULT",148,3972320]
[null,null,"Roma","AUDI",132,4184400]
[null,null,"Trieste","GOLF",109,3215500]
[null,null,"Trieste","AUDI",96,3043200]
[null,null,"Trieste","BMW",91,2880150]
[null,null,"Trieste","MERCEDES",84,2826600]
[null,null,"Trieste","NISSAN",81,2308500]
[null,null,"Trieste","RENAULT",74,1986160]
[null,null,"Udine","BMW",197,6235050]
[null,null,"Udine","GOLF",184,5428000]
[null,null,"Udine","NISSAN",164,4674000]
[null,null,"Udine","MERCEDES",154,5182100]
[null,null,"Udine","AUDI",152,4818400]
[null,null,"Udine","RENAULT",137,3677080]
[null,null,"Vicenza","GOLF",154,4543000]
[null,null,"Vicenza","NISSAN",141,4018500]
[null,null,"Vicenza","BMW",130,4114500]
[null,null,"Vicenza","MERCEDES",121,4071650]
[null,null,"Vicenza","AUDI",118,3740600]
[null,null,"Vicenza","RENAULT",108,2898720]

{"sheet":"brontolo","index":2,"n_rows":87,"n_cols":24,"rows_kept":87,"cut":false,"hidden":false,"merged":[]}
[]
[null,null,"SELEZIONA VALORI",null,"ESTRAPOLA VALORI (Excel 2000)",null,"ESTRAPOLA VALORI (Excel 2010)"]
[null,null,"Città","Casa","N.Automobili Vendute","Totali VENDITE","N.Automobili Vendute","Totali VENDITE"]
[null,null,"Cesena","BMW",{"$f":"IF(ISERROR(INDEX($E$9:$E$87,SMALL(IF(($C$9:$C$87=C$4)*($D$9:$D$87=D$4),ROW($C$9:$C$87)-8),ROWS($A$4:A4)))),\"\",INDEX($E$9:$E$87,SMALL(IF(($C$9:$C$87=C$4)*($D$9:$D$87=D$4),ROW($C$9:$C$87)-8),ROWS($A$4:A4))))","v":124},{"$f":"IF(ISERROR(INDEX($F$9:$F$87,SMALL(IF(($C$9:$C$87=C$4)*($D$9:$D$87=D$4),ROW($C$9:$C$87)-8),ROWS($A$4:A4)))),\"\",INDEX($F$9:$F$87,SMALL(IF(($C$9:$C$87=C$4)*($D$9:$D$87=D$4),ROW($C$9:$C$87)-8),ROWS($A$4:A4))))","v":3924600},{"$f":"IFERROR(INDEX($E$9:$E$87,SMALL(IF(($C$9:$C$87=C$4)*($D$9:$D$87=D$4),ROW($C$9:$C$87)-8),ROWS($A$4:A4))),\"\")","v":124},{"$f":"IFERROR(INDEX($F$9:$F$87,SMALL(IF(($C$9:$C$87=C$4)*($D$9:$D$87=D$4),ROW($C$9:$C$87)-8),ROWS($A$4:A4))),\"\")","v":3924600}]
[]
[null,null,null,null,null,null,null,null,null,null,"Città","Arezzo","Bari","Cesena","Ferrara","Firenze","Monza","Napoli","Padova","Palermo","Roma","Trieste","Udine","Vicenza"]
[null,null,"VENDITE REGISTRATE NEL 2014 CASE AUTOMOBILISTICHE"]
[null,null,"Città","Casa","N.Automobili Vendute","Totali VENDITE"]
[null,null,"Arezzo","NISSAN",165,4702500]
[null,null,"Arezzo","BMW",162,5127300]
[null,null,"Arezzo","WOLKSWAGEN",145,4277500]
[null,null,"Arezzo","AUDI",132,4184400]
[null,null,"Arezzo","MERCEDES",111,3735150]
[null,null,"Arezzo","MASERATI",2,350000]
[null,null,"Arezzo","RENAULT",98,2630320]
[null,null,"Bari","MERCEDES",178,5989700]
[null,null,"Bari","BMW",163,5158950]
[null,null,"Bari","NISSAN",145,4132500]
[null,null,"Bari","ALFA ROMEO",132,3894000]
[null,null,"Bari","RENAULT",121,3247640]
[null,null,"Bari","AUDI",108,3423600]
[null,null,"Cesena","NISSAN",132,3762000]
[null,null,"Cesena","BMW",124,3924600]
[null,null,"Cesena","AUDI",108,3423600]
[null,null,"Cesena","MERCEDES",95,3196750]
[null,null,"Cesena","FIAT",84,2478000]
[null,null,"Cesena","RENAULT",72,1932480]
[null,null,"Ferrara","AUDI",106,3360200]
[null,null,"Ferrara","RENAULT",98,2630320]
[null,null,"Ferrara","BMW",94,2975100]
[null,null,"Ferrara","NISSAN",81,2308500]
[null,null,"Ferrara","MERCEDES",77,2591050]
[null,null,"Ferrara","LANCIA",75,2212500]
[null,null,"Firenze","ALFA ROMEO",123,3628500]
[null,null,"Firenze","NISSAN",114,3249000]
[null,null,"Firenze","BMW",107,3386550]
[null,null,"Firenze","MERCEDES",102,3432300]
[null,null,"Firenze","AUDI",95,3011500]
[null,null,"Firenze","RENAULT",94,2522960]
[null,null,"Monza","BMW",132,4177800]
[null,null,"Monza","AUDI",121,3835700]
[null,null,"Monza","NISSAN",116,3306000]
[null,null,"Monza","MERCEDES",114,3836100]
[null,null,"Monza","WOLKSWAGEN",102,3009000]
[null,null,"Monza","RENAULT",97,2603480]
[null,null,"Napoli","VOLVO",195,5752500]
[null,null,"Napoli","RENAULT",192,5153280]
[null,null,"Napoli","BMW",188,5950200]
[null,null,"Napoli","AUDI",162,5135400]
[null,null,"Napoli","NISSAN",145,4132500]
[null,null,"Napoli","MERCEDES",132,4441800]
[null,null,"Padova","MERCEDES",140,4711000]
[null,null,"Padova","AUDI",132,4184400]
[null,null,"Padova","NISSAN",128,3648000]
[null,null,"Padova","WOLKSWAGEN",122,3599000]
[null,null,"Padova","RENAULT",114,3059760]
[null,null,"Padova","BMW",108,3418200]
[null,null,"Palermo","BMW",141,4462650]
[null,null,"Palermo","RENAULT",138,3703920]
[null,null,"Palermo","ALFA ROMEO",125,3687500]
[null,null,"Palermo","MERCEDES",118,3970700]
[null,null,"Palermo","NISSAN",109,3106500]
[null,null,"Palermo","AUDI",97,3074900]
[null,null,"Roma","BMW",208,6583200]
[null,null,"Roma","MERCEDES",192,6460800]
[null,null,"Roma","NISSAN",184,5244000]
[null,null,"Roma","FIAT",167,4926500]
[null,null,"Roma","RENAULT",148,3972320]
[null,null,"Roma","AUDI",132,4184400]
[null,null,"Trieste","GOLF",109,3215500]
[null,null,"Trieste","AUDI",96,3043200]
[null,null,"Trieste","BMW",91,2880150]
[null,null,"Trieste","MERCEDES",84,2826600]
[null,null,"Trieste","NISSAN",81,2308500]
[null,null,"Trieste","RENAULT",74,1986160]
[null,null,"Udine","BMW",197,6235050]
[null,null,"Udine","FERRARI",1,1500000]
[null,null,"Udine","NISSAN",164,4674000]
[null,null,"Udine","MERCEDES",154,5182100]
[null,null,"Udine","AUDI",152,4818400]
[null,null,"Udine","RENAULT",137,3677080]
[null,null,"Vicenza","SAAB",154,4543000]
[null,null,"Vicenza","NISSAN",141,4018500]
[null,null,"Vicenza","BMW",130,4114500]
[null,null,"Vicenza","MERCEDES",121,4071650]
[null,null,"Vicenza","AUDI",118,3740600]
[null,null,"Vicenza","RENAULT",108,2898720]

{"sheet":"Cromagno","index":3,"n_rows":86,"n_cols":12,"rows_kept":86,"cut":false,"hidden":false,"merged":[[1,2,1,3],[1,4,1,5],[4,10,6,11],[6,2,6,5]]}
[]
[null,null,"SELEZIONA VALORI",null,"ESTRAPOLA VALORI"]
[null,null,"Città","Casa","N.Automobili Vendute","Totali VENDITE"]
[null,null,"Napoli","GOLF",{"$f":"VLOOKUP($D$4,INDIRECT(\"D\"&MATCH($C$4,$C$9:$C$86,0)+8&\":F86\"),2,FALSE)","v":195},{"$f":"VLOOKUP($D$4,INDIRECT(\"D\"&MATCH($C$4,$C$9:$C$86,0)+8&\":F86\"),3,FALSE)","v":5752500}]
[null,null,null,null,null,null,null,null,null,null,"COLONNE DI APPOGGIO DA NASCONDERE"]
[]
[null,null,"VENDITE REGISTRATE NEL 2014 CASE AUTOMOBILISTICHE"]
[null,null,"Città","Casa","N.Automobili Vendute","Totali VENDITE"]
[null,1,"Arezzo","NISSAN",165,4702500,null,null,null,null,"Città","Casa"]
[null,2,"Arezzo","BMW",162,5127300,null,null,null,null,"Arezzo","AUDI"]
[null,3,"Arezzo","GOLF",145,4277500,null,null,null,null,"Bari","BMW"]
[null,4,"Arezzo","AUDI",132,4184400,null,null,null,null,"Cesena","GOLF"]
[null,5,"Arezzo","MERCEDES",111,3735150,null,null,null,null,"Ferrara","MERCEDES"]
[null,6,"Arezzo","RENAULT",98,2630320,null,null,null,null,"Firenze","NISSAN"]
[null,7,"Bari","MERCEDES",178,5989700,null,null,null,null,"Monza","RENAULT"]
[null,8,"Bari","BMW",163,5158950,null,null,null,null,"Napoli"]
[null,9,"Bari","NISSAN",145,4132500,null,null,null,null,"Padova"]
[null,10,"Bari","GOLF",132,3894000,null,null,null,null,"Palermo"]
[null,11,"Bari","RENAULT",121,3247640,null,null,null,null,"Roma"]
[null,12,"Bari","AUDI",108,3423600,null,null,null,null,"Trieste"]
[null,13,"Cesena","NISSAN",132,3762000,null,null,null,null,"Udine"]
[null,14,"Cesena","BMW",124,3924600,null,null,null,null,"Vicenza"]
[null,15,"Cesena","AUDI",108,3423600]
[null,16,"Cesena","MERCEDES",95,3196750]
[null,17,"Cesena","GOLF",84,2478000]
[null,18,"Cesena","RENAULT",72,1932480]
[null,19,"Ferrara","AUDI",106,3360200]
[null,20,"Ferrara","RENAULT",98,2630320]
[null,21,"Ferrara","BMW",94,2975100]
[null,22,"Ferrara","NISSAN",81,2308500]
[null,23,"Ferrara","MERCEDES",77,2591050]
[null,24,"Ferrara","GOLF",75,2212500]
[null,25,"Firenze","GOLF",123,3628500]
[null,26,"Firenze","NISSAN",114,3249000]
[null,27,"Firenze","BMW",107,3386550]
[null,28,"Firenze","MERCEDES",102,3432300]
[null,29,"Firenze","AUDI",95,3011500]
[null,30,"Firenze","RENAULT",94,2522960]
[null,31,"Monza","BMW",132,4177800]
[null,32,"Monza","AUDI",121,3835700]
[null,33,"Monza","NISSAN",116,3306000]
[null,34,"Monza","MERCEDES",114,3836100]
[null,35,"Monza","GOLF",102,3009000]
[null,36,"Monza","RENAULT",97,2603480]
[null,37,"Napoli","GOLF",195,5752500]
[null,38,"Napoli","RENAULT",192,5153280]
[null,39,"Napoli","BMW",188,5950200]
[null,40,"Napoli","AUDI",162,5135400]
[null,41,"Napoli","NISSAN",145,4132500]
[null,42,"Napoli","MERCEDES",132,4441800]
[null,43,"Padova","MERCEDES",140,4711000]
[null,44,"Padova","AUDI",132,4184400]
[null,45,"Padova","NISSAN",128,3648000]
[null,46,"Padova","GOLF",122,3599000]
[null,47,"Padova","RENAULT",114,3059760]
[null,48,"Padova","BMW",108,3418200]
[null,49,"Palermo","BMW",141,4462650]
[null,50,"Palermo","RENAULT",138,3703920]
[null,51,"Palermo","GOLF",125,3687500]
[null,52,"Palermo","MERCEDES",118,3970700]
[null,53,"Palermo","NISSAN",109,3106500]
[null,54,"Palermo","AUDI",97,3074900]
[null,55,"Roma","BMW",208,6583200]
[null,56,"Roma","MERCEDES",192,6460800]
[null,57,"Roma","NISSAN",184,5244000]
[null,58,"Roma","GOLF",167,4926500]
[null,null,"Roma","RENAULT",148,3972320]
[null,null,"Roma","AUDI",132,4184400]
[null,null,"Trieste","GOLF",109,3215500]
[null,null,"Trieste","AUDI",96,3043200]
[null,null,"Trieste","BMW",91,2880150]
[null,null,"Trieste","MERCEDES",84,2826600]
[null,null,"Trieste","NISSAN",81,2308500]
[null,null,"Trieste","RENAULT",74,1986160]
[null,null,"Udine","BMW",197,6235050]
[null,null,"Udine","GOLF",184,5428000]
[null,null,"Udine","NISSAN",164,4674000]
[null,null,"Udine","MERCEDES",154,5182100]
[null,null,"Udine","AUDI",152,4818400]
[null,null,"Udine","RENAULT",137,3677080]
[null,null,"Vicenza","GOLF",154,4543000]
[null,null,"Vicenza","NISSAN",141,4018500]
[null,null,"Vicenza","BMW",130,4114500]
[null,null,"Vicenza","MERCEDES",121,4071650]
[null,null,"Vicenza","AUDI",118,3740600]
[null,null,"Vicenza","RENAULT",108,2898720]

{"sheet":"isy","index":4,"n_rows":133,"n_cols":17,"rows_kept":133,"cut":false,"hidden":false,"merged":[[2,2,2,3],[2,4,2,5],[7,2,7,5]]}
["Posizione riga immagine","Formula hyperlink alla foto",null,"Logo","Posizione Riga","Formula hyperlink"]
[{"$f":"IFERROR(VLOOKUP(Criteria2,isy!M109:N133,2,FALSE),1)","v":5},{"$f":"IFERROR(HYPERLINK(\"#\"&CELL(\"indirizzo\",INDIRECT(\"isy!P\"&A2+108,TRUE)),INDIRECT(\"isy!m\"&A2+108,TRUE)),\"\")","v":"BMW"},null,null,{"$f":"IFERROR(MATCH(1,(Città=Criteria1)*(Casa=Criteria2),0)+ROW($C$9),\"\")","v":48},{"$f":"IFERROR(HYPERLINK(\"#\"&CELL(\"indirizzo\",INDIRECT(\"C\"&E2,TRUE)),Criteria2),\"\")","v":"BMW"}]
[null,null,"SELEZIONA VALORI",null,"ESTRAPOLA VALORI"]
["Formule versione\nExcel 2013","Gli elenchi in convalida dati sono ordinati alfabeticamente","Città","Casa","N.Automobili Vendute","Totali VENDITE"]
[null,null,"Napoli","BMW",{"$f":"SUMIFS(SumRange, CriteriaRange1,Criteria1, CriteriaRange2,Criteria2)","v":188},{"$f":"SUMIFS(SumVendite, CriteriaRange1,Criteria1, CriteriaRange2,Criteria2)","v":5950200}]
[]
[]
[null,null,"VENDITE REGISTRATE NEL 2014 CASE AUTOMOBILISTICHE"]
["Unique list sorted alphabetically",null,"Città","Casa","N.Automobili Vendute","Totali VENDITE"]
[{"$f":"INDEX(Città,SMALL(IF(SMALL(IF(COUNTIF($A9:A$9,Città)+ISBLANK(Città)=0,COUNTIF(Città,\"<\"&Città)+1,\"\"),1)=IF(ISBLANK(Città),\"\",COUNTIF(Città,\"<\"&Città)+1),ROW(Città)-MIN(ROW(Città))+1),1),MATCH(MIN(IF(COUNTIF($A9:A$9,Città)+ISBLANK(Città)>0,\"\",COUNTIF(Città,\"<\"&Città)+1)),INDEX(IF(ISBLANK(Città),\"\",COUNTIF(Città,\"<\"&Città)+1),SMALL(IF(SMALL(IF(COUNTIF($A9:A$9,Città)+ISBLANK(Città)=0,COUNTIF(Città,\"<\"&Città)+1,\"\"),1)=IF(ISBLANK(Città),\"\",COUNTIF(Città,\"<\"&Città)+1),ROW(Città)-MIN(ROW(Città))+1),1),,1),0),1)","v":"Arezzo"},{"$f":"INDEX(Casa,SMALL(IF(SMALL(IF(COUNTIF($B9:B$9,Casa)+ISBLANK(Casa)=0,COUNTIF(Casa,\"<\"&Casa)+1,\"\"),1)\n=IF(ISBLANK(Casa),\"\",COUNTIF(Casa,\"<\"&Casa)+1),ROW(Casa)-MIN(ROW(Casa))+1),1),\nMATCH(MIN(IF(COUNTIF($B9:B$9,Casa)+ISBLANK(Casa)>0,\"\",\nCOUNTIF(Casa,\"<\"&Casa)+1)),INDEX(IF(ISBLANK(Casa),\"\",COUNTIF(Casa,\"<\"&Casa)+1),\nSMALL(IF(SMALL(IF(COUNTIF($B9:B$9,Casa)+ISBLANK(Casa)=0,COUNTIF(Casa,\"<\"&Casa)+1,\"\"),1)\n=IF(ISBLANK(Casa),\"\",COUNTIF(Casa,\"<\"&Casa)+1),ROW(Casa)-MIN(ROW(Casa))+1),1),,1),0),1)","v":"AUDI"},"Arezzo","NISSAN",165,4702500]
[{"$f":"INDEX(Città,SMALL(IF(SMALL(IF(COUNTIF($A$9:A10,Città)+ISBLANK(Città)=0,COUNTIF(Città,\"<\"&Città)+1,\"\"),1)=IF(ISBLANK(Città),\"\",COUNTIF(Città,\"<\"&Città)+1),ROW(Città)-MIN(ROW(Città))+1),1),MATCH(MIN(IF(COUNTIF($A$9:A10,Città)+ISBLANK(Città)>0,\"\",COUNTIF(Città,\"<\"&Città)+1)),INDEX(IF(ISBLANK(Città),\"\",COUNTIF(Città,\"<\"&Città)+1),SMALL(IF(SMALL(IF(COUNTIF($A$9:A10,Città)+ISBLANK(Città)=0,COUNTIF(Città,\"<\"&Città)+1,\"\"),1)=IF(ISBLANK(Città),\"\",COUNTIF(Città,\"<\"&Città)+1),ROW(Città)-MIN(ROW(Città))+1),1),,1),0),1)","v":"Bari"},{"$f":"INDEX(Casa,SMALL(IF(SMALL(IF(COUNTIF($B$9:B10,Casa)+ISBLANK(Casa)=0,COUNTIF(Casa,\"<\"&Casa)+1,\"\"),1)=IF(ISBLANK(Casa),\"\",COUNTIF(Casa,\"<\"&Casa)+1),ROW(Casa)-MIN(ROW(Casa))+1),1),MATCH(MIN(IF(COUNTIF($B$9:B10,Casa)+ISBLANK(Casa)>0,\"\",COUNTIF(Casa,\"<\"&Casa)+1)),INDEX(IF(ISBLANK(Casa),\"\",COUNTIF(Casa,\"<\"&Casa)+1),SMALL(IF(SMALL(IF(COUNTIF($B$9:B10,Casa)+ISBLANK(Casa)=0,COUNTIF(Casa,\"<\"&Casa)+1,\"\"),1)=IF(ISBLANK(Casa),\"\",COUNTIF(Casa,\"<\"&Casa)+1),ROW(Casa)-MIN(ROW(Casa))+1),1),,1),0),1)","v":"BMW"},"Arezzo","BMW",162,5127300]
[{"$f":"INDEX(Città,SMALL(IF(SMALL(IF(COUNTIF($A$9:A11,Città)+ISBLANK(Città)=0,COUNTIF(Città,\"<\"&Città)+1,\"\"),1)=IF(ISBLANK(Città),\"\",COUNTIF(Città,\"<\"&Città)+1),ROW(Città)-MIN(ROW(Città))+1),1),MATCH(MIN(IF(COUNTIF($A$9:A11,Città)+ISBLANK(Città)>0,\"\",COUNTIF(Città,\"<\"&Città)+1)),INDEX(IF(ISBLANK(Città),\"\",COUNTIF(Città,\"<\"&Città)+1),SMALL(IF(SMALL(IF(COUNTIF($A$9:A11,Città)+ISBLANK(Città)=0,COUNTIF(Città,\"<\"&Città)+1,\"\"),1)=IF(ISBLANK(Città),\"\",COUNTIF(Città,\"<\"&Città)+1),ROW(Città)-MIN(ROW(Città))+1),1),,1),0),1)","v":"Cesena"},{"$f":"INDEX(Casa,SMALL(IF(SMALL(IF(COUNTIF($B$9:B11,Casa)+ISBLANK(Casa)=0,COUNTIF(Casa,\"<\"&Casa)+1,\"\"),1)=IF(ISBLANK(Casa),\"\",COUNTIF(Casa,\"<\"&Casa)+1),ROW(Casa)-MIN(ROW(Casa))+1),1),MATCH(MIN(IF(COUNTIF($B$9:B11,Casa)+ISBLANK(Casa)>0,\"\",COUNTIF(Casa,\"<\"&Casa)+1)),INDEX(IF(ISBLANK(Casa),\"\",COUNTIF(Casa,\"<\"&Casa)+1),SMALL(IF(SMALL(IF(COUNTIF($B$9:B11,Casa)+ISBLANK(Casa)=0,COUNTIF(Casa,\"<\"&Casa)+1,\"\"),1)=IF(ISBLANK(Casa),\"\",COUNTIF(Casa,\"<\"&Casa)+1),ROW(Casa)-MIN(ROW(Casa))+1),1),,1),0),1)","v":"GOLF"},"Arezzo","GOLF",145,4277500]
[{"$f":"INDEX(Città,SMALL(IF(SMALL(IF(COUNTIF($A$9:A12,Città)+ISBLANK(Città)=0,COUNTIF(Città,\"<\"&Città)+1,\"\"),1)=IF(ISBLANK(Città),\"\",COUNTIF(Città,\"<\"&Città)+1),ROW(Città)-MIN(ROW(Città))+1),1),MATCH(MIN(IF(COUNTIF($A$9:A12,Città)+ISBLANK(Città)>0,\"\",COUNTIF(Città,\"<\"&Città)+1)),INDEX(IF(ISBLANK(Città),\"\",COUNTIF(Città,\"<\"&Città)+1),SMALL(IF(SMALL(IF(COUNTIF($A$9:A12,Città)+ISBLANK(Città)=0,COUNTIF(Città,\"<\"&Città)+1,\"\"),1)=IF(ISBLANK(Città),\"\",COUNTIF(Città,\"<\"&Città)+1),ROW(Città)-MIN(ROW(Città))+1),1),,1),0),1)","v":"Ferrara"},{"$f":"INDEX(Casa,SMALL(IF(SMALL(IF(COUNTIF($B$9:B12,Casa)+ISBLANK(Casa)=0,COUNTIF(Casa,\"<\"&Casa)+1,\"\"),1)=IF(ISBLANK(Casa),\"\",COUNTIF(Casa,\"<\"&Casa)+1),ROW(Casa)-MIN(ROW(Casa))+1),1),MATCH(MIN(IF(COUNTIF($B$9:B12,Casa)+ISBLANK(Casa)>0,\"\",COUNTIF(Casa,\"<\"&Casa)+1)),INDEX(IF(ISBLANK(Casa),\"\",COUNTIF(Casa,\"<\"&Casa)+1),SMALL(IF(SMALL(IF(COUNTIF($B$9:B12,Casa)+ISBLANK(Casa)=0,COUNTIF(Casa,\"<\"&Casa)+1,\"\"),1)=IF(ISBLANK(Casa),\"\",COUNTIF(Casa,\"<\"&Casa)+1),ROW(Casa)-MIN(ROW(Casa))+1),1),,1),0),1)","v":"MERCEDES"},"Arezzo","AUDI",132,4184400]
[{"$f":"INDEX(Città,SMALL(IF(SMALL(IF(COUNTIF($A$9:A13,Città)+ISBLANK(Città)=0,COUNTIF(Città,\"<\"&Città)+1,\"\"),1)=IF(ISBLANK(Città),\"\",COUNTIF(Città,\"<\"&Città)+1),ROW(Città)-MIN(ROW(Città))+1),1),MATCH(MIN(IF(COUNTIF($A$9:A13,Città)+ISBLANK(Città)>0,\"\",COUNTIF(Città,\"<\"&Città)+1)),INDEX(IF(ISBLANK(Città),\"\",COUNTIF(Città,\"<\"&Città)+1),SMALL(IF(SMALL(IF(COUNTIF($A$9:A13,Città)+ISBLANK(Città)=0,COUNTIF(Città,\"<\"&Città)+1,\"\"),1)=IF(ISBLANK(Città),\"\",COUNTIF(Città,\"<\"&Città)+1),ROW(Città)-MIN(ROW(Città))+1),1),,1),0),1)","v":"Firenze"},{"$f":"INDEX(Casa,SMALL(IF(SMALL(IF(COUNTIF($B$9:B13,Casa)+ISBLANK(Casa)=0,COUNTIF(Casa,\"<\"&Casa)+1,\"\"),1)=IF(ISBLANK(Casa),\"\",COUNTIF(Casa,\"<\"&Casa)+1),ROW(Casa)-MIN(ROW(Casa))+1),1),MATCH(MIN(IF(COUNTIF($B$9:B13,Casa)+ISBLANK(Casa)>0,\"\",COUNTIF(Casa,\"<\"&Casa)+1)),INDEX(IF(ISBLANK(Casa),\"\",COUNTIF(Casa,\"<\"&Casa)+1),SMALL(IF(SMALL(IF(COUNTIF($B$9:B13,Casa)+ISBLANK(Casa)=0,COUNTIF(Casa,\"<\"&Casa)+1,\"\"),1)=IF(ISBLANK(Casa),\"\",COUNTIF(Casa,\"<\"&Casa)+1),ROW(Casa)-MIN(ROW(Casa))+1),1),,1),0),1)","v":"NISSAN"},"Arezzo","MERCEDES",111,3735150]
[{"$f":"INDEX(Città,SMALL(IF(SMALL(IF(COUNTIF($A$9:A14,Città)+ISBLANK(Città)=0,COUNTIF(Città,\"<\"&Città)+1,\"\"),1)=IF(ISBLANK(Città),\"\",COUNTIF(Città,\"<\"&Città)+1),ROW(Città)-MIN(ROW(Città))+1),1),MATCH(MIN(IF(COUNTIF($A$9:A14,Città)+ISBLANK(Città)>0,\"\",COUNTIF(Città,\"<\"&Città)+1)),INDEX(IF(ISBLANK(Città),\"\",COUNTIF(Città,\"<\"&Città)+1),SMALL(IF(SMALL(IF(COUNTIF($A$9:A14,Città)+ISBLANK(Città)=0,COUNTIF(Città,\"<\"&Città)+1,\"\"),1)=IF(ISBLANK(Città),\"\",COUNTIF(Città,\"<\"&Città)+1),ROW(Città)-MIN(ROW(Città))+1),1),,1),0),1)","v":"Monza"},{"$f":"INDEX(Casa,SMALL(IF(SMALL(IF(COUNTIF($B$9:B14,Casa)+ISBLANK(Casa)=0,COUNTIF(Casa,\"<\"&Casa)+1,\"\"),1)=IF(ISBLANK(Casa),\"\",COUNTIF(Casa,\"<\"&Casa)+1),ROW(Casa)-MIN(ROW(Casa))+1),1),MATCH(MIN(IF(COUNTIF($B$9:B14,Casa)+ISBLANK(Casa)>0,\"\",COUNTIF(Casa,\"<\"&Casa)+1)),INDEX(IF(ISBLANK(Casa),\"\",COUNTIF(Casa,\"<\"&Casa)+1),SMALL(IF(SMALL(IF(COUNTIF($B$9:B14,Casa)+ISBLANK(Casa)=0,COUNTIF(Casa,\"<\"&Casa)+1,\"\"),1)=IF(ISBLANK(Casa),\"\",COUNTIF(Casa,\"<\"&Casa)+1),ROW(Casa)-MIN(ROW(Casa))+1),1),,1),0),1)","v":"RENAULT"},"Arezzo","RENAULT",98,2630320]
[{"$f":"INDEX(Città,SMALL(IF(SMALL(IF(COUNTIF($A$9:A15,Città)+ISBLANK(Città)=0,COUNTIF(Città,\"<\"&Città)+1,\"\"),1)=IF(ISBLANK(Città),\"\",COUNTIF(Città,\"<\"&Città)+1),ROW(Città)-MIN(ROW(Città))+1),1),MATCH(MIN(IF(COUNTIF($A$9:A15,Città)+ISBLANK(Città)>0,\"\",COUNTIF(Città,\"<\"&Città)+1)),INDEX(IF(ISBLANK(Città),\"\",COUNTIF(Città,\"<\"&Città)+1),SMALL(IF(SMALL(IF(COUNTIF($A$9:A15,Città)+ISBLANK(Città)=0,COUNTIF(Città,\"<\"&Città)+1,\"\"),1)=IF(ISBLANK(Città),\"\",COUNTIF(Città,\"<\"&Città)+1),ROW(Città)-MIN(ROW(Città))+1),1),,1),0),1)","v":"Napoli"},{"$f":"INDEX(Casa,SMALL(IF(SMALL(IF(COUNTIF($B$9:B15,Casa)+ISBLANK(Casa)=0,COUNTIF(Casa,\"<\"&Casa)+1,\"\"),1)=IF(ISBLANK(Casa),\"\",COUNTIF(Casa,\"<\"&Casa)+1),ROW(Casa)-MIN(ROW(Casa))+1),1),MATCH(MIN(IF(COUNTIF($B$9:B15,Casa)+ISBLANK(Casa)>0,\"\",COUNTIF(Casa,\"<\"&Casa)+1)),INDEX(IF(ISBLANK(Casa),\"\",COUNTIF(Casa,\"<\"&Casa)+1),SMALL(IF(SMALL(IF(COUNTIF($B$9:B15,Casa)+ISBLANK(Casa)=0,COUNTIF(Casa,\"<\"&Casa)+1,\"\"),1)=IF(ISBLANK(Casa),\"\",COUNTIF(Casa,\"<\"&Casa)+1),ROW(Casa)-MIN(ROW(Casa))+1),1),,1),0),1)","v":{"$error":"#NUM!"}},"Bari","MERCEDES",178,5989700]
[{"$f":"INDEX(Città,SMALL(IF(SMALL(IF(COUNTIF($A$9:A16,Città)+ISBLANK(Città)=0,COUNTIF(Città,\"<\"&Città)+1,\"\"),1)=IF(ISBLANK(Città),\"\",COUNTIF(Città,\"<\"&Città)+1),ROW(Città)-MIN(ROW(Città))+1),1),MATCH(MIN(IF(COUNTIF($A$9:A16,Città)+ISBLANK(Città)>0,\"\",COUNTIF(Città,\"<\"&Città)+1)),INDEX(IF(ISBLANK(Città),\"\",COUNTIF(Città,\"<\"&Città)+1),SMALL(IF(SMALL(IF(COUNTIF($A$9:A16,Città)+ISBLANK(Città)=0,COUNTIF(Città,\"<\"&Città)+1,\"\"),1)=IF(ISBLANK(Città),\"\",COUNTIF(Città,\"<\"&Città)+1),ROW(Città)-MIN(ROW(Città))+1),1),,1),0),1)","v":"Padova"},{"$f":"INDEX(Casa,SMALL(IF(SMALL(IF(COUNTIF($B$9:B16,Casa)+ISBLANK(Casa)=0,COUNTIF(Casa,\"<\"&Casa)+1,\"\"),1)=IF(ISBLANK(Casa),\"\",COUNTIF(Casa,\"<\"&Casa)+1),ROW(Casa)-MIN(ROW(Casa))+1),1),MATCH(MIN(IF(COUNTIF($B$9:B16,Casa)+ISBLANK(Casa)>0,\"\",COUNTIF(Casa,\"<\"&Casa)+1)),INDEX(IF(ISBLANK(Casa),\"\",COUNTIF(Casa,\"<\"&Casa)+1),SMALL(IF(SMALL(IF(COUNTIF($B$9:B16,Casa)+ISBLANK(Casa)=0,COUNTIF(Casa,\"<\"&Casa)+1,\"\"),1)=IF(ISBLANK(Casa),\"\",COUNTIF(Casa,\"<\"&Casa)+1),ROW(Casa)-MIN(ROW(Casa))+1),1),,1),0),1)","v":{"$error":"#NUM!"}},"Bari","BMW",163,5158950]
[{"$f":"INDEX(Città,SMALL(IF(SMALL(IF(COUNTIF($A$9:A17,Città)+ISBLANK(Città)=0,COUNTIF(Città,\"<\"&Città)+1,\"\"),1)=IF(ISBLANK(Città),\"\",COUNTIF(Città,\"<\"&Città)+1),ROW(Città)-MIN(ROW(Città))+1),1),MATCH(MIN(IF(COUNTIF($A$9:A17,Città)+ISBLANK(Città)>0,\"\",COUNTIF(Città,\"<\"&Città)+1)),INDEX(IF(ISBLANK(Città),\"\",COUNTIF(Città,\"<\"&Città)+1),SMALL(IF(SMALL(IF(COUNTIF($A$9:A17,Città)+ISBLANK(Città)=0,COUNTIF(Città,\"<\"&Città)+1,\"\"),1)=IF(ISBLANK(Città),\"\",COUNTIF(Città,\"<\"&Città)+1),ROW(Città)-MIN(ROW(Città))+1),1),,1),0),1)","v":"Palermo"},{"$f":"INDEX(Casa,SMALL(IF(SMALL(IF(COUNTIF($B$9:B17,Casa)+ISBLANK(Casa)=0,COUNTIF(Casa,\"<\"&Casa)+1,\"\"),1)=IF(ISBLANK(Casa),\"\",COUNTIF(Casa,\"<\"&Casa)+1),ROW(Casa)-MIN(ROW(Casa))+1),1),MATCH(MIN(IF(COUNTIF($B$9:B17,Casa)+ISBLANK(Casa)>0,\"\",COUNTIF(Casa,\"<\"&Casa)+1)),INDEX(IF(ISBLANK(Casa),\"\",COUNTIF(Casa,\"<\"&Casa)+1),SMALL(IF(SMALL(IF(COUNTIF($B$9:B17,Casa)+ISBLANK(Casa)=0,COUNTIF(Casa,\"<\"&Casa)+1,\"\"),1)=IF(ISBLANK(Casa),\"\",COUNTIF(Casa,\"<\"&Casa)+1),ROW(Casa)-MIN(ROW(Casa))+1),1),,1),0),1)","v":{"$error":"#NUM!"}},"Bari","NISSAN",145,4132500]
[{"$f":"INDEX(Città,SMALL(IF(SMALL(IF(COUNTIF($A$9:A18,Città)+ISBLANK(Città)=0,COUNTIF(Città,\"<\"&Città)+1,\"\"),1)=IF(ISBLANK(Città),\"\",COUNTIF(Città,\"<\"&Città)+1),ROW(Città)-MIN(ROW(Città))+1),1),MATCH(MIN(IF(COUNTIF($A$9:A18,Città)+ISBLANK(Città)>0,\"\",COUNTIF(Città,\"<\"&Città)+1)),INDEX(IF(ISBLANK(Città),\"\",COUNTIF(Città,\"<\"&Città)+1),SMALL(IF(SMALL(IF(COUNTIF($A$9:A18,Città)+ISBLANK(Città)=0,COUNTIF(Città,\"<\"&Città)+1,\"\"),1)=IF(ISBLANK(Città),\"\",COUNTIF(Città,\"<\"&Città)+1),ROW(Città)-MIN(ROW(Città))+1),1),,1),0),1)","v":"Roma"},{"$f":"INDEX(Casa,SMALL(IF(SMALL(IF(COUNTIF($B$9:B18,Casa)+ISBLANK(Casa)=0,COUNTIF(Casa,\"<\"&Casa)+1,\"\"),1)=IF(ISBLANK(Casa),\"\",COUNTIF(Casa,\"<\"&Casa)+1),ROW(Casa)-MIN(ROW(Casa))+1),1),MATCH(MIN(IF(COUNTIF($B$9:B18,Casa)+ISBLANK(Casa)>0,\"\",COUNTIF(Casa,\"<\"&Casa)+1)),INDEX(IF(ISBLANK(Casa),\"\",COUNTIF(Casa,\"<\"&Casa)+1),SMALL(IF(SMALL(IF(COUNTIF($B$9:B18,Casa)+ISBLANK(Casa)=0,COUNTIF(Casa,\"<\"&Casa)+1,\"\"),1)=IF(ISBLANK(Casa),\"\",COUNTIF(Casa,\"<\"&Casa)+1),ROW(Casa)-MIN(ROW(Casa))+1),1),,1),0),1)","v":{"$error":"#NUM!"}},"Bari","GOLF",132,3894000]
[{"$f":"INDEX(Città,SMALL(IF(SMALL(IF(COUNTIF($A$9:A19,Città)+ISBLANK(Città)=0,COUNTIF(Città,\"<\"&Città)+1,\"\"),1)=IF(ISBLANK(Città),\"\",COUNTIF(Città,\"<\"&Città)+1),ROW(Città)-MIN(ROW(Città))+1),1),MATCH(MIN(IF(COUNTIF($A$9:A19,Città)+ISBLANK(Città)>0,\"\",COUNTIF(Città,\"<\"&Città)+1)),INDEX(IF(ISBLANK(Città),\"\",COUNTIF(Città,\"<\"&Città)+1),SMALL(IF(SMALL(IF(COUNTIF($A$9:A19,Città)+ISBLANK(Città)=0,COUNTIF(Città,\"<\"&Città)+1,\"\"),1)=IF(ISBLANK(Città),\"\",COUNTIF(Città,\"<\"&Città)+1),ROW(Città)-MIN(ROW(Città))+1),1),,1),0),1)","v":"Trieste"},{"$f":"INDEX(Casa,SMALL(IF(SMALL(IF(COUNTIF($B$9:B19,Casa)+ISBLANK(Casa)=0,COUNTIF(Casa,\"<\"&Casa)+1,\"\"),1)=IF(ISBLANK(Casa),\"\",COUNTIF(Casa,\"<\"&Casa)+1),ROW(Casa)-MIN(ROW(Casa))+1),1),MATCH(MIN(IF(COUNTIF($B$9:B19,Casa)+ISBLANK(Casa)>0,\"\",COUNTIF(Casa,\"<\"&Casa)+1)),INDEX(IF(ISBLANK(Casa),\"\",COUNTIF(Casa,\"<\"&Casa)+1),SMALL(IF(SMALL(IF(COUNTIF($B$9:B19,Casa)+ISBLANK(Casa)=0,COUNTIF(Casa,\"<\"&Casa)+1,\"\"),1)=IF(ISBLANK(Casa),\"\",COUNTIF(Casa,\"<\"&Casa)+1),ROW(Casa)-MIN(ROW(Casa))+1),1),,1),0),1)","v":{"$error":"#NUM!"}},"Bari","RENAULT",121,3247640]
[{"$f":"INDEX(Città,SMALL(IF(SMALL(IF(COUNTIF($A$9:A20,Città)+ISBLANK(Città)=0,COUNTIF(Città,\"<\"&Città)+1,\"\"),1)=IF(ISBLANK(Città),\"\",COUNTIF(Città,\"<\"&Città)+1),ROW(Città)-MIN(ROW(Città))+1),1),MATCH(MIN(IF(COUNTIF($A$9:A20,Città)+ISBLANK(Città)>0,\"\",COUNTIF(Città,\"<\"&Città)+1)),INDEX(IF(ISBLANK(Città),\"\",COUNTIF(Città,\"<\"&Città)+1),SMALL(IF(SMALL(IF(COUNTIF($A$9:A20,Città)+ISBLANK(Città)=0,COUNTIF(Città,\"<\"&Città)+1,\"\"),1)=IF(ISBLANK(Città),\"\",COUNTIF(Città,\"<\"&Città)+1),ROW(Città)-MIN(ROW(Città))+1),1),,1),0),1)","v":"Udine"},{"$f":"INDEX(Casa,SMALL(IF(SMALL(IF(COUNTIF($B$9:B20,Casa)+ISBLANK(Casa)=0,COUNTIF(Casa,\"<\"&Casa)+1,\"\"),1)=IF(ISBLANK(Casa),\"\",COUNTIF(Casa,\"<\"&Casa)+1),ROW(Casa)-MIN(ROW(Casa))+1),1),MATCH(MIN(IF(COUNTIF($B$9:B20,Casa)+ISBLANK(Casa)>0,\"\",COUNTIF(Casa,\"<\"&Casa)+1)),INDEX(IF(ISBLANK(Casa),\"\",COUNTIF(Casa,\"<\"&Casa)+1),SMALL(IF(SMALL(IF(COUNTIF($B$9:B20,Casa)+ISBLANK(Casa)=0,COUNTIF(Casa,\"<\"&Casa)+1,\"\"),1)=IF(ISBLANK(Casa),\"\",COUNTIF(Casa,\"<\"&Casa)+1),ROW(Casa)-MIN(ROW(Casa))+1),1),,1),0),1)","v":{"$error":"#NUM!"}},"Bari","AUDI",108,3423600]
[{"$f":"INDEX(Città,SMALL(IF(SMALL(IF(COUNTIF($A$9:A21,Città)+ISBLANK(Città)=0,COUNTIF(Città,\"<\"&Città)+1,\"\"),1)=IF(ISBLANK(Città),\"\",COUNTIF(Città,\"<\"&Città)+1),ROW(Città)-MIN(ROW(Città))+1),1),MATCH(MIN(IF(COUNTIF($A$9:A21,Città)+ISBLANK(Città)>0,\"\",COUNTIF(Città,\"<\"&Città)+1)),INDEX(IF(ISBLANK(Città),\"\",COUNTIF(Città,\"<\"&Città)+1),SMALL(IF(SMALL(IF(COUNTIF($A$9:A21,Città)+ISBLANK(Città)=0,COUNTIF(Città,\"<\"&Città)+1,\"\"),1)=IF(ISBLANK(Città),\"\",COUNTIF(Città,\"<\"&Città)+1),ROW(Città)-MIN(ROW(Città))+1),1),,1),0),1)","v":"Vicenza"},{"$f":"INDEX(Casa,SMALL(IF(SMALL(IF(COUNTIF($B$9:B21,Casa)+ISBLANK(Casa)=0,COUNTIF(Casa,\"<\"&Casa)+1,\"\"),1)=IF(ISBLANK(Casa),\"\",COUNTIF(Casa,\"<\"&Casa)+1),ROW(Casa)-MIN(ROW(Casa))+1),1),MATCH(MIN(IF(COUNTIF($B$9:B21,Casa)+ISBLANK(Casa)>0,\"\",COUNTIF(Casa,\"<\"&Casa)+1)),INDEX(IF(ISBLANK(Casa),\"\",COUNTIF(Casa,\"<\"&Casa)+1),SMALL(IF(SMALL(IF(COUNTIF($B$9:B21,Casa)+ISBLANK(Casa)=0,COUNTIF(Casa,\"<\"&Casa)+1,\"\"),1)=IF(ISBLANK(Casa),\"\",COUNTIF(Casa,\"<\"&Casa)+1),ROW(Casa)-MIN(ROW(Casa))+1),1),,1),0),1)","v":{"$error":"#NUM!"}},"Cesena","NISSAN",132,3762000]
[{"$f":"INDEX(Città,SMALL(IF(SMALL(IF(COUNTIF($A$9:A22,Città)+ISBLANK(Città)=0,COUNTIF(Città,\"<\"&Città)+1,\"\"),1)=IF(ISBLANK(Città),\"\",COUNTIF(Città,\"<\"&Città)+1),ROW(Città)-MIN(ROW(Città))+1),1),MATCH(MIN(IF(COUNTIF($A$9:A22,Città)+ISBLANK(Città)>0,\"\",COUNTIF(Città,\"<\"&Città)+1)),INDEX(IF(ISBLANK(Città),\"\",COUNTIF(Città,\"<\"&Città)+1),SMALL(IF(SMALL(IF(COUNTIF($A$9:A22,Città)+ISBLANK(Città)=0,COUNTIF(Città,\"<\"&Città)+1,\"\"),1)=IF(ISBLANK(Città),\"\",COUNTIF(Città,\"<\"&Città)+1),ROW(Città)-MIN(ROW(Città))+1),1),,1),0),1)","v":{"$error":"#NUM!"}},{"$f":"INDEX(Casa,SMALL(IF(SMALL(IF(COUNTIF($B$9:B22,Casa)+ISBLANK(Casa)=0,COUNTIF(Casa,\"<\"&Casa)+1,\"\"),1)=IF(ISBLANK(Casa),\"\",COUNTIF(Casa,\"<\"&Casa)+1),ROW(Casa)-MIN(ROW(Casa))+1),1),MATCH(MIN(IF(COUNTIF($B$9:B22,Casa)+ISBLANK(Casa)>0,\"\",COUNTIF(Casa,\"<\"&Casa)+1)),INDEX(IF(ISBLANK(Casa),\"\",COUNTIF(Casa,\"<\"&Casa)+1),SMALL(IF(SMALL(IF(COUNTIF($B$9:B22,Casa)+ISBLANK(Casa)=0,COUNTIF(Casa,\"<\"&Casa)+1,\"\"),1)=IF(ISBLANK(Casa),\"\",COUNTIF(Casa,\"<\"&Casa)+1),ROW(Casa)-MIN(ROW(Casa))+1),1),,1),0),1)","v":{"$error":"#NUM!"}},"Cesena","BMW",124,3924600]
[{"$f":"INDEX(Città,SMALL(IF(SMALL(IF(COUNTIF($A$9:A23,Città)+ISBLANK(Città)=0,COUNTIF(Città,\"<\"&Città)+1,\"\"),1)=IF(ISBLANK(Città),\"\",COUNTIF(Città,\"<\"&Città)+1),ROW(Città)-MIN(ROW(Città))+1),1),MATCH(MIN(IF(COUNTIF($A$9:A23,Città)+ISBLANK(Città)>0,\"\",COUNTIF(Città,\"<\"&Città)+1)),INDEX(IF(ISBLANK(Città),\"\",COUNTIF(Città,\"<\"&Città)+1),SMALL(IF(SMALL(IF(COUNTIF($A$9:A23,Città)+ISBLANK(Città)=0,COUNTIF(Città,\"<\"&Città)+1,\"\"),1)=IF(ISBLANK(Città),\"\",COUNTIF(Città,\"<\"&Città)+1),ROW(Città)-MIN(ROW(Città))+1),1),,1),0),1)","v":{"$error":"#NUM!"}},{"$f":"INDEX(Casa,SMALL(IF(SMALL(IF(COUNTIF($B$9:B23,Casa)+ISBLANK(Casa)=0,COUNTIF(Casa,\"<\"&Casa)+1,\"\"),1)=IF(ISBLANK(Casa),\"\",COUNTIF(Casa,\"<\"&Casa)+1),ROW(Casa)-MIN(ROW(Casa))+1),1),MATCH(MIN(IF(COUNTIF($B$9:B23,Casa)+ISBLANK(Casa)>0,\"\",COUNTIF(Casa,\"<\"&Casa)+1)),INDEX(IF(ISBLANK(Casa),\"\",COUNTIF(Casa,\"<\"&Casa)+1),SMALL(IF(SMALL(IF(COUNTIF($B$9:B23,Casa)+ISBLANK(Casa)=0,COUNTIF(Casa,\"<\"&Casa)+1,\"\"),1)=IF(ISBLANK(Casa),\"\",COUNTIF(Casa,\"<\"&Casa)+1),ROW(Casa)-MIN(ROW(Casa))+1),1),,1),0),1)","v":{"$error":"#NUM!"}},"Cesena","AUDI",108,3423600]
[{"$f":"INDEX(Città,SMALL(IF(SMALL(IF(COUNTIF($A$9:A24,Città)+ISBLANK(Città)=0,COUNTIF(Città,\"<\"&Città)+1,\"\"),1)=IF(ISBLANK(Città),\"\",COUNTIF(Città,\"<\"&Città)+1),ROW(Città)-MIN(ROW(Città))+1),1),MATCH(MIN(IF(COUNTIF($A$9:A24,Città)+ISBLANK(Città)>0,\"\",COUNTIF(Città,\"<\"&Città)+1)),INDEX(IF(ISBLANK(Città),\"\",COUNTIF(Città,\"<\"&Città)+1),SMALL(IF(SMALL(IF(COUNTIF($A$9:A24,Città)+ISBLANK(Città)=0,COUNTIF(Città,\"<\"&Città)+1,\"\"),1)=IF(ISBLANK(Città),\"\",COUNTIF(Città,\"<\"&Città)+1),ROW(Città)-MIN(ROW(Città))+1),1),,1),0),1)","v":{"$error":"#NUM!"}},{"$f":"INDEX(Casa,SMALL(IF(SMALL(IF(COUNTIF($B$9:B24,Casa)+ISBLANK(Casa)=0,COUNTIF(Casa,\"<\"&Casa)+1,\"\"),1)=IF(ISBLANK(Casa),\"\",COUNTIF(Casa,\"<\"&Casa)+1),ROW(Casa)-MIN(ROW(Casa))+1),1),MATCH(MIN(IF(COUNTIF($B$9:B24,Casa)+ISBLANK(Casa)>0,\"\",COUNTIF(Casa,\"<\"&Casa)+1)),INDEX(IF(ISBLANK(Casa),\"\",COUNTIF(Casa,\"<\"&Casa)+1),SMALL(IF(SMALL(IF(COUNTIF($B$9:B24,Casa)+ISBLANK(Casa)=0,COUNTIF(Casa,\"<\"&Casa)+1,\"\"),1)=IF(ISBLANK(Casa),\"\",COUNTIF(Casa,\"<\"&Casa)+1),ROW(Casa)-MIN(ROW(Casa))+1),1),,1),0),1)","v":{"$error":"#NUM!"}},"Cesena","MERCEDES",95,3196750]
[{"$f":"INDEX(Città,SMALL(IF(SMALL(IF(COUNTIF($A$9:A25,Città)+ISBLANK(Città)=0,COUNTIF(Città,\"<\"&Città)+1,\"\"),1)=IF(ISBLANK(Città),\"\",COUNTIF(Città,\"<\"&Città)+1),ROW(Città)-MIN(ROW(Città))+1),1),MATCH(MIN(IF(COUNTIF($A$9:A25,Città)+ISBLANK(Città)>0,\"\",COUNTIF(Città,\"<\"&Città)+1)),INDEX(IF(ISBLANK(Città),\"\",COUNTIF(Città,\"<\"&Città)+1),SMALL(IF(SMALL(IF(COUNTIF($A$9:A25,Città)+ISBLANK(Città)=0,COUNTIF(Città,\"<\"&Città)+1,\"\"),1)=IF(ISBLANK(Città),\"\",COUNTIF(Città,\"<\"&Città)+1),ROW(Città)-MIN(ROW(Città))+1),1),,1),0),1)","v":{"$error":"#NUM!"}},{"$f":"INDEX(Casa,SMALL(IF(SMALL(IF(COUNTIF($B$9:B25,Casa)+ISBLANK(Casa)=0,COUNTIF(Casa,\"<\"&Casa)+1,\"\"),1)=IF(ISBLANK(Casa),\"\",COUNTIF(Casa,\"<\"&Casa)+1),ROW(Casa)-MIN(ROW(Casa))+1),1),MATCH(MIN(IF(COUNTIF($B$9:B25,Casa)+ISBLANK(Casa)>0,\"\",COUNTIF(Casa,\"<\"&Casa)+1)),INDEX(IF(ISBLANK(Casa),\"\",COUNTIF(Casa,\"<\"&Casa)+1),SMALL(IF(SMALL(IF(COUNTIF($B$9:B25,Casa)+ISBLANK(Casa)=0,COUNTIF(Casa,\"<\"&Casa)+1,\"\"),1)=IF(ISBLANK(Casa),\"\",COUNTIF(Casa,\"<\"&Casa)+1),ROW(Casa)-MIN(ROW(Casa))+1),1),,1),0),1)","v":{"$error":"#NUM!"}},"Cesena","GOLF",84,2478000]
[{"$f":"INDEX(Città,SMALL(IF(SMALL(IF(COUNTIF($A$9:A26,Città)+ISBLANK(Città)=0,COUNTIF(Città,\"<\"&Città)+1,\"\"),1)=IF(ISBLANK(Città),\"\",COUNTIF(Città,\"<\"&Città)+1),ROW(Città)-MIN(ROW(Città))+1),1),MATCH(MIN(IF(COUNTIF($A$9:A26,Città)+ISBLANK(Città)>0,\"\",COUNTIF(Città,\"<\"&Città)+1)),INDEX(IF(ISBLANK(Città),\"\",COUNTIF(Città,\"<\"&Città)+1),SMALL(IF(SMALL(IF(COUNTIF($A$9:A26,Città)+ISBLANK(Città)=0,COUNTIF(Città,\"<\"&Città)+1,\"\"),1)=IF(ISBLANK(Città),\"\",COUNTIF(Città,\"<\"&Città)+1),ROW(Città)-MIN(ROW(Città))+1),1),,1),0),1)","v":{"$error":"#NUM!"}},{"$f":"INDEX(Casa,SMALL(IF(SMALL(IF(COUNTIF($B$9:B26,Casa)+ISBLANK(Casa)=0,COUNTIF(Casa,\"<\"&Casa)+1,\"\"),1)=IF(ISBLANK(Casa),\"\",COUNTIF(Casa,\"<\"&Casa)+1),ROW(Casa)-MIN(ROW(Casa))+1),1),MATCH(MIN(IF(COUNTIF($B$9:B26,Casa)+ISBLANK(Casa)>0,\"\",COUNTIF(Casa,\"<\"&Casa)+1)),INDEX(IF(ISBLANK(Casa),\"\",COUNTIF(Casa,\"<\"&Casa)+1),SMALL(IF(SMALL(IF(COUNTIF($B$9:B26,Casa)+ISBLANK(Casa)=0,COUNTIF(Casa,\"<\"&Casa)+1,\"\"),1)=IF(ISBLANK(Casa),\"\",COUNTIF(Casa,\"<\"&Casa)+1),ROW(Casa)-MIN(ROW(Casa))+1),1),,1),0),1)","v":{"$error":"#NUM!"}},"Cesena","RENAULT",72,1932480]
[{"$f":"INDEX(Città,SMALL(IF(SMALL(IF(COUNTIF($A$9:A27,Città)+ISBLANK(Città)=0,COUNTIF(Città,\"<\"&Città)+1,\"\"),1)=IF(ISBLANK(Città),\"\",COUNTIF(Città,\"<\"&Città)+1),ROW(Città)-MIN(ROW(Città))+1),1),MATCH(MIN(IF(COUNTIF($A$9:A27,Città)+ISBLANK(Città)>0,\"\",COUNTIF(Città,\"<\"&Città)+1)),INDEX(IF(ISBLANK(Città),\"\",COUNTIF(Città,\"<\"&Città)+1),SMALL(IF(SMALL(IF(COUNTIF($A$9:A27,Città)+ISBLANK(Città)=0,COUNTIF(Città,\"<\"&Città)+1,\"\"),1)=IF(ISBLANK(Città),\"\",COUNTIF(Città,\"<\"&Città)+1),ROW(Città)-MIN(ROW(Città))+1),1),,1),0),1)","v":{"$error":"#NUM!"}},{"$f":"INDEX(Casa,SMALL(IF(SMALL(IF(COUNTIF($B$9:B27,Casa)+ISBLANK(Casa)=0,COUNTIF(Casa,\"<\"&Casa)+1,\"\"),1)=IF(ISBLANK(Casa),\"\",COUNTIF(Casa,\"<\"&Casa)+1),ROW(Casa)-MIN(ROW(Casa))+1),1),MATCH(MIN(IF(COUNTIF($B$9:B27,Casa)+ISBLANK(Casa)>0,\"\",COUNTIF(Casa,\"<\"&Casa)+1)),INDEX(IF(ISBLANK(Casa),\"\",COUNTIF(Casa,\"<\"&Casa)+1),SMALL(IF(SMALL(IF(COUNTIF($B$9:B27,Casa)+ISBLANK(Casa)=0,COUNTIF(Casa,\"<\"&Casa)+1,\"\"),1)=IF(ISBLANK(Casa),\"\",COUNTIF(Casa,\"<\"&Casa)+1),ROW(Casa)-MIN(ROW(Casa))+1),1),,1),0),1)","v":{"$error":"#NUM!"}},"Ferrara","AUDI",106,3360200]
[{"$f":"INDEX(Città,SMALL(IF(SMALL(IF(COUNTIF($A$9:A28,Città)+ISBLANK(Città)=0,COUNTIF(Città,\"<\"&Città)+1,\"\"),1)=IF(ISBLANK(Città),\"\",COUNTIF(Città,\"<\"&Città)+1),ROW(Città)-MIN(ROW(Città))+1),1),MATCH(MIN(IF(COUNTIF($A$9:A28,Città)+ISBLANK(Città)>0,\"\",COUNTIF(Città,\"<\"&Città)+1)),INDEX(IF(ISBLANK(Città),\"\",COUNTIF(Città,\"<\"&Città)+1),SMALL(IF(SMALL(IF(COUNTIF($A$9:A28,Città)+ISBLANK(Città)=0,COUNTIF(Città,\"<\"&Città)+1,\"\"),1)=IF(ISBLANK(Città),\"\",COUNTIF(Città,\"<\"&Città)+1),ROW(Città)-MIN(ROW(Città))+1),1),,1),0),1)","v":{"$error":"#NUM!"}},{"$f":"INDEX(Casa,SMALL(IF(SMALL(IF(COUNTIF($B$9:B28,Casa)+ISBLANK(Casa)=0,COUNTIF(Casa,\"<\"&Casa)+1,\"\"),1)=IF(ISBLANK(Casa),\"\",COUNTIF(Casa,\"<\"&Casa)+1),ROW(Casa)-MIN(ROW(Casa))+1),1),MATCH(MIN(IF(COUNTIF($B$9:B28,Casa)+ISBLANK(Casa)>0,\"\",COUNTIF(Casa,\"<\"&Casa)+1)),INDEX(IF(ISBLANK(Casa),\"\",COUNTIF(Casa,\"<\"&Casa)+1),SMALL(IF(SMALL(IF(COUNTIF($B$9:B28,Casa)+ISBLANK(Casa)=0,COUNTIF(Casa,\"<\"&Casa)+1,\"\"),1)=IF(ISBLANK(Casa),\"\",COUNTIF(Casa,\"<\"&Casa)+1),ROW(Casa)-MIN(ROW(Casa))+1),1),,1),0),1)","v":{"$error":"#NUM!"}},"Ferrara","RENAULT",98,2630320]
[{"$f":"INDEX(Città,SMALL(IF(SMALL(IF(COUNTIF($A$9:A29,Città)+ISBLANK(Città)=0,COUNTIF(Città,\"<\"&Città)+1,\"\"),1)=IF(ISBLANK(Città),\"\",COUNTIF(Città,\"<\"&Città)+1),ROW(Città)-MIN(ROW(Città))+1),1),MATCH(MIN(IF(COUNTIF($A$9:A29,Città)+ISBLANK(Città)>0,\"\",COUNTIF(Città,\"<\"&Città)+1)),INDEX(IF(ISBLANK(Città),\"\",COUNTIF(Città,\"<\"&Città)+1),SMALL(IF(SMALL(IF(COUNTIF($A$9:A29,Città)+ISBLANK(Città)=0,COUNTIF(Città,\"<\"&Città)+1,\"\"),1)=IF(ISBLANK(Città),\"\",COUNTIF(Città,\"<\"&Città)+1),ROW(Città)-MIN(ROW(Città))+1),1),,1),0),1)","v":{"$error":"#NUM!"}},{"$f":"INDEX(Casa,SMALL(IF(SMALL(IF(COUNTIF($B$9:B29,Casa)+ISBLANK(Casa)=0,COUNTIF(Casa,\"<\"&Casa)+1,\"\"),1)=IF(ISBLANK(Casa),\"\",COUNTIF(Casa,\"<\"&Casa)+1),ROW(Casa)-MIN(ROW(Casa))+1),1),MATCH(MIN(IF(COUNTIF($B$9:B29,Casa)+ISBLANK(Casa)>0,\"\",COUNTIF(Casa,\"<\"&Casa)+1)),INDEX(IF(ISBLANK(Casa),\"\",COUNTIF(Casa,\"<\"&Casa)+1),SMALL(IF(SMALL(IF(COUNTIF($B$9:B29,Casa)+ISBLANK(Casa)=0,COUNTIF(Casa,\"<\"&Casa)+1,\"\"),1)=IF(ISBLANK(Casa),\"\",COUNTIF(Casa,\"<\"&Casa)+1),ROW(Casa)-MIN(ROW(Casa))+1),1),,1),0),1)","v":{"$error":"#NUM!"}},"Ferrara","BMW",94,2975100]
[{"$f":"INDEX(Città,SMALL(IF(SMALL(IF(COUNTIF($A$9:A30,Città)+ISBLANK(Città)=0,COUNTIF(Città,\"<\"&Città)+1,\"\"),1)=IF(ISBLANK(Città),\"\",COUNTIF(Città,\"<\"&Città)+1),ROW(Città)-MIN(ROW(Città))+1),1),MATCH(MIN(IF(COUNTIF($A$9:A30,Città)+ISBLANK(Città)>0,\"\",COUNTIF(Città,\"<\"&Città)+1)),INDEX(IF(ISBLANK(Città),\"\",COUNTIF(Città,\"<\"&Città)+1),SMALL(IF(SMALL(IF(COUNTIF($A$9:A30,Città)+ISBLANK(Città)=0,COUNTIF(Città,\"<\"&Città)+1,\"\"),1)=IF(ISBLANK(Città),\"\",COUNTIF(Città,\"<\"&Città)+1),ROW(Città)-MIN(ROW(Città))+1),1),,1),0),1)","v":{"$error":"#NUM!"}},{"$f":"INDEX(Casa,SMALL(IF(SMALL(IF(COUNTIF($B$9:B30,Casa)+ISBLANK(Casa)=0,COUNTIF(Casa,\"<\"&Casa)+1,\"\"),1)=IF(ISBLANK(Casa),\"\",COUNTIF(Casa,\"<\"&Casa)+1),ROW(Casa)-MIN(ROW(Casa))+1),1),MATCH(MIN(IF(COUNTIF($B$9:B30,Casa)+ISBLANK(Casa)>0,\"\",COUNTIF(Casa,\"<\"&Casa)+1)),INDEX(IF(ISBLANK(Casa),\"\",COUNTIF(Casa,\"<\"&Casa)+1),SMALL(IF(SMALL(IF(COUNTIF($B$9:B30,Casa)+ISBLANK(Casa)=0,COUNTIF(Casa,\"<\"&Casa)+1,\"\"),1)=IF(ISBLANK(Casa),\"\",COUNTIF(Casa,\"<\"&Casa)+1),ROW(Casa)-MIN(ROW(Casa))+1),1),,1),0),1)","v":{"$error":"#NUM!"}},"Ferrara","NISSAN",81,2308500]
[{"$f":"INDEX(Città,SMALL(IF(SMALL(IF(COUNTIF($A$9:A31,Città)+ISBLANK(Città)=0,COUNTIF(Città,\"<\"&Città)+1,\"\"),1)=IF(ISBLANK(Città),\"\",COUNTIF(Città,\"<\"&Città)+1),ROW(Città)-MIN(ROW(Città))+1),1),MATCH(MIN(IF(COUNTIF($A$9:A31,Città)+ISBLANK(Città)>0,\"\",COUNTIF(Città,\"<\"&Città)+1)),INDEX(IF(ISBLANK(Città),\"\",COUNTIF(Città,\"<\"&Città)+1),SMALL(IF(SMALL(IF(COUNTIF($A$9:A31,Città)+ISBLANK(Città)=0,COUNTIF(Città,\"<\"&Città)+1,\"\"),1)=IF(ISBLANK(Città),\"\",COUNTIF(Città,\"<\"&Città)+1),ROW(Città)-MIN(ROW(Città))+1),1),,1),0),1)","v":{"$error":"#NUM!"}},{"$f":"INDEX(Casa,SMALL(IF(SMALL(IF(COUNTIF($B$9:B31,Casa)+ISBLANK(Casa)=0,COUNTIF(Casa,\"<\"&Casa)+1,\"\"),1)=IF(ISBLANK(Casa),\"\",COUNTIF(Casa,\"<\"&Casa)+1),ROW(Casa)-MIN(ROW(Casa))+1),1),MATCH(MIN(IF(COUNTIF($B$9:B31,Casa)+ISBLANK(Casa)>0,\"\",COUNTIF(Casa,\"<\"&Casa)+1)),INDEX(IF(ISBLANK(Casa),\"\",COUNTIF(Casa,\"<\"&Casa)+1),SMALL(IF(SMALL(IF(COUNTIF($B$9:B31,Casa)+ISBLANK(Casa)=0,COUNTIF(Casa,\"<\"&Casa)+1,\"\"),1)=IF(ISBLANK(Casa),\"\",COUNTIF(Casa,\"<\"&Casa)+1),ROW(Casa)-MIN(ROW(Casa))+1),1),,1),0),1)","v":{"$error":"#NUM!"}},"Ferrara","MERCEDES",77,2591050]
[{"$f":"INDEX(Città,SMALL(IF(SMALL(IF(COUNTIF($A$9:A32,Città)+ISBLANK(Città)=0,COUNTIF(Città,\"<\"&Città)+1,\"\"),1)=IF(ISBLANK(Città),\"\",COUNTIF(Città,\"<\"&Città)+1),ROW(Città)-MIN(ROW(Città))+1),1),MATCH(MIN(IF(COUNTIF($A$9:A32,Città)+ISBLANK(Città)>0,\"\",COUNTIF(Città,\"<\"&Città)+1)),INDEX(IF(ISBLANK(Città),\"\",COUNTIF(Città,\"<\"&Città)+1),SMALL(IF(SMALL(IF(COUNTIF($A$9:A32,Città)+ISBLANK(Città)=0,COUNTIF(Città,\"<\"&Città)+1,\"\"),1)=IF(ISBLANK(Città),\"\",COUNTIF(Città,\"<\"&Città)+1),ROW(Città)-MIN(ROW(Città))+1),1),,1),0),1)","v":{"$error":"#NUM!"}},{"$f":"INDEX(Casa,SMALL(IF(SMALL(IF(COUNTIF($B$9:B32,Casa)+ISBLANK(Casa)=0,COUNTIF(Casa,\"<\"&Casa)+1,\"\"),1)=IF(ISBLANK(Casa),\"\",COUNTIF(Casa,\"<\"&Casa)+1),ROW(Casa)-MIN(ROW(Casa))+1),1),MATCH(MIN(IF(COUNTIF($B$9:B32,Casa)+ISBLANK(Casa)>0,\"\",COUNTIF(Casa,\"<\"&Casa)+1)),INDEX(IF(ISBLANK(Casa),\"\",COUNTIF(Casa,\"<\"&Casa)+1),SMALL(IF(SMALL(IF(COUNTIF($B$9:B32,Casa)+ISBLANK(Casa)=0,COUNTIF(Casa,\"<\"&Casa)+1,\"\"),1)=IF(ISBLANK(Casa),\"\",COUNTIF(Casa,\"<\"&Casa)+1),ROW(Casa)-MIN(ROW(Casa))+1),1),,1),0),1)","v":{"$error":"#NUM!"}},"Ferrara","GOLF",75,2212500]
[{"$f":"INDEX(Città,SMALL(IF(SMALL(IF(COUNTIF($A$9:A33,Città)+ISBLANK(Città)=0,COUNTIF(Città,\"<\"&Città)+1,\"\"),1)=IF(ISBLANK(Città),\"\",COUNTIF(Città,\"<\"&Città)+1),ROW(Città)-MIN(ROW(Città))+1),1),MATCH(MIN(IF(COUNTIF($A$9:A33,Città)+ISBLANK(Città)>0,\"\",COUNTIF(Città,\"<\"&Città)+1)),INDEX(IF(ISBLANK(Città),\"\",COUNTIF(Città,\"<\"&Città)+1),SMALL(IF(SMALL(IF(COUNTIF($A$9:A33,Città)+ISBLANK(Città)=0,COUNTIF(Città,\"<\"&Città)+1,\"\"),1)=IF(ISBLANK(Città),\"\",COUNTIF(Città,\"<\"&Città)+1),ROW(Città)-MIN(ROW(Città))+1),1),,1),0),1)","v":{"$error":"#NUM!"}},{"$f":"INDEX(Casa,SMALL(IF(SMALL(IF(COUNTIF($B$9:B33,Casa)+ISBLANK(Casa)=0,COUNTIF(Casa,\"<\"&Casa)+1,\"\"),1)=IF(ISBLANK(Casa),\"\",COUNTIF(Casa,\"<\"&Casa)+1),ROW(Casa)-MIN(ROW(Casa))+1),1),MATCH(MIN(IF(COUNTIF($B$9:B33,Casa)+ISBLANK(Casa)>0,\"\",COUNTIF(Casa,\"<\"&Casa)+1)),INDEX(IF(ISBLANK(Casa),\"\",COUNTIF(Casa,\"<\"&Casa)+1),SMALL(IF(SMALL(IF(COUNTIF($B$9:B33,Casa)+ISBLANK(Casa)=0,COUNTIF(Casa,\"<\"&Casa)+1,\"\"),1)=IF(ISBLANK(Casa),\"\",COUNTIF(Casa,\"<\"&Casa)+1),ROW(Casa)-MIN(ROW(Casa))+1),1),,1),0),1)","v":{"$error":"#NUM!"}},"Firenze","GOLF",123,3628500]
[{"$f":"INDEX(Città,SMALL(IF(SMALL(IF(COUNTIF($A$9:A34,Città)+ISBLANK(Città)=0,COUNTIF(Città,\"<\"&Città)+1,\"\"),1)=IF(ISBLANK(Città),\"\",COUNTIF(Città,\"<\"&Città)+1),ROW(Città)-MIN(ROW(Città))+1),1),MATCH(MIN(IF(COUNTIF($A$9:A34,Città)+ISBLANK(Città)>0,\"\",COUNTIF(Città,\"<\"&Città)+1)),INDEX(IF(ISBLANK(Città),\"\",COUNTIF(Città,\"<\"&Città)+1),SMALL(IF(SMALL(IF(COUNTIF($A$9:A34,Città)+ISBLANK(Città)=0,COUNTIF(Città,\"<\"&Città)+1,\"\"),1)=IF(ISBLANK(Città),\"\",COUNTIF(Città,\"<\"&Città)+1),ROW(Città)-MIN(ROW(Città))+1),1),,1),0),1)","v":{"$error":"#NUM!"}},{"$f":"INDEX(Casa,SMALL(IF(SMALL(IF(COUNTIF($B$9:B34,Casa)+ISBLANK(Casa)=0,COUNTIF(Casa,\"<\"&Casa)+1,\"\"),1)=IF(ISBLANK(Casa),\"\",COUNTIF(Casa,\"<\"&Casa)+1),ROW(Casa)-MIN(ROW(Casa))+1),1),MATCH(MIN(IF(COUNTIF($B$9:B34,Casa)+ISBLANK(Casa)>0,\"\",COUNTIF(Casa,\"<\"&Casa)+1)),INDEX(IF(ISBLANK(Casa),\"\",COUNTIF(Casa,\"<\"&Casa)+1),SMALL(IF(SMALL(IF(COUNTIF($B$9:B34,Casa)+ISBLANK(Casa)=0,COUNTIF(Casa,\"<\"&Casa)+1,\"\"),1)=IF(ISBLANK(Casa),\"\",COUNTIF(Casa,\"<\"&Casa)+1),ROW(Casa)-MIN(ROW(Casa))+1),1),,1),0),1)","v":{"$error":"#NUM!"}},"Firenze","NISSAN",114,3249000]
[{"$f":"INDEX(Città,SMALL(IF(SMALL(IF(COUNTIF($A$9:A35,Città)+ISBLANK(Città)=0,COUNTIF(Città,\"<\"&Città)+1,\"\"),1)=IF(ISBLANK(Città),\"\",COUNTIF(Città,\"<\"&Città)+1),ROW(Città)-MIN(ROW(Città))+1),1),MATCH(MIN(IF(COUNTIF($A$9:A35,Città)+ISBLANK(Città)>0,\"\",COUNTIF(Città,\"<\"&Città)+1)),INDEX(IF(ISBLANK(Città),\"\",COUNTIF(Città,\"<\"&Città)+1),SMALL(IF(SMALL(IF(COUNTIF($A$9:A35,Città)+ISBLANK(Città)=0,COUNTIF(Città,\"<\"&Città)+1,\"\"),1)=IF(ISBLANK(Città),\"\",COUNTIF(Città,\"<\"&Città)+1),ROW(Città)-MIN(ROW(Città))+1),1),,1),0),1)","v":{"$error":"#NUM!"}},{"$f":"INDEX(Casa,SMALL(IF(SMALL(IF(COUNTIF($B$9:B35,Casa)+ISBLANK(Casa)=0,COUNTIF(Casa,\"<\"&Casa)+1,\"\"),1)=IF(ISBLANK(Casa),\"\",COUNTIF(Casa,\"<\"&Casa)+1),ROW(Casa)-MIN(ROW(Casa))+1),1),MATCH(MIN(IF(COUNTIF($B$9:B35,Casa)+ISBLANK(Casa)>0,\"\",COUNTIF(Casa,\"<\"&Casa)+1)),INDEX(IF(ISBLANK(Casa),\"\",COUNTIF(Casa,\"<\"&Casa)+1),SMALL(IF(SMALL(IF(COUNTIF($B$9:B35,Casa)+ISBLANK(Casa)=0,COUNTIF(Casa,\"<\"&Casa)+1,\"\"),1)=IF(ISBLANK(Casa),\"\",COUNTIF(Casa,\"<\"&Casa)+1),ROW(Casa)-MIN(ROW(Casa))+1),1),,1),0),1)","v":{"$error":"#NUM!"}},"Firenze","BMW",107,3386550]
[{"$f":"INDEX(Città,SMALL(IF(SMALL(IF(COUNTIF($A$9:A36,Città)+ISBLANK(Città)=0,COUNTIF(Città,\"<\"&Città)+1,\"\"),1)=IF(ISBLANK(Città),\"\",COUNTIF(Città,\"<\"&Città)+1),ROW(Città)-MIN(ROW(Città))+1),1),MATCH(MIN(IF(COUNTIF($A$9:A36,Città)+ISBLANK(Città)>0,\"\",COUNTIF(Città,\"<\"&Città)+1)),INDEX(IF(ISBLANK(Città),\"\",COUNTIF(Città,\"<\"&Città)+1),SMALL(IF(SMALL(IF(COUNTIF($A$9:A36,Città)+ISBLANK(Città)=0,COUNTIF(Città,\"<\"&Città)+1,\"\"),1)=IF(ISBLANK(Città),\"\",COUNTIF(Città,\"<\"&Città)+1),ROW(Città)-MIN(ROW(Città))+1),1),,1),0),1)","v":{"$error":"#NUM!"}},{"$f":"INDEX(Casa,SMALL(IF(SMALL(IF(COUNTIF($B$9:B36,Casa)+ISBLANK(Casa)=0,COUNTIF(Casa,\"<\"&Casa)+1,\"\"),1)=IF(ISBLANK(Casa),\"\",COUNTIF(Casa,\"<\"&Casa)+1),ROW(Casa)-MIN(ROW(Casa))+1),1),MATCH(MIN(IF(COUNTIF($B$9:B36,Casa)+ISBLANK(Casa)>0,\"\",COUNTIF(Casa,\"<\"&Casa)+1)),INDEX(IF(ISBLANK(Casa),\"\",COUNTIF(Casa,\"<\"&Casa)+1),SMALL(IF(SMALL(IF(COUNTIF($B$9:B36,Casa)+ISBLANK(Casa)=0,COUNTIF(Casa,\"<\"&Casa)+1,\"\"),1)=IF(ISBLANK(Casa),\"\",COUNTIF(Casa,\"<\"&Casa)+1),ROW(Casa)-MIN(ROW(Casa))+1),1),,1),0),1)","v":{"$error":"#NUM!"}},"Firenze","MERCEDES",102,3432300]
[{"$f":"INDEX(Città,SMALL(IF(SMALL(IF(COUNTIF($A$9:A37,Città)+ISBLANK(Città)=0,COUNTIF(Città,\"<\"&Città)+1,\"\"),1)=IF(ISBLANK(Città),\"\",COUNTIF(Città,\"<\"&Città)+1),ROW(Città)-MIN(ROW(Città))+1),1),MATCH(MIN(IF(COUNTIF($A$9:A37,Città)+ISBLANK(Città)>0,\"\",COUNTIF(Città,\"<\"&Città)+1)),INDEX(IF(ISBLANK(Città),\"\",COUNTIF(Città,\"<\"&Città)+1),SMALL(IF(SMALL(IF(COUNTIF($A$9:A37,Città)+ISBLANK(Città)=0,COUNTIF(Città,\"<\"&Città)+1,\"\"),1)=IF(ISBLANK(Città),\"\",COUNTIF(Città,\"<\"&Città)+1),ROW(Città)-MIN(ROW(Città))+1),1),,1),0),1)","v":{"$error":"#NUM!"}},{"$f":"INDEX(Casa,SMALL(IF(SMALL(IF(COUNTIF($B$9:B37,Casa)+ISBLANK(Casa)=0,COUNTIF(Casa,\"<\"&Casa)+1,\"\"),1)=IF(ISBLANK(Casa),\"\",COUNTIF(Casa,\"<\"&Casa)+1),ROW(Casa)-MIN(ROW(Casa))+1),1),MATCH(MIN(IF(COUNTIF($B$9:B37,Casa)+ISBLANK(Casa)>0,\"\",COUNTIF(Casa,\"<\"&Casa)+1)),INDEX(IF(ISBLANK(Casa),\"\",COUNTIF(Casa,\"<\"&Casa)+1),SMALL(IF(SMALL(IF(COUNTIF($B$9:B37,Casa)+ISBLANK(Casa)=0,COUNTIF(Casa,\"<\"&Casa)+1,\"\"),1)=IF(ISBLANK(Casa),\"\",COUNTIF(Casa,\"<\"&Casa)+1),ROW(Casa)-MIN(ROW(Casa))+1),1),,1),0),1)","v":{"$error":"#NUM!"}},"Firenze","AUDI",95,3011500]
[{"$f":"INDEX(Città,SMALL(IF(SMALL(IF(COUNTIF($A$9:A38,Città)+ISBLANK(Città)=0,COUNTIF(Città,\"<\"&Città)+1,\"\"),1)=IF(ISBLANK(Città),\"\",COUNTIF(Città,\"<\"&Città)+1),ROW(Città)-MIN(ROW(Città))+1),1),MATCH(MIN(IF(COUNTIF($A$9:A38,Città)+ISBLANK(Città)>0,\"\",COUNTIF(Città,\"<\"&Città)+1)),INDEX(IF(ISBLANK(Città),\"\",COUNTIF(Città,\"<\"&Città)+1),SMALL(IF(SMALL(IF(COUNTIF($A$9:A38,Città)+ISBLANK(Città)=0,COUNTIF(Città,\"<\"&Città)+1,\"\"),1)=IF(ISBLANK(Città),\"\",COUNTIF(Città,\"<\"&Città)+1),ROW(Città)-MIN(ROW(Città))+1),1),,1),0),1)","v":{"$error":"#NUM!"}},{"$f":"INDEX(Casa,SMALL(IF(SMALL(IF(COUNTIF($B$9:B38,Casa)+ISBLANK(Casa)=0,COUNTIF(Casa,\"<\"&Casa)+1,\"\"),1)=IF(ISBLANK(Casa),\"\",COUNTIF(Casa,\"<\"&Casa)+1),ROW(Casa)-MIN(ROW(Casa))+1),1),MATCH(MIN(IF(COUNTIF($B$9:B38,Casa)+ISBLANK(Casa)>0,\"\",COUNTIF(Casa,\"<\"&Casa)+1)),INDEX(IF(ISBLANK(Casa),\"\",COUNTIF(Casa,\"<\"&Casa)+1),SMALL(IF(SMALL(IF(COUNTIF($B$9:B38,Casa)+ISBLANK(Casa)=0,COUNTIF(Casa,\"<\"&Casa)+1,\"\"),1)=IF(ISBLANK(Casa),\"\",COUNTIF(Casa,\"<\"&Casa)+1),ROW(Casa)-MIN(ROW(Casa))+1),1),,1),0),1)","v":{"$error":"#NUM!"}},"Firenze","RENAULT",94,2522960]
[{"$f":"INDEX(Città,SMALL(IF(SMALL(IF(COUNTIF($A$9:A39,Città)+ISBLANK(Città)=0,COUNTIF(Città,\"<\"&Città)+1,\"\"),1)=IF(ISBLANK(Città),\"\",COUNTIF(Città,\"<\"&Città)+1),ROW(Città)-MIN(ROW(Città))+1),1),MATCH(MIN(IF(COUNTIF($A$9:A39,Città)+ISBLANK(Città)>0,\"\",COUNTIF(Città,\"<\"&Città)+1)),INDEX(IF(ISBLANK(Città),\"\",COUNTIF(Città,\"<\"&Città)+1),SMALL(IF(SMALL(IF(COUNTIF($A$9:A39,Città)+ISBLANK(Città)=0,COUNTIF(Città,\"<\"&Città)+1,\"\"),1)=IF(ISBLANK(Città),\"\",COUNTIF(Città,\"<\"&Città)+1),ROW(Città)-MIN(ROW(Città))+1),1),,1),0),1)","v":{"$error":"#NUM!"}},{"$f":"INDEX(Casa,SMALL(IF(SMALL(IF(COUNTIF($B$9:B39,Casa)+ISBLANK(Casa)=0,COUNTIF(Casa,\"<\"&Casa)+1,\"\"),1)=IF(ISBLANK(Casa),\"\",COUNTIF(Casa,\"<\"&Casa)+1),ROW(Casa)-MIN(ROW(Casa))+1),1),MATCH(MIN(IF(COUNTIF($B$9:B39,Casa)+ISBLANK(Casa)>0,\"\",COUNTIF(Casa,\"<\"&Casa)+1)),INDEX(IF(ISBLANK(Casa),\"\",COUNTIF(Casa,\"<\"&Casa)+1),SMALL(IF(SMALL(IF(COUNTIF($B$9:B39,Casa)+ISBLANK(Casa)=0,COUNTIF(Casa,\"<\"&Casa)+1,\"\"),1)=IF(ISBLANK(Casa),\"\",COUNTIF(Casa,\"<\"&Casa)+1),ROW(Casa)-MIN(ROW(Casa))+1),1),,1),0),1)","v":{"$error":"#NUM!"}},"Monza","BMW",132,4177800]
[{"$f":"INDEX(Città,SMALL(IF(SMALL(IF(COUNTIF($A$9:A40,Città)+ISBLANK(Città)=0,COUNTIF(Città,\"<\"&Città)+1,\"\"),1)=IF(ISBLANK(Città),\"\",COUNTIF(Città,\"<\"&Città)+1),ROW(Città)-MIN(ROW(Città))+1),1),MATCH(MIN(IF(COUNTIF($A$9:A40,Città)+ISBLANK(Città)>0,\"\",COUNTIF(Città,\"<\"&Città)+1)),INDEX(IF(ISBLANK(Città),\"\",COUNTIF(Città,\"<\"&Città)+1),SMALL(IF(SMALL(IF(COUNTIF($A$9:A40,Città)+ISBLANK(Città)=0,COUNTIF(Città,\"<\"&Città)+1,\"\"),1)=IF(ISBLANK(Città),\"\",COUNTIF(Città,\"<\"&Città)+1),ROW(Città)-MIN(ROW(Città))+1),1),,1),0),1)","v":{"$error":"#NUM!"}},{"$f":"INDEX(Casa,SMALL(IF(SMALL(IF(COUNTIF($B$9:B40,Casa)+ISBLANK(Casa)=0,COUNTIF(Casa,\"<\"&Casa)+1,\"\"),1)=IF(ISBLANK(Casa),\"\",COUNTIF(Casa,\"<\"&Casa)+1),ROW(Casa)-MIN(ROW(Casa))+1),1),MATCH(MIN(IF(COUNTIF($B$9:B40,Casa)+ISBLANK(Casa)>0,\"\",COUNTIF(Casa,\"<\"&Casa)+1)),INDEX(IF(ISBLANK(Casa),\"\",COUNTIF(Casa,\"<\"&Casa)+1),SMALL(IF(SMALL(IF(COUNTIF($B$9:B40,Casa)+ISBLANK(Casa)=0,COUNTIF(Casa,\"<\"&Casa)+1,\"\"),1)=IF(ISBLANK(Casa),\"\",COUNTIF(Casa,\"<\"&Casa)+1),ROW(Casa)-MIN(ROW(Casa))+1),1),,1),0),1)","v":{"$error":"#NUM!"}},"Monza","AUDI",121,3835700]
[{"$f":"INDEX(Città,SMALL(IF(SMALL(IF(COUNTIF($A$9:A41,Città)+ISBLANK(Città)=0,COUNTIF(Città,\"<\"&Città)+1,\"\"),1)=IF(ISBLANK(Città),\"\",COUNTIF(Città,\"<\"&Città)+1),ROW(Città)-MIN(ROW(Città))+1),1),MATCH(MIN(IF(COUNTIF($A$9:A41,Città)+ISBLANK(Città)>0,\"\",COUNTIF(Città,\"<\"&Città)+1)),INDEX(IF(ISBLANK(Città),\"\",COUNTIF(Città,\"<\"&Città)+1),SMALL(IF(SMALL(IF(COUNTIF($A$9:A41,Città)+ISBLANK(Città)=0,COUNTIF(Città,\"<\"&Città)+1,\"\"),1)=IF(ISBLANK(Città),\"\",COUNTIF(Città,\"<\"&Città)+1),ROW(Città)-MIN(ROW(Città))+1),1),,1),0),1)","v":{"$error":"#NUM!"}},{"$f":"INDEX(Casa,SMALL(IF(SMALL(IF(COUNTIF($B$9:B41,Casa)+ISBLANK(Casa)=0,COUNTIF(Casa,\"<\"&Casa)+1,\"\"),1)=IF(ISBLANK(Casa),\"\",COUNTIF(Casa,\"<\"&Casa)+1),ROW(Casa)-MIN(ROW(Casa))+1),1),MATCH(MIN(IF(COUNTIF($B$9:B41,Casa)+ISBLANK(Casa)>0,\"\",COUNTIF(Casa,\"<\"&Casa)+1)),INDEX(IF(ISBLANK(Casa),\"\",COUNTIF(Casa,\"<\"&Casa)+1),SMALL(IF(SMALL(IF(COUNTIF($B$9:B41,Casa)+ISBLANK(Casa)=0,COUNTIF(Casa,\"<\"&Casa)+1,\"\"),1)=IF(ISBLANK(Casa),\"\",COUNTIF(Casa,\"<\"&Casa)+1),ROW(Casa)-MIN(ROW(Casa))+1),1),,1),0),1)","v":{"$error":"#NUM!"}},"Monza","NISSAN",116,3306000]
[{"$f":"INDEX(Città,SMALL(IF(SMALL(IF(COUNTIF($A$9:A42,Città)+ISBLANK(Città)=0,COUNTIF(Città,\"<\"&Città)+1,\"\"),1)=IF(ISBLANK(Città),\"\",COUNTIF(Città,\"<\"&Città)+1),ROW(Città)-MIN(ROW(Città))+1),1),MATCH(MIN(IF(COUNTIF($A$9:A42,Città)+ISBLANK(Città)>0,\"\",COUNTIF(Città,\"<\"&Città)+1)),INDEX(IF(ISBLANK(Città),\"\",COUNTIF(Città,\"<\"&Città)+1),SMALL(IF(SMALL(IF(COUNTIF($A$9:A42,Città)+ISBLANK(Città)=0,COUNTIF(Città,\"<\"&Città)+1,\"\"),1)=IF(ISBLANK(Città),\"\",COUNTIF(Città,\"<\"&Città)+1),ROW(Città)-MIN(ROW(Città))+1),1),,1),0),1)","v":{"$error":"#NUM!"}},{"$f":"INDEX(Casa,SMALL(IF(SMALL(IF(COUNTIF($B$9:B42,Casa)+ISBLANK(Casa)=0,COUNTIF(Casa,\"<\"&Casa)+1,\"\"),1)=IF(ISBLANK(Casa),\"\",COUNTIF(Casa,\"<\"&Casa)+1),ROW(Casa)-MIN(ROW(Casa))+1),1),MATCH(MIN(IF(COUNTIF($B$9:B42,Casa)+ISBLANK(Casa)>0,\"\",COUNTIF(Casa,\"<\"&Casa)+1)),INDEX(IF(ISBLANK(Casa),\"\",COUNTIF(Casa,\"<\"&Casa)+1),SMALL(IF(SMALL(IF(COUNTIF($B$9:B42,Casa)+ISBLANK(Casa)=0,COUNTIF(Casa,\"<\"&Casa)+1,\"\"),1)=IF(ISBLANK(Casa),\"\",COUNTIF(Casa,\"<\"&Casa)+1),ROW(Casa)-MIN(ROW(Casa))+1),1),,1),0),1)","v":{"$error":"#NUM!"}},"Monza","MERCEDES",114,3836100]
[{"$f":"INDEX(Città,SMALL(IF(SMALL(IF(COUNTIF($A$9:A43,Città)+ISBLANK(Città)=0,COUNTIF(Città,\"<\"&Città)+1,\"\"),1)=IF(ISBLANK(Città),\"\",COUNTIF(Città,\"<\"&Città)+1),ROW(Città)-MIN(ROW(Città))+1),1),MATCH(MIN(IF(COUNTIF($A$9:A43,Città)+ISBLANK(Città)>0,\"\",COUNTIF(Città,\"<\"&Città)+1)),INDEX(IF(ISBLANK(Città),\"\",COUNTIF(Città,\"<\"&Città)+1),SMALL(IF(SMALL(IF(COUNTIF($A$9:A43,Città)+ISBLANK(Città)=0,COUNTIF(Città,\"<\"&Città)+1,\"\"),1)=IF(ISBLANK(Città),\"\",COUNTIF(Città,\"<\"&Città)+1),ROW(Città)-MIN(ROW(Città))+1),1),,1),0),1)","v":{"$error":"#NUM!"}},{"$f":"INDEX(Casa,SMALL(IF(SMALL(IF(COUNTIF($B$9:B43,Casa)+ISBLANK(Casa)=0,COUNTIF(Casa,\"<\"&Casa)+1,\"\"),1)=IF(ISBLANK(Casa),\"\",COUNTIF(Casa,\"<\"&Casa)+1),ROW(Casa)-MIN(ROW(Casa))+1),1),MATCH(MIN(IF(COUNTIF($B$9:B43,Casa)+ISBLANK(Casa)>0,\"\",COUNTIF(Casa,\"<\"&Casa)+1)),INDEX(IF(ISBLANK(Casa),\"\",COUNTIF(Casa,\"<\"&Casa)+1),SMALL(IF(SMALL(IF(COUNTIF($B$9:B43,Casa)+ISBLANK(Casa)=0,COUNTIF(Casa,\"<\"&Casa)+1,\"\"),1)=IF(ISBLANK(Casa),\"\",COUNTIF(Casa,\"<\"&Casa)+1),ROW(Casa)-MIN(ROW(Casa))+1),1),,1),0),1)","v":{"$error":"#NUM!"}},"Monza","GOLF",102,3009000]
[{"$f":"INDEX(Città,SMALL(IF(SMALL(IF(COUNTIF($A$9:A44,Città)+ISBLANK(Città)=0,COUNTIF(Città,\"<\"&Città)+1,\"\"),1)=IF(ISBLANK(Città),\"\",COUNTIF(Città,\"<\"&Città)+1),ROW(Città)-MIN(ROW(Città))+1),1),MATCH(MIN(IF(COUNTIF($A$9:A44,Città)+ISBLANK(Città)>0,\"\",COUNTIF(Città,\"<\"&Città)+1)),INDEX(IF(ISBLANK(Città),\"\",COUNTIF(Città,\"<\"&Città)+1),SMALL(IF(SMALL(IF(COUNTIF($A$9:A44,Città)+ISBLANK(Città)=0,COUNTIF(Città,\"<\"&Città)+1,\"\"),1)=IF(ISBLANK(Città),\"\",COUNTIF(Città,\"<\"&Città)+1),ROW(Città)-MIN(ROW(Città))+1),1),,1),0),1)","v":{"$error":"#NUM!"}},{"$f":"INDEX(Casa,SMALL(IF(SMALL(IF(COUNTIF($B$9:B44,Casa)+ISBLANK(Casa)=0,COUNTIF(Casa,\"<\"&Casa)+1,\"\"),1)=IF(ISBLANK(Casa),\"\",COUNTIF(Casa,\"<\"&Casa)+1),ROW(Casa)-MIN(ROW(Casa))+1),1),MATCH(MIN(IF(COUNTIF($B$9:B44,Casa)+ISBLANK(Casa)>0,\"\",COUNTIF(Casa,\"<\"&Casa)+1)),INDEX(IF(ISBLANK(Casa),\"\",COUNTIF(Casa,\"<\"&Casa)+1),SMALL(IF(SMALL(IF(COUNTIF($B$9:B44,Casa)+ISBLANK(Casa)=0,COUNTIF(Casa,\"<\"&Casa)+1,\"\"),1)=IF(ISBLANK(Casa),\"\",COUNTIF(Casa,\"<\"&Casa)+1),ROW(Casa)-MIN(ROW(Casa))+1),1),,1),0),1)","v":{"$error":"#NUM!"}},"Monza","RENAULT",97,2603480]
[{"$f":"INDEX(Città,SMALL(IF(SMALL(IF(COUNTIF($A$9:A45,Città)+ISBLANK(Città)=0,COUNTIF(Città,\"<\"&Città)+1,\"\"),1)=IF(ISBLANK(Città),\"\",COUNTIF(Città,\"<\"&Città)+1),ROW(Città)-MIN(ROW(Città))+1),1),MATCH(MIN(IF(COUNTIF($A$9:A45,Città)+ISBLANK(Città)>0,\"\",COUNTIF(Città,\"<\"&Città)+1)),INDEX(IF(ISBLANK(Città),\"\",COUNTIF(Città,\"<\"&Città)+1),SMALL(IF(SMALL(IF(COUNTIF($A$9:A45,Città)+ISBLANK(Città)=0,COUNTIF(Città,\"<\"&Città)+1,\"\"),1)=IF(ISBLANK(Città),\"\",COUNTIF(Città,\"<\"&Città)+1),ROW(Città)-MIN(ROW(Città))+1),1),,1),0),1)","v":{"$error":"#NUM!"}},{"$f":"INDEX(Casa,SMALL(IF(SMALL(IF(COUNTIF($B$9:B45,Casa)+ISBLANK(Casa)=0,COUNTIF(Casa,\"<\"&Casa)+1,\"\"),1)=IF(ISBLANK(Casa),\"\",COUNTIF(Casa,\"<\"&Casa)+1),ROW(Casa)-MIN(ROW(Casa))+1),1),MATCH(MIN(IF(COUNTIF($B$9:B45,Casa)+ISBLANK(Casa)>0,\"\",COUNTIF(Casa,\"<\"&Casa)+1)),INDEX(IF(ISBLANK(Casa),\"\",COUNTIF(Casa,\"<\"&Casa)+1),SMALL(IF(SMALL(IF(COUNTIF($B$9:B45,Casa)+ISBLANK(Casa)=0,COUNTIF(Casa,\"<\"&Casa)+1,\"\"),1)=IF(ISBLANK(Casa),\"\",COUNTIF(Casa,\"<\"&Casa)+1),ROW(Casa)-MIN(ROW(Casa))+1),1),,1),0),1)","v":{"$error":"#NUM!"}},"Napoli","GOLF",195,5752500]
[{"$f":"INDEX(Città,SMALL(IF(SMALL(IF(COUNTIF($A$9:A46,Città)+ISBLANK(Città)=0,COUNTIF(Città,\"<\"&Città)+1,\"\"),1)=IF(ISBLANK(Città),\"\",COUNTIF(Città,\"<\"&Città)+1),ROW(Città)-MIN(ROW(Città))+1),1),MATCH(MIN(IF(COUNTIF($A$9:A46,Città)+ISBLANK(Città)>0,\"\",COUNTIF(Città,\"<\"&Città)+1)),INDEX(IF(ISBLANK(Città),\"\",COUNTIF(Città,\"<\"&Città)+1),SMALL(IF(SMALL(IF(COUNTIF($A$9:A46,Città)+ISBLANK(Città)=0,COUNTIF(Città,\"<\"&Città)+1,\"\"),1)=IF(ISBLANK(Città),\"\",COUNTIF(Città,\"<\"&Città)+1),ROW(Città)-MIN(ROW(Città))+1),1),,1),0),1)","v":{"$error":"#NUM!"}},{"$f":"INDEX(Casa,SMALL(IF(SMALL(IF(COUNTIF($B$9:B46,Casa)+ISBLANK(Casa)=0,COUNTIF(Casa,\"<\"&Casa)+1,\"\"),1)=IF(ISBLANK(Casa),\"\",COUNTIF(Casa,\"<\"&Casa)+1),ROW(Casa)-MIN(ROW(Casa))+1),1),MATCH(MIN(IF(COUNTIF($B$9:B46,Casa)+ISBLANK(Casa)>0,\"\",COUNTIF(Casa,\"<\"&Casa)+1)),INDEX(IF(ISBLANK(Casa),\"\",COUNTIF(Casa,\"<\"&Casa)+1),SMALL(IF(SMALL(IF(COUNTIF($B$9:B46,Casa)+ISBLANK(Casa)=0,COUNTIF(Casa,\"<\"&Casa)+1,\"\"),1)=IF(ISBLANK(Casa),\"\",COUNTIF(Casa,\"<\"&Casa)+1),ROW(Casa)-MIN(ROW(Casa))+1),1),,1),0),1)","v":{"$error":"#NUM!"}},"Napoli","RENAULT",192,5153280]
[{"$f":"INDEX(Città,SMALL(IF(SMALL(IF(COUNTIF($A$9:A47,Città)+ISBLANK(Città)=0,COUNTIF(Città,\"<\"&Città)+1,\"\"),1)=IF(ISBLANK(Città),\"\",COUNTIF(Città,\"<\"&Città)+1),ROW(Città)-MIN(ROW(Città))+1),1),MATCH(MIN(IF(COUNTIF($A$9:A47,Città)+ISBLANK(Città)>0,\"\",COUNTIF(Città,\"<\"&Città)+1)),INDEX(IF(ISBLANK(Città),\"\",COUNTIF(Città,\"<\"&Città)+1),SMALL(IF(SMALL(IF(COUNTIF($A$9:A47,Città)+ISBLANK(Città)=0,COUNTIF(Città,\"<\"&Città)+1,\"\"),1)=IF(ISBLANK(Città),\"\",COUNTIF(Città,\"<\"&Città)+1),ROW(Città)-MIN(ROW(Città))+1),1),,1),0),1)","v":{"$error":"#NUM!"}},{"$f":"INDEX(Casa,SMALL(IF(SMALL(IF(COUNTIF($B$9:B47,Casa)+ISBLANK(Casa)=0,COUNTIF(Casa,\"<\"&Casa)+1,\"\"),1)=IF(ISBLANK(Casa),\"\",COUNTIF(Casa,\"<\"&Casa)+1),ROW(Casa)-MIN(ROW(Casa))+1),1),MATCH(MIN(IF(COUNTIF($B$9:B47,Casa)+ISBLANK(Casa)>0,\"\",COUNTIF(Casa,\"<\"&Casa)+1)),INDEX(IF(ISBLANK(Casa),\"\",COUNTIF(Casa,\"<\"&Casa)+1),SMALL(IF(SMALL(IF(COUNTIF($B$9:B47,Casa)+ISBLANK(Casa)=0,COUNTIF(Casa,\"<\"&Casa)+1,\"\"),1)=IF(ISBLANK(Casa),\"\",COUNTIF(Casa,\"<\"&Casa)+1),ROW(Casa)-MIN(ROW(Casa))+1),1),,1),0),1)","v":{"$error":"#NUM!"}},"Napoli","BMW",188,5950200]
[{"$f":"INDEX(Città,SMALL(IF(SMALL(IF(COUNTIF($A$9:A48,Città)+ISBLANK(Città)=0,COUNTIF(Città,\"<\"&Città)+1,\"\"),1)=IF(ISBLANK(Città),\"\",COUNTIF(Città,\"<\"&Città)+1),ROW(Città)-MIN(ROW(Città))+1),1),MATCH(MIN(IF(COUNTIF($A$9:A48,Città)+ISBLANK(Città)>0,\"\",COUNTIF(Città,\"<\"&Città)+1)),INDEX(IF(ISBLANK(Città),\"\",COUNTIF(Città,\"<\"&Città)+1),SMALL(IF(SMALL(IF(COUNTIF($A$9:A48,Città)+ISBLANK(Città)=0,COUNTIF(Città,\"<\"&Città)+1,\"\"),1)=IF(ISBLANK(Città),\"\",COUNTIF(Città,\"<\"&Città)+1),ROW(Città)-MIN(ROW(Città))+1),1),,1),0),1)","v":{"$error":"#NUM!"}},{"$f":"INDEX(Casa,SMALL(IF(SMALL(IF(COUNTIF($B$9:B48,Casa)+ISBLANK(Casa)=0,COUNTIF(Casa,\"<\"&Casa)+1,\"\"),1)=IF(ISBLANK(Casa),\"\",COUNTIF(Casa,\"<\"&Casa)+1),ROW(Casa)-MIN(ROW(Casa))+1),1),MATCH(MIN(IF(COUNTIF($B$9:B48,Casa)+ISBLANK(Casa)>0,\"\",COUNTIF(Casa,\"<\"&Casa)+1)),INDEX(IF(ISBLANK(Casa),\"\",COUNTIF(Casa,\"<\"&Casa)+1),SMALL(IF(SMALL(IF(COUNTIF($B$9:B48,Casa)+ISBLANK(Casa)=0,COUNTIF(Casa,\"<\"&Casa)+1,\"\"),1)=IF(ISBLANK(Casa),\"\",COUNTIF(Casa,\"<\"&Casa)+1),ROW(Casa)-MIN(ROW(Casa))+1),1),,1),0),1)","v":{"$error":"#NUM!"}},"Napoli","AUDI",162,5135400]
[{"$f":"INDEX(Città,SMALL(IF(SMALL(IF(COUNTIF($A$9:A49,Città)+ISBLANK(Città)=0,COUNTIF(Città,\"<\"&Città)+1,\"\"),1)=IF(ISBLANK(Città),\"\",COUNTIF(Città,\"<\"&Città)+1),ROW(Città)-MIN(ROW(Città))+1),1),MATCH(MIN(IF(COUNTIF($A$9:A49,Città)+ISBLANK(Città)>0,\"\",COUNTIF(Città,\"<\"&Città)+1)),INDEX(IF(ISBLANK(Città),\"\",COUNTIF(Città,\"<\"&Città)+1),SMALL(IF(SMALL(IF(COUNTIF($A$9:A49,Città)+ISBLANK(Città)=0,COUNTIF(Città,\"<\"&Città)+1,\"\"),1)=IF(ISBLANK(Città),\"\",COUNTIF(Città,\"<\"&Città)+1),ROW(Città)-MIN(ROW(Città))+1),1),,1),0),1)","v":{"$error":"#NUM!"}},{"$f":"INDEX(Casa,SMALL(IF(SMALL(IF(COUNTIF($B$9:B49,Casa)+ISBLANK(Casa)=0,COUNTIF(Casa,\"<\"&Casa)+1,\"\"),1)=IF(ISBLANK(Casa),\"\",COUNTIF(Casa,\"<\"&Casa)+1),ROW(Casa)-MIN(ROW(Casa))+1),1),MATCH(MIN(IF(COUNTIF($B$9:B49,Casa)+ISBLANK(Casa)>0,\"\",COUNTIF(Casa,\"<\"&Casa)+1)),INDEX(IF(ISBLANK(Casa),\"\",COUNTIF(Casa,\"<\"&Casa)+1),SMALL(IF(SMALL(IF(COUNTIF($B$9:B49,Casa)+ISBLANK(Casa)=0,COUNTIF(Casa,\"<\"&Casa)+1,\"\"),1)=IF(ISBLANK(Casa),\"\",COUNTIF(Casa,\"<\"&Casa)+1),ROW(Casa)-MIN(ROW(Casa))+1),1),,1),0),1)","v":{"$error":"#NUM!"}},"Napoli","NISSAN",145,4132500]
[{"$f":"INDEX(Città,SMALL(IF(SMALL(IF(COUNTIF($A$9:A50,Città)+ISBLANK(Città)=0,COUNTIF(Città,\"<\"&Città)+1,\"\"),1)=IF(ISBLANK(Città),\"\",COUNTIF(Città,\"<\"&Città)+1),ROW(Città)-MIN(ROW(Città))+1),1),MATCH(MIN(IF(COUNTIF($A$9:A50,Città)+ISBLANK(Città)>0,\"\",COUNTIF(Città,\"<\"&Città)+1)),INDEX(IF(ISBLANK(Città),\"\",COUNTIF(Città,\"<\"&Città)+1),SMALL(IF(SMALL(IF(COUNTIF($A$9:A50,Città)+ISBLANK(Città)=0,COUNTIF(Città,\"<\"&Città)+1,\"\"),1)=IF(ISBLANK(Città),\"\",COUNTIF(Città,\"<\"&Città)+1),ROW(Città)-MIN(ROW(Città))+1),1),,1),0),1)","v":{"$error":"#NUM!"}},{"$f":"INDEX(Casa,SMALL(IF(SMALL(IF(COUNTIF($B$9:B50,Casa)+ISBLANK(Casa)=0,COUNTIF(Casa,\"<\"&Casa)+1,\"\"),1)=IF(ISBLANK(Casa),\"\",COUNTIF(Casa,\"<\"&Casa)+1),ROW(Casa)-MIN(ROW(Casa))+1),1),MATCH(MIN(IF(COUNTIF($B$9:B50,Casa)+ISBLANK(Casa)>0,\"\",COUNTIF(Casa,\"<\"&Casa)+1)),INDEX(IF(ISBLANK(Casa),\"\",COUNTIF(Casa,\"<\"&Casa)+1),SMALL(IF(SMALL(IF(COUNTIF($B$9:B50,Casa)+ISBLANK(Casa)=0,COUNTIF(Casa,\"<\"&Casa)+1,\"\"),1)=IF(ISBLANK(Casa),\"\",COUNTIF(Casa,\"<\"&Casa)+1),ROW(Casa)-MIN(ROW(Casa))+1),1),,1),0),1)","v":{"$error":"#NUM!"}},"Napoli","MERCEDES",132,4441800]
[{"$f":"INDEX(Città,SMALL(IF(SMALL(IF(COUNTIF($A$9:A51,Città)+ISBLANK(Città)=0,COUNTIF(Città,\"<\"&Città)+1,\"\"),1)=IF(ISBLANK(Città),\"\",COUNTIF(Città,\"<\"&Città)+1),ROW(Città)-MIN(ROW(Città))+1),1),MATCH(MIN(IF(COUNTIF($A$9:A51,Città)+ISBLANK(Città)>0,\"\",COUNTIF(Città,\"<\"&Città)+1)),INDEX(IF(ISBLANK(Città),\"\",COUNTIF(Città,\"<\"&Città)+1),SMALL(IF(SMALL(IF(COUNTIF($A$9:A51,Città)+ISBLANK(Città)=0,COUNTIF(Città,\"<\"&Città)+1,\"\"),1)=IF(ISBLANK(Città),\"\",COUNTIF(Città,\"<\"&Città)+1),ROW(Città)-MIN(ROW(Città))+1),1),,1),0),1)","v":{"$error":"#NUM!"}},{"$f":"INDEX(Casa,SMALL(IF(SMALL(IF(COUNTIF($B$9:B51,Casa)+ISBLANK(Casa)=0,COUNTIF(Casa,\"<\"&Casa)+1,\"\"),1)=IF(ISBLANK(Casa),\"\",COUNTIF(Casa,\"<\"&Casa)+1),ROW(Casa)-MIN(ROW(Casa))+1),1),MATCH(MIN(IF(COUNTIF($B$9:B51,Casa)+ISBLANK(Casa)>0,\"\",COUNTIF(Casa,\"<\"&Casa)+1)),INDEX(IF(ISBLANK(Casa),\"\",COUNTIF(Casa,\"<\"&Casa)+1),SMALL(IF(SMALL(IF(COUNTIF($B$9:B51,Casa)+ISBLANK(Casa)=0,COUNTIF(Casa,\"<\"&Casa)+1,\"\"),1)=IF(ISBLANK(Casa),\"\",COUNTIF(Casa,\"<\"&Casa)+1),ROW(Casa)-MIN(ROW(Casa))+1),1),,1),0),1)","v":{"$error":"#NUM!"}},"Padova","MERCEDES",140,4711000]
[{"$f":"INDEX(Città,SMALL(IF(SMALL(IF(COUNTIF($A$9:A52,Città)+ISBLANK(Città)=0,COUNTIF(Città,\"<\"&Città)+1,\"\"),1)=IF(ISBLANK(Città),\"\",COUNTIF(Città,\"<\"&Città)+1),ROW(Città)-MIN(ROW(Città))+1),1),MATCH(MIN(IF(COUNTIF($A$9:A52,Città)+ISBLANK(Città)>0,\"\",COUNTIF(Città,\"<\"&Città)+1)),INDEX(IF(ISBLANK(Città),\"\",COUNTIF(Città,\"<\"&Città)+1),SMALL(IF(SMALL(IF(COUNTIF($A$9:A52,Città)+ISBLANK(Città)=0,COUNTIF(Città,\"<\"&Città)+1,\"\"),1)=IF(ISBLANK(Città),\"\",COUNTIF(Città,\"<\"&Città)+1),ROW(Città)-MIN(ROW(Città))+1),1),,1),0),1)","v":{"$error":"#NUM!"}},{"$f":"INDEX(Casa,SMALL(IF(SMALL(IF(COUNTIF($B$9:B52,Casa)+ISBLANK(Casa)=0,COUNTIF(Casa,\"<\"&Casa)+1,\"\"),1)=IF(ISBLANK(Casa),\"\",COUNTIF(Casa,\"<\"&Casa)+1),ROW(Casa)-MIN(ROW(Casa))+1),1),MATCH(MIN(IF(COUNTIF($B$9:B52,Casa)+ISBLANK(Casa)>0,\"\",COUNTIF(Casa,\"<\"&Casa)+1)),INDEX(IF(ISBLANK(Casa),\"\",COUNTIF(Casa,\"<\"&Casa)+1),SMALL(IF(SMALL(IF(COUNTIF($B$9:B52,Casa)+ISBLANK(Casa)=0,COUNTIF(Casa,\"<\"&Casa)+1,\"\"),1)=IF(ISBLANK(Casa),\"\",COUNTIF(Casa,\"<\"&Casa)+1),ROW(Casa)-MIN(ROW(Casa))+1),1),,1),0),1)","v":{"$error":"#NUM!"}},"Padova","AUDI",132,4184400]
[{"$f":"INDEX(Città,SMALL(IF(SMALL(IF(COUNTIF($A$9:A53,Città)+ISBLANK(Città)=0,COUNTIF(Città,\"<\"&Città)+1,\"\"),1)=IF(ISBLANK(Città),\"\",COUNTIF(Città,\"<\"&Città)+1),ROW(Città)-MIN(ROW(Città))+1),1),MATCH(MIN(IF(COUNTIF($A$9:A53,Città)+ISBLANK(Città)>0,\"\",COUNTIF(Città,\"<\"&Città)+1)),INDEX(IF(ISBLANK(Città),\"\",COUNTIF(Città,\"<\"&Città)+1),SMALL(IF(SMALL(IF(COUNTIF($A$9:A53,Città)+ISBLANK(Città)=0,COUNTIF(Città,\"<\"&Città)+1,\"\"),1)=IF(ISBLANK(Città),\"\",COUNTIF(Città,\"<\"&Città)+1),ROW(Città)-MIN(ROW(Città))+1),1),,1),0),1)","v":{"$error":"#NUM!"}},{"$f":"INDEX(Casa,SMALL(IF(SMALL(IF(COUNTIF($B$9:B53,Casa)+ISBLANK(Casa)=0,COUNTIF(Casa,\"<\"&Casa)+1,\"\"),1)=IF(ISBLANK(Casa),\"\",COUNTIF(Casa,\"<\"&Casa)+1),ROW(Casa)-MIN(ROW(Casa))+1),1),MATCH(MIN(IF(COUNTIF($B$9:B53,Casa)+ISBLANK(Casa)>0,\"\",COUNTIF(Casa,\"<\"&Casa)+1)),INDEX(IF(ISBLANK(Casa),\"\",COUNTIF(Casa,\"<\"&Casa)+1),SMALL(IF(SMALL(IF(COUNTIF($B$9:B53,Casa)+ISBLANK(Casa)=0,COUNTIF(Casa,\"<\"&Casa)+1,\"\"),1)=IF(ISBLANK(Casa),\"\",COUNTIF(Casa,\"<\"&Casa)+1),ROW(Casa)-MIN(ROW(Casa))+1),1),,1),0),1)","v":{"$error":"#NUM!"}},"Padova","NISSAN",128,3648000]
[{"$f":"INDEX(Città,SMALL(IF(SMALL(IF(COUNTIF($A$9:A54,Città)+ISBLANK(Città)=0,COUNTIF(Città,\"<\"&Città)+1,\"\"),1)=IF(ISBLANK(Città),\"\",COUNTIF(Città,\"<\"&Città)+1),ROW(Città)-MIN(ROW(Città))+1),1),MATCH(MIN(IF(COUNTIF($A$9:A54,Città)+ISBLANK(Città)>0,\"\",COUNTIF(Città,\"<\"&Città)+1)),INDEX(IF(ISBLANK(Città),\"\",COUNTIF(Città,\"<\"&Città)+1),SMALL(IF(SMALL(IF(COUNTIF($A$9:A54,Città)+ISBLANK(Città)=0,COUNTIF(Città,\"<\"&Città)+1,\"\"),1)=IF(ISBLANK(Città),\"\",COUNTIF(Città,\"<\"&Città)+1),ROW(Città)-MIN(ROW(Città))+1),1),,1),0),1)","v":{"$error":"#NUM!"}},{"$f":"INDEX(Casa,SMALL(IF(SMALL(IF(COUNTIF($B$9:B54,Casa)+ISBLANK(Casa)=0,COUNTIF(Casa,\"<\"&Casa)+1,\"\"),1)=IF(ISBLANK(Casa),\"\",COUNTIF(Casa,\"<\"&Casa)+1),ROW(Casa)-MIN(ROW(Casa))+1),1),MATCH(MIN(IF(COUNTIF($B$9:B54,Casa)+ISBLANK(Casa)>0,\"\",COUNTIF(Casa,\"<\"&Casa)+1)),INDEX(IF(ISBLANK(Casa),\"\",COUNTIF(Casa,\"<\"&Casa)+1),SMALL(IF(SMALL(IF(COUNTIF($B$9:B54,Casa)+ISBLANK(Casa)=0,COUNTIF(Casa,\"<\"&Casa)+1,\"\"),1)=IF(ISBLANK(Casa),\"\",COUNTIF(Casa,\"<\"&Casa)+1),ROW(Casa)-MIN(ROW(Casa))+1),1),,1),0),1)","v":{"$error":"#NUM!"}},"Padova","GOLF",122,3599000]
[{"$f":"INDEX(Città,SMALL(IF(SMALL(IF(COUNTIF($A$9:A55,Città)+ISBLANK(Città)=0,COUNTIF(Città,\"<\"&Città)+1,\"\"),1)=IF(ISBLANK(Città),\"\",COUNTIF(Città,\"<\"&Città)+1),ROW(Città)-MIN(ROW(Città))+1),1),MATCH(MIN(IF(COUNTIF($A$9:A55,Città)+ISBLANK(Città)>0,\"\",COUNTIF(Città,\"<\"&Città)+1)),INDEX(IF(ISBLANK(Città),\"\",COUNTIF(Città,\"<\"&Città)+1),SMALL(IF(SMALL(IF(COUNTIF($A$9:A55,Città)+ISBLANK(Città)=0,COUNTIF(Città,\"<\"&Città)+1,\"\"),1)=IF(ISBLANK(Città),\"\",COUNTIF(Città,\"<\"&Città)+1),ROW(Città)-MIN(ROW(Città))+1),1),,1),0),1)","v":{"$error":"#NUM!"}},{"$f":"INDEX(Casa,SMALL(IF(SMALL(IF(COUNTIF($B$9:B55,Casa)+ISBLANK(Casa)=0,COUNTIF(Casa,\"<\"&Casa)+1,\"\"),1)=IF(ISBLANK(Casa),\"\",COUNTIF(Casa,\"<\"&Casa)+1),ROW(Casa)-MIN(ROW(Casa))+1),1),MATCH(MIN(IF(COUNTIF($B$9:B55,Casa)+ISBLANK(Casa)>0,\"\",COUNTIF(Casa,\"<\"&Casa)+1)),INDEX(IF(ISBLANK(Casa),\"\",COUNTIF(Casa,\"<\"&Casa)+1),SMALL(IF(SMALL(IF(COUNTIF($B$9:B55,Casa)+ISBLANK(Casa)=0,COUNTIF(Casa,\"<\"&Casa)+1,\"\"),1)=IF(ISBLANK(Casa),\"\",COUNTIF(Casa,\"<\"&Casa)+1),ROW(Casa)-MIN(ROW(Casa))+1),1),,1),0),1)","v":{"$error":"#NUM!"}},"Padova","RENAULT",114,3059760]
[{"$f":"INDEX(Città,SMALL(IF(SMALL(IF(COUNTIF($A$9:A56,Città)+ISBLANK(Città)=0,COUNTIF(Città,\"<\"&Città)+1,\"\"),1)=IF(ISBLANK(Città),\"\",COUNTIF(Città,\"<\"&Città)+1),ROW(Città)-MIN(ROW(Città))+1),1),MATCH(MIN(IF(COUNTIF($A$9:A56,Città)+ISBLANK(Città)>0,\"\",COUNTIF(Città,\"<\"&Città)+1)),INDEX(IF(ISBLANK(Città),\"\",COUNTIF(Città,\"<\"&Città)+1),SMALL(IF(SMALL(IF(COUNTIF($A$9:A56,Città)+ISBLANK(Città)=0,COUNTIF(Città,\"<\"&Città)+1,\"\"),1)=IF(ISBLANK(Città),\"\",COUNTIF(Città,\"<\"&Città)+1),ROW(Città)-MIN(ROW(Città))+1),1),,1),0),1)","v":{"$error":"#NUM!"}},{"$f":"INDEX(Casa,SMALL(IF(SMALL(IF(COUNTIF($B$9:B56,Casa)+ISBLANK(Casa)=0,COUNTIF(Casa,\"<\"&Casa)+1,\"\"),1)=IF(ISBLANK(Casa),\"\",COUNTIF(Casa,\"<\"&Casa)+1),ROW(Casa)-MIN(ROW(Casa))+1),1),MATCH(MIN(IF(COUNTIF($B$9:B56,Casa)+ISBLANK(Casa)>0,\"\",COUNTIF(Casa,\"<\"&Casa)+1)),INDEX(IF(ISBLANK(Casa),\"\",COUNTIF(Casa,\"<\"&Casa)+1),SMALL(IF(SMALL(IF(COUNTIF($B$9:B56,Casa)+ISBLANK(Casa)=0,COUNTIF(Casa,\"<\"&Casa)+1,\"\"),1)=IF(ISBLANK(Casa),\"\",COUNTIF(Casa,\"<\"&Casa)+1),ROW(Casa)-MIN(ROW(Casa))+1),1),,1),0),1)","v":{"$error":"#NUM!"}},"Padova","BMW",108,3418200]
[{"$f":"INDEX(Città,SMALL(IF(SMALL(IF(COUNTIF($A$9:A57,Città)+ISBLANK(Città)=0,COUNTIF(Città,\"<\"&Città)+1,\"\"),1)=IF(ISBLANK(Città),\"\",COUNTIF(Città,\"<\"&Città)+1),ROW(Città)-MIN(ROW(Città))+1),1),MATCH(MIN(IF(COUNTIF($A$9:A57,Città)+ISBLANK(Città)>0,\"\",COUNTIF(Città,\"<\"&Città)+1)),INDEX(IF(ISBLANK(Città),\"\",COUNTIF(Città,\"<\"&Città)+1),SMALL(IF(SMALL(IF(COUNTIF($A$9:A57,Città)+ISBLANK(Città)=0,COUNTIF(Città,\"<\"&Città)+1,\"\"),1)=IF(ISBLANK(Città),\"\",COUNTIF(Città,\"<\"&Città)+1),ROW(Città)-MIN(ROW(Città))+1),1),,1),0),1)","v":{"$error":"#NUM!"}},{"$f":"INDEX(Casa,SMALL(IF(SMALL(IF(COUNTIF($B$9:B57,Casa)+ISBLANK(Casa)=0,COUNTIF(Casa,\"<\"&Casa)+1,\"\"),1)=IF(ISBLANK(Casa),\"\",COUNTIF(Casa,\"<\"&Casa)+1),ROW(Casa)-MIN(ROW(Casa))+1),1),MATCH(MIN(IF(COUNTIF($B$9:B57,Casa)+ISBLANK(Casa)>0,\"\",COUNTIF(Casa,\"<\"&Casa)+1)),INDEX(IF(ISBLANK(Casa),\"\",COUNTIF(Casa,\"<\"&Casa)+1),SMALL(IF(SMALL(IF(COUNTIF($B$9:B57,Casa)+ISBLANK(Casa)=0,COUNTIF(Casa,\"<\"&Casa)+1,\"\"),1)=IF(ISBLANK(Casa),\"\",COUNTIF(Casa,\"<\"&Casa)+1),ROW(Casa)-MIN(ROW(Casa))+1),1),,1),0),1)","v":{"$error":"#NUM!"}},"Palermo","BMW",141,4462650]
[{"$f":"INDEX(Città,SMALL(IF(SMALL(IF(COUNTIF($A$9:A58,Città)+ISBLANK(Città)=0,COUNTIF(Città,\"<\"&Città)+1,\"\"),1)=IF(ISBLANK(Città),\"\",COUNTIF(Città,\"<\"&Città)+1),ROW(Città)-MIN(ROW(Città))+1),1),MATCH(MIN(IF(COUNTIF($A$9:A58,Città)+ISBLANK(Città)>0,\"\",COUNTIF(Città,\"<\"&Città)+1)),INDEX(IF(ISBLANK(Città),\"\",COUNTIF(Città,\"<\"&Città)+1),SMALL(IF(SMALL(IF(COUNTIF($A$9:A58,Città)+ISBLANK(Città)=0,COUNTIF(Città,\"<\"&Città)+1,\"\"),1)=IF(ISBLANK(Città),\"\",COUNTIF(Città,\"<\"&Città)+1),ROW(Città)-MIN(ROW(Città))+1),1),,1),0),1)","v":{"$error":"#NUM!"}},{"$f":"INDEX(Casa,SMALL(IF(SMALL(IF(COUNTIF($B$9:B58,Casa)+ISBLANK(Casa)=0,COUNTIF(Casa,\"<\"&Casa)+1,\"\"),1)=IF(ISBLANK(Casa),\"\",COUNTIF(Casa,\"<\"&Casa)+1),ROW(Casa)-MIN(ROW(Casa))+1),1),MATCH(MIN(IF(COUNTIF($B$9:B58,Casa)+ISBLANK(Casa)>0,\"\",COUNTIF(Casa,\"<\"&Casa)+1)),INDEX(IF(ISBLANK(Casa),\"\",COUNTIF(Casa,\"<\"&Casa)+1),SMALL(IF(SMALL(IF(COUNTIF($B$9:B58,Casa)+ISBLANK(Casa)=0,COUNTIF(Casa,\"<\"&Casa)+1,\"\"),1)=IF(ISBLANK(Casa),\"\",COUNTIF(Casa,\"<\"&Casa)+1),ROW(Casa)-MIN(ROW(Casa))+1),1),,1),0),1)","v":{"$error":"#NUM!"}},"Palermo","RENAULT",138,3703920]
[{"$f":"INDEX(Città,SMALL(IF(SMALL(IF(COUNTIF($A$9:A59,Città)+ISBLANK(Città)=0,COUNTIF(Città,\"<\"&Città)+1,\"\"),1)=IF(ISBLANK(Città),\"\",COUNTIF(Città,\"<\"&Città)+1),ROW(Città)-MIN(ROW(Città))+1),1),MATCH(MIN(IF(COUNTIF($A$9:A59,Città)+ISBLANK(Città)>0,\"\",COUNTIF(Città,\"<\"&Città)+1)),INDEX(IF(ISBLANK(Città),\"\",COUNTIF(Città,\"<\"&Città)+1),SMALL(IF(SMALL(IF(COUNTIF($A$9:A59,Città)+ISBLANK(Città)=0,COUNTIF(Città,\"<\"&Città)+1,\"\"),1)=IF(ISBLANK(Città),\"\",COUNTIF(Città,\"<\"&Città)+1),ROW(Città)-MIN(ROW(Città))+1),1),,1),0),1)","v":{"$error":"#NUM!"}},{"$f":"INDEX(Casa,SMALL(IF(SMALL(IF(COUNTIF($B$9:B59,Casa)+ISBLANK(Casa)=0,COUNTIF(Casa,\"<\"&Casa)+1,\"\"),1)=IF(ISBLANK(Casa),\"\",COUNTIF(Casa,\"<\"&Casa)+1),ROW(Casa)-MIN(ROW(Casa))+1),1),MATCH(MIN(IF(COUNTIF($B$9:B59,Casa)+ISBLANK(Casa)>0,\"\",COUNTIF(Casa,\"<\"&Casa)+1)),INDEX(IF(ISBLANK(Casa),\"\",COUNTIF(Casa,\"<\"&Casa)+1),SMALL(IF(SMALL(IF(COUNTIF($B$9:B59,Casa)+ISBLANK(Casa)=0,COUNTIF(Casa,\"<\"&Casa)+1,\"\"),1)=IF(ISBLANK(Casa),\"\",COUNTIF(Casa,\"<\"&Casa)+1),ROW(Casa)-MIN(ROW(Casa))+1),1),,1),0),1)","v":{"$error":"#NUM!"}},"Palermo","GOLF",125,3687500]
[{"$f":"INDEX(Città,SMALL(IF(SMALL(IF(COUNTIF($A$9:A60,Città)+ISBLANK(Città)=0,COUNTIF(Città,\"<\"&Città)+1,\"\"),1)=IF(ISBLANK(Città),\"\",COUNTIF(Città,\"<\"&Città)+1),ROW(Città)-MIN(ROW(Città))+1),1),MATCH(MIN(IF(COUNTIF($A$9:A60,Città)+ISBLANK(Città)>0,\"\",COUNTIF(Città,\"<\"&Città)+1)),INDEX(IF(ISBLANK(Città),\"\",COUNTIF(Città,\"<\"&Città)+1),SMALL(IF(SMALL(IF(COUNTIF($A$9:A60,Città)+ISBLANK(Città)=0,COUNTIF(Città,\"<\"&Città)+1,\"\"),1)=IF(ISBLANK(Città),\"\",COUNTIF(Città,\"<\"&Città)+1),ROW(Città)-MIN(ROW(Città))+1),1),,1),0),1)","v":{"$error":"#NUM!"}},{"$f":"INDEX(Casa,SMALL(IF(SMALL(IF(COUNTIF($B$9:B60,Casa)+ISBLANK(Casa)=0,COUNTIF(Casa,\"<\"&Casa)+1,\"\"),1)=IF(ISBLANK(Casa),\"\",COUNTIF(Casa,\"<\"&Casa)+1),ROW(Casa)-MIN(ROW(Casa))+1),1),MATCH(MIN(IF(COUNTIF($B$9:B60,Casa)+ISBLANK(Casa)>0,\"\",COUNTIF(Casa,\"<\"&Casa)+1)),INDEX(IF(ISBLANK(Casa),\"\",COUNTIF(Casa,\"<\"&Casa)+1),SMALL(IF(SMALL(IF(COUNTIF($B$9:B60,Casa)+ISBLANK(Casa)=0,COUNTIF(Casa,\"<\"&Casa)+1,\"\"),1)=IF(ISBLANK(Casa),\"\",COUNTIF(Casa,\"<\"&Casa)+1),ROW(Casa)-MIN(ROW(Casa))+1),1),,1),0),1)","v":{"$error":"#NUM!"}},"Palermo","MERCEDES",118,3970700]
[{"$f":"INDEX(Città,SMALL(IF(SMALL(IF(COUNTIF($A$9:A61,Città)+ISBLANK(Città)=0,COUNTIF(Città,\"<\"&Città)+1,\"\"),1)=IF(ISBLANK(Città),\"\",COUNTIF(Città,\"<\"&Città)+1),ROW(Città)-MIN(ROW(Città))+1),1),MATCH(MIN(IF(COUNTIF($A$9:A61,Città)+ISBLANK(Città)>0,\"\",COUNTIF(Città,\"<\"&Città)+1)),INDEX(IF(ISBLANK(Città),\"\",COUNTIF(Città,\"<\"&Città)+1),SMALL(IF(SMALL(IF(COUNTIF($A$9:A61,Città)+ISBLANK(Città)=0,COUNTIF(Città,\"<\"&Città)+1,\"\"),1)=IF(ISBLANK(Città),\"\",COUNTIF(Città,\"<\"&Città)+1),ROW(Città)-MIN(ROW(Città))+1),1),,1),0),1)","v":{"$error":"#NUM!"}},{"$f":"INDEX(Casa,SMALL(IF(SMALL(IF(COUNTIF($B$9:B61,Casa)+ISBLANK(Casa)=0,COUNTIF(Casa,\"<\"&Casa)+1,\"\"),1)=IF(ISBLANK(Casa),\"\",COUNTIF(Casa,\"<\"&Casa)+1),ROW(Casa)-MIN(ROW(Casa))+1),1),MATCH(MIN(IF(COUNTIF($B$9:B61,Casa)+ISBLANK(Casa)>0,\"\",COUNTIF(Casa,\"<\"&Casa)+1)),INDEX(IF(ISBLANK(Casa),\"\",COUNTIF(Casa,\"<\"&Casa)+1),SMALL(IF(SMALL(IF(COUNTIF($B$9:B61,Casa)+ISBLANK(Casa)=0,COUNTIF(Casa,\"<\"&Casa)+1,\"\"),1)=IF(ISBLANK(Casa),\"\",COUNTIF(Casa,\"<\"&Casa)+1),ROW(Casa)-MIN(ROW(Casa))+1),1),,1),0),1)","v":{"$error":"#NUM!"}},"Palermo","NISSAN",109,3106500]
[{"$f":"INDEX(Città,SMALL(IF(SMALL(IF(COUNTIF($A$9:A62,Città)+ISBLANK(Città)=0,COUNTIF(Città,\"<\"&Città)+1,\"\"),1)=IF(ISBLANK(Città),\"\",COUNTIF(Città,\"<\"&Città)+1),ROW(Città)-MIN(ROW(Città))+1),1),MATCH(MIN(IF(COUNTIF($A$9:A62,Città)+ISBLANK(Città)>0,\"\",COUNTIF(Città,\"<\"&Città)+1)),INDEX(IF(ISBLANK(Città),\"\",COUNTIF(Città,\"<\"&Città)+1),SMALL(IF(SMALL(IF(COUNTIF($A$9:A62,Città)+ISBLANK(Città)=0,COUNTIF(Città,\"<\"&Città)+1,\"\"),1)=IF(ISBLANK(Città),\"\",COUNTIF(Città,\"<\"&Città)+1),ROW(Città)-MIN(ROW(Città))+1),1),,1),0),1)","v":{"$error":"#NUM!"}},{"$f":"INDEX(Casa,SMALL(IF(SMALL(IF(COUNTIF($B$9:B62,Casa)+ISBLANK(Casa)=0,COUNTIF(Casa,\"<\"&Casa)+1,\"\"),1)=IF(ISBLANK(Casa),\"\",COUNTIF(Casa,\"<\"&Casa)+1),ROW(Casa)-MIN(ROW(Casa))+1),1),MATCH(MIN(IF(COUNTIF($B$9:B62,Casa)+ISBLANK(Casa)>0,\"\",COUNTIF(Casa,\"<\"&Casa)+1)),INDEX(IF(ISBLANK(Casa),\"\",COUNTIF(Casa,\"<\"&Casa)+1),SMALL(IF(SMALL(IF(COUNTIF($B$9:B62,Casa)+ISBLANK(Casa)=0,COUNTIF(Casa,\"<\"&Casa)+1,\"\"),1)=IF(ISBLANK(Casa),\"\",COUNTIF(Casa,\"<\"&Casa)+1),ROW(Casa)-MIN(ROW(Casa))+1),1),,1),0),1)","v":{"$error":"#NUM!"}},"Palermo","AUDI",97,3074900]
[{"$f":"INDEX(Città,SMALL(IF(SMALL(IF(COUNTIF($A$9:A63,Città)+ISBLANK(Città)=0,COUNTIF(Città,\"<\"&Città)+1,\"\"),1)=IF(ISBLANK(Città),\"\",COUNTIF(Città,\"<\"&Città)+1),ROW(Città)-MIN(ROW(Città))+1),1),MATCH(MIN(IF(COUNTIF($A$9:A63,Città)+ISBLANK(Città)>0,\"\",COUNTIF(Città,\"<\"&Città)+1)),INDEX(IF(ISBLANK(Città),\"\",COUNTIF(Città,\"<\"&Città)+1),SMALL(IF(SMALL(IF(COUNTIF($A$9:A63,Città)+ISBLANK(Città)=0,COUNTIF(Città,\"<\"&Città)+1,\"\"),1)=IF(ISBLANK(Città),\"\",COUNTIF(Città,\"<\"&Città)+1),ROW(Città)-MIN(ROW(Città))+1),1),,1),0),1)","v":{"$error":"#NUM!"}},{"$f":"INDEX(Casa,SMALL(IF(SMALL(IF(COUNTIF($B$9:B63,Casa)+ISBLANK(Casa)=0,COUNTIF(Casa,\"<\"&Casa)+1,\"\"),1)=IF(ISBLANK(Casa),\"\",COUNTIF(Casa,\"<\"&Casa)+1),ROW(Casa)-MIN(ROW(Casa))+1),1),MATCH(MIN(IF(COUNTIF($B$9:B63,Casa)+ISBLANK(Casa)>0,\"\",COUNTIF(Casa,\"<\"&Casa)+1)),INDEX(IF(ISBLANK(Casa),\"\",COUNTIF(Casa,\"<\"&Casa)+1),SMALL(IF(SMALL(IF(COUNTIF($B$9:B63,Casa)+ISBLANK(Casa)=0,COUNTIF(Casa,\"<\"&Casa)+1,\"\"),1)=IF(ISBLANK(Casa),\"\",COUNTIF(Casa,\"<\"&Casa)+1),ROW(Casa)-MIN(ROW(Casa))+1),1),,1),0),1)","v":{"$error":"#NUM!"}},"Roma","BMW",208,6583200]
[{"$f":"INDEX(Città,SMALL(IF(SMALL(IF(COUNTIF($A$9:A64,Città)+ISBLANK(Città)=0,COUNTIF(Città,\"<\"&Città)+1,\"\"),1)=IF(ISBLANK(Città),\"\",COUNTIF(Città,\"<\"&Città)+1),ROW(Città)-MIN(ROW(Città))+1),1),MATCH(MIN(IF(COUNTIF($A$9:A64,Città)+ISBLANK(Città)>0,\"\",COUNTIF(Città,\"<\"&Città)+1)),INDEX(IF(ISBLANK(Città),\"\",COUNTIF(Città,\"<\"&Città)+1),SMALL(IF(SMALL(IF(COUNTIF($A$9:A64,Città)+ISBLANK(Città)=0,COUNTIF(Città,\"<\"&Città)+1,\"\"),1)=IF(ISBLANK(Città),\"\",COUNTIF(Città,\"<\"&Città)+1),ROW(Città)-MIN(ROW(Città))+1),1),,1),0),1)","v":{"$error":"#NUM!"}},{"$f":"INDEX(Casa,SMALL(IF(SMALL(IF(COUNTIF($B$9:B64,Casa)+ISBLANK(Casa)=0,COUNTIF(Casa,\"<\"&Casa)+1,\"\"),1)=IF(ISBLANK(Casa),\"\",COUNTIF(Casa,\"<\"&Casa)+1),ROW(Casa)-MIN(ROW(Casa))+1),1),MATCH(MIN(IF(COUNTIF($B$9:B64,Casa)+ISBLANK(Casa)>0,\"\",COUNTIF(Casa,\"<\"&Casa)+1)),INDEX(IF(ISBLANK(Casa),\"\",COUNTIF(Casa,\"<\"&Casa)+1),SMALL(IF(SMALL(IF(COUNTIF($B$9:B64,Casa)+ISBLANK(Casa)=0,COUNTIF(Casa,\"<\"&Casa)+1,\"\"),1)=IF(ISBLANK(Casa),\"\",COUNTIF(Casa,\"<\"&Casa)+1),ROW(Casa)-MIN(ROW(Casa))+1),1),,1),0),1)","v":{"$error":"#NUM!"}},"Roma","MERCEDES",192,6460800]
[{"$f":"INDEX(Città,SMALL(IF(SMALL(IF(COUNTIF($A$9:A65,Città)+ISBLANK(Città)=0,COUNTIF(Città,\"<\"&Città)+1,\"\"),1)=IF(ISBLANK(Città),\"\",COUNTIF(Città,\"<\"&Città)+1),ROW(Città)-MIN(ROW(Città))+1),1),MATCH(MIN(IF(COUNTIF($A$9:A65,Città)+ISBLANK(Città)>0,\"\",COUNTIF(Città,\"<\"&Città)+1)),INDEX(IF(ISBLANK(Città),\"\",COUNTIF(Città,\"<\"&Città)+1),SMALL(IF(SMALL(IF(COUNTIF($A$9:A65,Città)+ISBLANK(Città)=0,COUNTIF(Città,\"<\"&Città)+1,\"\"),1)=IF(ISBLANK(Città),\"\",COUNTIF(Città,\"<\"&Città)+1),ROW(Città)-MIN(ROW(Città))+1),1),,1),0),1)","v":{"$error":"#NUM!"}},{"$f":"INDEX(Casa,SMALL(IF(SMALL(IF(COUNTIF($B$9:B65,Casa)+ISBLANK(Casa)=0,COUNTIF(Casa,\"<\"&Casa)+1,\"\"),1)=IF(ISBLANK(Casa),\"\",COUNTIF(Casa,\"<\"&Casa)+1),ROW(Casa)-MIN(ROW(Casa))+1),1),MATCH(MIN(IF(COUNTIF($B$9:B65,Casa)+ISBLANK(Casa)>0,\"\",COUNTIF(Casa,\"<\"&Casa)+1)),INDEX(IF(ISBLANK(Casa),\"\",COUNTIF(Casa,\"<\"&Casa)+1),SMALL(IF(SMALL(IF(COUNTIF($B$9:B65,Casa)+ISBLANK(Casa)=0,COUNTIF(Casa,\"<\"&Casa)+1,\"\"),1)=IF(ISBLANK(Casa),\"\",COUNTIF(Casa,\"<\"&Casa)+1),ROW(Casa)-MIN(ROW(Casa))+1),1),,1),0),1)","v":{"$error":"#NUM!"}},"Roma","NISSAN",184,5244000]
[{"$f":"INDEX(Città,SMALL(IF(SMALL(IF(COUNTIF($A$9:A66,Città)+ISBLANK(Città)=0,COUNTIF(Città,\"<\"&Città)+1,\"\"),1)=IF(ISBLANK(Città),\"\",COUNTIF(Città,\"<\"&Città)+1),ROW(Città)-MIN(ROW(Città))+1),1),MATCH(MIN(IF(COUNTIF($A$9:A66,Città)+ISBLANK(Città)>0,\"\",COUNTIF(Città,\"<\"&Città)+1)),INDEX(IF(ISBLANK(Città),\"\",COUNTIF(Città,\"<\"&Città)+1),SMALL(IF(SMALL(IF(COUNTIF($A$9:A66,Città)+ISBLANK(Città)=0,COUNTIF(Città,\"<\"&Città)+1,\"\"),1)=IF(ISBLANK(Città),\"\",COUNTIF(Città,\"<\"&Città)+1),ROW(Città)-MIN(ROW(Città))+1),1),,1),0),1)","v":{"$error":"#NUM!"}},{"$f":"INDEX(Casa,SMALL(IF(SMALL(IF(COUNTIF($B$9:B66,Casa)+ISBLANK(Casa)=0,COUNTIF(Casa,\"<\"&Casa)+1,\"\"),1)=IF(ISBLANK(Casa),\"\",COUNTIF(Casa,\"<\"&Casa)+1),ROW(Casa)-MIN(ROW(Casa))+1),1),MATCH(MIN(IF(COUNTIF($B$9:B66,Casa)+ISBLANK(Casa)>0,\"\",COUNTIF(Casa,\"<\"&Casa)+1)),INDEX(IF(ISBLANK(Casa),\"\",COUNTIF(Casa,\"<\"&Casa)+1),SMALL(IF(SMALL(IF(COUNTIF($B$9:B66,Casa)+ISBLANK(Casa)=0,COUNTIF(Casa,\"<\"&Casa)+1,\"\"),1)=IF(ISBLANK(Casa),\"\",COUNTIF(Casa,\"<\"&Casa)+1),ROW(Casa)-MIN(ROW(Casa))+1),1),,1),0),1)","v":{"$error":"#NUM!"}},"Roma","GOLF",167,4926500]
[{"$f":"INDEX(Città,SMALL(IF(SMALL(IF(COUNTIF($A$9:A67,Città)+ISBLANK(Città)=0,COUNTIF(Città,\"<\"&Città)+1,\"\"),1)=IF(ISBLANK(Città),\"\",COUNTIF(Città,\"<\"&Città)+1),ROW(Città)-MIN(ROW(Città))+1),1),MATCH(MIN(IF(COUNTIF($A$9:A67,Città)+ISBLANK(Città)>0,\"\",COUNTIF(Città,\"<\"&Città)+1)),INDEX(IF(ISBLANK(Città),\"\",COUNTIF(Città,\"<\"&Città)+1),SMALL(IF(SMALL(IF(COUNTIF($A$9:A67,Città)+ISBLANK(Città)=0,COUNTIF(Città,\"<\"&Città)+1,\"\"),1)=IF(ISBLANK(Città),\"\",COUNTIF(Città,\"<\"&Città)+1),ROW(Città)-MIN(ROW(Città))+1),1),,1),0),1)","v":{"$error":"#NUM!"}},{"$f":"INDEX(Casa,SMALL(IF(SMALL(IF(COUNTIF($B$9:B67,Casa)+ISBLANK(Casa)=0,COUNTIF(Casa,\"<\"&Casa)+1,\"\"),1)=IF(ISBLANK(Casa),\"\",COUNTIF(Casa,\"<\"&Casa)+1),ROW(Casa)-MIN(ROW(Casa))+1),1),MATCH(MIN(IF(COUNTIF($B$9:B67,Casa)+ISBLANK(Casa)>0,\"\",COUNTIF(Casa,\"<\"&Casa)+1)),INDEX(IF(ISBLANK(Casa),\"\",COUNTIF(Casa,\"<\"&Casa)+1),SMALL(IF(SMALL(IF(COUNTIF($B$9:B67,Casa)+ISBLANK(Casa)=0,COUNTIF(Casa,\"<\"&Casa)+1,\"\"),1)=IF(ISBLANK(Casa),\"\",COUNTIF(Casa,\"<\"&Casa)+1),ROW(Casa)-MIN(ROW(Casa))+1),1),,1),0),1)","v":{"$error":"#NUM!"}},"Roma","RENAULT",148,3972320]
[{"$f":"INDEX(Città,SMALL(IF(SMALL(IF(COUNTIF($A$9:A68,Città)+ISBLANK(Città)=0,COUNTIF(Città,\"<\"&Città)+1,\"\"),1)=IF(ISBLANK(Città),\"\",COUNTIF(Città,\"<\"&Città)+1),ROW(Città)-MIN(ROW(Città))+1),1),MATCH(MIN(IF(COUNTIF($A$9:A68,Città)+ISBLANK(Città)>0,\"\",COUNTIF(Città,\"<\"&Città)+1)),INDEX(IF(ISBLANK(Città),\"\",COUNTIF(Città,\"<\"&Città)+1),SMALL(IF(SMALL(IF(COUNTIF($A$9:A68,Città)+ISBLANK(Città)=0,COUNTIF(Città,\"<\"&Città)+1,\"\"),1)=IF(ISBLANK(Città),\"\",COUNTIF(Città,\"<\"&Città)+1),ROW(Città)-MIN(ROW(Città))+1),1),,1),0),1)","v":{"$error":"#NUM!"}},{"$f":"INDEX(Casa,SMALL(IF(SMALL(IF(COUNTIF($B$9:B68,Casa)+ISBLANK(Casa)=0,COUNTIF(Casa,\"<\"&Casa)+1,\"\"),1)=IF(ISBLANK(Casa),\"\",COUNTIF(Casa,\"<\"&Casa)+1),ROW(Casa)-MIN(ROW(Casa))+1),1),MATCH(MIN(IF(COUNTIF($B$9:B68,Casa)+ISBLANK(Casa)>0,\"\",COUNTIF(Casa,\"<\"&Casa)+1)),INDEX(IF(ISBLANK(Casa),\"\",COUNTIF(Casa,\"<\"&Casa)+1),SMALL(IF(SMALL(IF(COUNTIF($B$9:B68,Casa)+ISBLANK(Casa)=0,COUNTIF(Casa,\"<\"&Casa)+1,\"\"),1)=IF(ISBLANK(Casa),\"\",COUNTIF(Casa,\"<\"&Casa)+1),ROW(Casa)-MIN(ROW(Casa))+1),1),,1),0),1)","v":{"$error":"#NUM!"}},"Roma","AUDI",132,4184400]
[{"$f":"INDEX(Città,SMALL(IF(SMALL(IF(COUNTIF($A$9:A69,Città)+ISBLANK(Città)=0,COUNTIF(Città,\"<\"&Città)+1,\"\"),1)=IF(ISBLANK(Città),\"\",COUNTIF(Città,\"<\"&Città)+1),ROW(Città)-MIN(ROW(Città))+1),1),MATCH(MIN(IF(COUNTIF($A$9:A69,Città)+ISBLANK(Città)>0,\"\",COUNTIF(Città,\"<\"&Città)+1)),INDEX(IF(ISBLANK(Città),\"\",COUNTIF(Città,\"<\"&Città)+1),SMALL(IF(SMALL(IF(COUNTIF($A$9:A69,Città)+ISBLANK(Città)=0,COUNTIF(Città,\"<\"&Città)+1,\"\"),1)=IF(ISBLANK(Città),\"\",COUNTIF(Città,\"<\"&Città)+1),ROW(Città)-MIN(ROW(Città))+1),1),,1),0),1)","v":{"$error":"#NUM!"}},{"$f":"INDEX(Casa,SMALL(IF(SMALL(IF(COUNTIF($B$9:B69,Casa)+ISBLANK(Casa)=0,COUNTIF(Casa,\"<\"&Casa)+1,\"\"),1)=IF(ISBLANK(Casa),\"\",COUNTIF(Casa,\"<\"&Casa)+1),ROW(Casa)-MIN(ROW(Casa))+1),1),MATCH(MIN(IF(COUNTIF($B$9:B69,Casa)+ISBLANK(Casa)>0,\"\",COUNTIF(Casa,\"<\"&Casa)+1)),INDEX(IF(ISBLANK(Casa),\"\",COUNTIF(Casa,\"<\"&Casa)+1),SMALL(IF(SMALL(IF(COUNTIF($B$9:B69,Casa)+ISBLANK(Casa)=0,COUNTIF(Casa,\"<\"&Casa)+1,\"\"),1)=IF(ISBLANK(Casa),\"\",COUNTIF(Casa,\"<\"&Casa)+1),ROW(Casa)-MIN(ROW(Casa))+1),1),,1),0),1)","v":{"$error":"#NUM!"}},"Trieste","GOLF",109,3215500]
[{"$f":"INDEX(Città,SMALL(IF(SMALL(IF(COUNTIF($A$9:A70,Città)+ISBLANK(Città)=0,COUNTIF(Città,\"<\"&Città)+1,\"\"),1)=IF(ISBLANK(Città),\"\",COUNTIF(Città,\"<\"&Città)+1),ROW(Città)-MIN(ROW(Città))+1),1),MATCH(MIN(IF(COUNTIF($A$9:A70,Città)+ISBLANK(Città)>0,\"\",COUNTIF(Città,\"<\"&Città)+1)),INDEX(IF(ISBLANK(Città),\"\",COUNTIF(Città,\"<\"&Città)+1),SMALL(IF(SMALL(IF(COUNTIF($A$9:A70,Città)+ISBLANK(Città)=0,COUNTIF(Città,\"<\"&Città)+1,\"\"),1)=IF(ISBLANK(Città),\"\",COUNTIF(Città,\"<\"&Città)+1),ROW(Città)-MIN(ROW(Città))+1),1),,1),0),1)","v":{"$error":"#NUM!"}},{"$f":"INDEX(Casa,SMALL(IF(SMALL(IF(COUNTIF($B$9:B70,Casa)+ISBLANK(Casa)=0,COUNTIF(Casa,\"<\"&Casa)+1,\"\"),1)=IF(ISBLANK(Casa),\"\",COUNTIF(Casa,\"<\"&Casa)+1),ROW(Casa)-MIN(ROW(Casa))+1),1),MATCH(MIN(IF(COUNTIF($B$9:B70,Casa)+ISBLANK(Casa)>0,\"\",COUNTIF(Casa,\"<\"&Casa)+1)),INDEX(IF(ISBLANK(Casa),\"\",COUNTIF(Casa,\"<\"&Casa)+1),SMALL(IF(SMALL(IF(COUNTIF($B$9:B70,Casa)+ISBLANK(Casa)=0,COUNTIF(Casa,\"<\"&Casa)+1,\"\"),1)=IF(ISBLANK(Casa),\"\",COUNTIF(Casa,\"<\"&Casa)+1),ROW(Casa)-MIN(ROW(Casa))+1),1),,1),0),1)","v":{"$error":"#NUM!"}},"Trieste","AUDI",96,3043200]
[{"$f":"INDEX(Città,SMALL(IF(SMALL(IF(COUNTIF($A$9:A71,Città)+ISBLANK(Città)=0,COUNTIF(Città,\"<\"&Città)+1,\"\"),1)=IF(ISBLANK(Città),\"\",COUNTIF(Città,\"<\"&Città)+1),ROW(Città)-MIN(ROW(Città))+1),1),MATCH(MIN(IF(COUNTIF($A$9:A71,Città)+ISBLANK(Città)>0,\"\",COUNTIF(Città,\"<\"&Città)+1)),INDEX(IF(ISBLANK(Città),\"\",COUNTIF(Città,\"<\"&Città)+1),SMALL(IF(SMALL(IF(COUNTIF($A$9:A71,Città)+ISBLANK(Città)=0,COUNTIF(Città,\"<\"&Città)+1,\"\"),1)=IF(ISBLANK(Città),\"\",COUNTIF(Città,\"<\"&Città)+1),ROW(Città)-MIN(ROW(Città))+1),1),,1),0),1)","v":{"$error":"#NUM!"}},{"$f":"INDEX(Casa,SMALL(IF(SMALL(IF(COUNTIF($B$9:B71,Casa)+ISBLANK(Casa)=0,COUNTIF(Casa,\"<\"&Casa)+1,\"\"),1)=IF(ISBLANK(Casa),\"\",COUNTIF(Casa,\"<\"&Casa)+1),ROW(Casa)-MIN(ROW(Casa))+1),1),MATCH(MIN(IF(COUNTIF($B$9:B71,Casa)+ISBLANK(Casa)>0,\"\",COUNTIF(Casa,\"<\"&Casa)+1)),INDEX(IF(ISBLANK(Casa),\"\",COUNTIF(Casa,\"<\"&Casa)+1),SMALL(IF(SMALL(IF(COUNTIF($B$9:B71,Casa)+ISBLANK(Casa)=0,COUNTIF(Casa,\"<\"&Casa)+1,\"\"),1)=IF(ISBLANK(Casa),\"\",COUNTIF(Casa,\"<\"&Casa)+1),ROW(Casa)-MIN(ROW(Casa))+1),1),,1),0),1)","v":{"$error":"#NUM!"}},"Trieste","BMW",91,2880150]
[{"$f":"INDEX(Città,SMALL(IF(SMALL(IF(COUNTIF($A$9:A72,Città)+ISBLANK(Città)=0,COUNTIF(Città,\"<\"&Città)+1,\"\"),1)=IF(ISBLANK(Città),\"\",COUNTIF(Città,\"<\"&Città)+1),ROW(Città)-MIN(ROW(Città))+1),1),MATCH(MIN(IF(COUNTIF($A$9:A72,Città)+ISBLANK(Città)>0,\"\",COUNTIF(Città,\"<\"&Città)+1)),INDEX(IF(ISBLANK(Città),\"\",COUNTIF(Città,\"<\"&Città)+1),SMALL(IF(SMALL(IF(COUNTIF($A$9:A72,Città)+ISBLANK(Città)=0,COUNTIF(Città,\"<\"&Città)+1,\"\"),1)=IF(ISBLANK(Città),\"\",COUNTIF(Città,\"<\"&Città)+1),ROW(Città)-MIN(ROW(Città))+1),1),,1),0),1)","v":{"$error":"#NUM!"}},{"$f":"INDEX(Casa,SMALL(IF(SMALL(IF(COUNTIF($B$9:B72,Casa)+ISBLANK(Casa)=0,COUNTIF(Casa,\"<\"&Casa)+1,\"\"),1)=IF(ISBLANK(Casa),\"\",COUNTIF(Casa,\"<\"&Casa)+1),ROW(Casa)-MIN(ROW(Casa))+1),1),MATCH(MIN(IF(COUNTIF($B$9:B72,Casa)+ISBLANK(Casa)>0,\"\",COUNTIF(Casa,\"<\"&Casa)+1)),INDEX(IF(ISBLANK(Casa),\"\",COUNTIF(Casa,\"<\"&Casa)+1),SMALL(IF(SMALL(IF(COUNTIF($B$9:B72,Casa)+ISBLANK(Casa)=0,COUNTIF(Casa,\"<\"&Casa)+1,\"\"),1)=IF(ISBLANK(Casa),\"\",COUNTIF(Casa,\"<\"&Casa)+1),ROW(Casa)-MIN(ROW(Casa))+1),1),,1),0),1)","v":{"$error":"#NUM!"}},"Trieste","MERCEDES",84,2826600]
[{"$f":"INDEX(Città,SMALL(IF(SMALL(IF(COUNTIF($A$9:A73,Città)+ISBLANK(Città)=0,COUNTIF(Città,\"<\"&Città)+1,\"\"),1)=IF(ISBLANK(Città),\"\",COUNTIF(Città,\"<\"&Città)+1),ROW(Città)-MIN(ROW(Città))+1),1),MATCH(MIN(IF(COUNTIF($A$9:A73,Città)+ISBLANK(Città)>0,\"\",COUNTIF(Città,\"<\"&Città)+1)),INDEX(IF(ISBLANK(Città),\"\",COUNTIF(Città,\"<\"&Città)+1),SMALL(IF(SMALL(IF(COUNTIF($A$9:A73,Città)+ISBLANK(Città)=0,COUNTIF(Città,\"<\"&Città)+1,\"\"),1)=IF(ISBLANK(Città),\"\",COUNTIF(Città,\"<\"&Città)+1),ROW(Città)-MIN(ROW(Città))+1),1),,1),0),1)","v":{"$error":"#NUM!"}},{"$f":"INDEX(Casa,SMALL(IF(SMALL(IF(COUNTIF($B$9:B73,Casa)+ISBLANK(Casa)=0,COUNTIF(Casa,\"<\"&Casa)+1,\"\"),1)=IF(ISBLANK(Casa),\"\",COUNTIF(Casa,\"<\"&Casa)+1),ROW(Casa)-MIN(ROW(Casa))+1),1),MATCH(MIN(IF(COUNTIF($B$9:B73,Casa)+ISBLANK(Casa)>0,\"\",COUNTIF(Casa,\"<\"&Casa)+1)),INDEX(IF(ISBLANK(Casa),\"\",COUNTIF(Casa,\"<\"&Casa)+1),SMALL(IF(SMALL(IF(COUNTIF($B$9:B73,Casa)+ISBLANK(Casa)=0,COUNTIF(Casa,\"<\"&Casa)+1,\"\"),1)=IF(ISBLANK(Casa),\"\",COUNTIF(Casa,\"<\"&Casa)+1),ROW(Casa)-MIN(ROW(Casa))+1),1),,1),0),1)","v":{"$error":"#NUM!"}},"Trieste","NISSAN",81,2308500]
[{"$f":"INDEX(Città,SMALL(IF(SMALL(IF(COUNTIF($A$9:A74,Città)+ISBLANK(Città)=0,COUNTIF(Città,\"<\"&Città)+1,\"\"),1)=IF(ISBLANK(Città),\"\",COUNTIF(Città,\"<\"&Città)+1),ROW(Città)-MIN(ROW(Città))+1),1),MATCH(MIN(IF(COUNTIF($A$9:A74,Città)+ISBLANK(Città)>0,\"\",COUNTIF(Città,\"<\"&Città)+1)),INDEX(IF(ISBLANK(Città),\"\",COUNTIF(Città,\"<\"&Città)+1),SMALL(IF(SMALL(IF(COUNTIF($A$9:A74,Città)+ISBLANK(Città)=0,COUNTIF(Città,\"<\"&Città)+1,\"\"),1)=IF(ISBLANK(Città),\"\",COUNTIF(Città,\"<\"&Città)+1),ROW(Città)-MIN(ROW(Città))+1),1),,1),0),1)","v":{"$error":"#NUM!"}},{"$f":"INDEX(Casa,SMALL(IF(SMALL(IF(COUNTIF($B$9:B74,Casa)+ISBLANK(Casa)=0,COUNTIF(Casa,\"<\"&Casa)+1,\"\"),1)=IF(ISBLANK(Casa),\"\",COUNTIF(Casa,\"<\"&Casa)+1),ROW(Casa)-MIN(ROW(Casa))+1),1),MATCH(MIN(IF(COUNTIF($B$9:B74,Casa)+ISBLANK(Casa)>0,\"\",COUNTIF(Casa,\"<\"&Casa)+1)),INDEX(IF(ISBLANK(Casa),\"\",COUNTIF(Casa,\"<\"&Casa)+1),SMALL(IF(SMALL(IF(COUNTIF($B$9:B74,Casa)+ISBLANK(Casa)=0,COUNTIF(Casa,\"<\"&Casa)+1,\"\"),1)=IF(ISBLANK(Casa),\"\",COUNTIF(Casa,\"<\"&Casa)+1),ROW(Casa)-MIN(ROW(Casa))+1),1),,1),0),1)","v":{"$error":"#NUM!"}},"Trieste","RENAULT",74,1986160]
[{"$f":"INDEX(Città,SMALL(IF(SMALL(IF(COUNTIF($A$9:A75,Città)+ISBLANK(Città)=0,COUNTIF(Città,\"<\"&Città)+1,\"\"),1)=IF(ISBLANK(Città),\"\",COUNTIF(Città,\"<\"&Città)+1),ROW(Città)-MIN(ROW(Città))+1),1),MATCH(MIN(IF(COUNTIF($A$9:A75,Città)+ISBLANK(Città)>0,\"\",COUNTIF(Città,\"<\"&Città)+1)),INDEX(IF(ISBLANK(Città),\"\",COUNTIF(Città,\"<\"&Città)+1),SMALL(IF(SMALL(IF(COUNTIF($A$9:A75,Città)+ISBLANK(Città)=0,COUNTIF(Città,\"<\"&Città)+1,\"\"),1)=IF(ISBLANK(Città),\"\",COUNTIF(Città,\"<\"&Città)+1),ROW(Città)-MIN(ROW(Città))+1),1),,1),0),1)","v":{"$error":"#NUM!"}},{"$f":"INDEX(Casa,SMALL(IF(SMALL(IF(COUNTIF($B$9:B75,Casa)+ISBLANK(Casa)=0,COUNTIF(Casa,\"<\"&Casa)+1,\"\"),1)=IF(ISBLANK(Casa),\"\",COUNTIF(Casa,\"<\"&Casa)+1),ROW(Casa)-MIN(ROW(Casa))+1),1),MATCH(MIN(IF(COUNTIF($B$9:B75,Casa)+ISBLANK(Casa)>0,\"\",COUNTIF(Casa,\"<\"&Casa)+1)),INDEX(IF(ISBLANK(Casa),\"\",COUNTIF(Casa,\"<\"&Casa)+1),SMALL(IF(SMALL(IF(COUNTIF($B$9:B75,Casa)+ISBLANK(Casa)=0,COUNTIF(Casa,\"<\"&Casa)+1,\"\"),1)=IF(ISBLANK(Casa),\"\",COUNTIF(Casa,\"<\"&Casa)+1),ROW(Casa)-MIN(ROW(Casa))+1),1),,1),0),1)","v":{"$error":"#NUM!"}},"Udine","BMW",197,6235050]
[{"$f":"INDEX(Città,SMALL(IF(SMALL(IF(COUNTIF($A$9:A76,Città)+ISBLANK(Città)=0,COUNTIF(Città,\"<\"&Città)+1,\"\"),1)=IF(ISBLANK(Città),\"\",COUNTIF(Città,\"<\"&Città)+1),ROW(Città)-MIN(ROW(Città))+1),1),MATCH(MIN(IF(COUNTIF($A$9:A76,Città)+ISBLANK(Città)>0,\"\",COUNTIF(Città,\"<\"&Città)+1)),INDEX(IF(ISBLANK(Città),\"\",COUNTIF(Città,\"<\"&Città)+1),SMALL(IF(SMALL(IF(COUNTIF($A$9:A76,Città)+ISBLANK(Città)=0,COUNTIF(Città,\"<\"&Città)+1,\"\"),1)=IF(ISBLANK(Città),\"\",COUNTIF(Città,\"<\"&Città)+1),ROW(Città)-MIN(ROW(Città))+1),1),,1),0),1)","v":{"$error":"#NUM!"}},{"$f":"INDEX(Casa,SMALL(IF(SMALL(IF(COUNTIF($B$9:B76,Casa)+ISBLANK(Casa)=0,COUNTIF(Casa,\"<\"&Casa)+1,\"\"),1)=IF(ISBLANK(Casa),\"\",COUNTIF(Casa,\"<\"&Casa)+1),ROW(Casa)-MIN(ROW(Casa))+1),1),MATCH(MIN(IF(COUNTIF($B$9:B76,Casa)+ISBLANK(Casa)>0,\"\",COUNTIF(Casa,\"<\"&Casa)+1)),INDEX(IF(ISBLANK(Casa),\"\",COUNTIF(Casa,\"<\"&Casa)+1),SMALL(IF(SMALL(IF(COUNTIF($B$9:B76,Casa)+ISBLANK(Casa)=0,COUNTIF(Casa,\"<\"&Casa)+1,\"\"),1)=IF(ISBLANK(Casa),\"\",COUNTIF(Casa,\"<\"&Casa)+1),ROW(Casa)-MIN(ROW(Casa))+1),1),,1),0),1)","v":{"$error":"#NUM!"}},"Udine","GOLF",184,5428000]
[{"$f":"INDEX(Città,SMALL(IF(SMALL(IF(COUNTIF($A$9:A77,Città)+ISBLANK(Città)=0,COUNTIF(Città,\"<\"&Città)+1,\"\"),1)=IF(ISBLANK(Città),\"\",COUNTIF(Città,\"<\"&Città)+1),ROW(Città)-MIN(ROW(Città))+1),1),MATCH(MIN(IF(COUNTIF($A$9:A77,Città)+ISBLANK(Città)>0,\"\",COUNTIF(Città,\"<\"&Città)+1)),INDEX(IF(ISBLANK(Città),\"\",COUNTIF(Città,\"<\"&Città)+1),SMALL(IF(SMALL(IF(COUNTIF($A$9:A77,Città)+ISBLANK(Città)=0,COUNTIF(Città,\"<\"&Città)+1,\"\"),1)=IF(ISBLANK(Città),\"\",COUNTIF(Città,\"<\"&Città)+1),ROW(Città)-MIN(ROW(Città))+1),1),,1),0),1)","v":{"$error":"#NUM!"}},{"$f":"INDEX(Casa,SMALL(IF(SMALL(IF(COUNTIF($B$9:B77,Casa)+ISBLANK(Casa)=0,COUNTIF(Casa,\"<\"&Casa)+1,\"\"),1)=IF(ISBLANK(Casa),\"\",COUNTIF(Casa,\"<\"&Casa)+1),ROW(Casa)-MIN(ROW(Casa))+1),1),MATCH(MIN(IF(COUNTIF($B$9:B77,Casa)+ISBLANK(Casa)>0,\"\",COUNTIF(Casa,\"<\"&Casa)+1)),INDEX(IF(ISBLANK(Casa),\"\",COUNTIF(Casa,\"<\"&Casa)+1),SMALL(IF(SMALL(IF(COUNTIF($B$9:B77,Casa)+ISBLANK(Casa)=0,COUNTIF(Casa,\"<\"&Casa)+1,\"\"),1)=IF(ISBLANK(Casa),\"\",COUNTIF(Casa,\"<\"&Casa)+1),ROW(Casa)-MIN(ROW(Casa))+1),1),,1),0),1)","v":{"$error":"#NUM!"}},"Udine","NISSAN",164,4674000]
[{"$f":"INDEX(Città,SMALL(IF(SMALL(IF(COUNTIF($A$9:A78,Città)+ISBLANK(Città)=0,COUNTIF(Città,\"<\"&Città)+1,\"\"),1)=IF(ISBLANK(Città),\"\",COUNTIF(Città,\"<\"&Città)+1),ROW(Città)-MIN(ROW(Città))+1),1),MATCH(MIN(IF(COUNTIF($A$9:A78,Città)+ISBLANK(Città)>0,\"\",COUNTIF(Città,\"<\"&Città)+1)),INDEX(IF(ISBLANK(Città),\"\",COUNTIF(Città,\"<\"&Città)+1),SMALL(IF(SMALL(IF(COUNTIF($A$9:A78,Città)+ISBLANK(Città)=0,COUNTIF(Città,\"<\"&Città)+1,\"\"),1)=IF(ISBLANK(Città),\"\",COUNTIF(Città,\"<\"&Città)+1),ROW(Città)-MIN(ROW(Città))+1),1),,1),0),1)","v":{"$error":"#NUM!"}},{"$f":"INDEX(Casa,SMALL(IF(SMALL(IF(COUNTIF($B$9:B78,Casa)+ISBLANK(Casa)=0,COUNTIF(Casa,\"<\"&Casa)+1,\"\"),1)=IF(ISBLANK(Casa),\"\",COUNTIF(Casa,\"<\"&Casa)+1),ROW(Casa)-MIN(ROW(Casa))+1),1),MATCH(MIN(IF(COUNTIF($B$9:B78,Casa)+ISBLANK(Casa)>0,\"\",COUNTIF(Casa,\"<\"&Casa)+1)),INDEX(IF(ISBLANK(Casa),\"\",COUNTIF(Casa,\"<\"&Casa)+1),SMALL(IF(SMALL(IF(COUNTIF($B$9:B78,Casa)+ISBLANK(Casa)=0,COUNTIF(Casa,\"<\"&Casa)+1,\"\"),1)=IF(ISBLANK(Casa),\"\",COUNTIF(Casa,\"<\"&Casa)+1),ROW(Casa)-MIN(ROW(Casa))+1),1),,1),0),1)","v":{"$error":"#NUM!"}},"Udine","MERCEDES",154,5182100]
[{"$f":"INDEX(Città,SMALL(IF(SMALL(IF(COUNTIF($A$9:A79,Città)+ISBLANK(Città)=0,COUNTIF(Città,\"<\"&Città)+1,\"\"),1)=IF(ISBLANK(Città),\"\",COUNTIF(Città,\"<\"&Città)+1),ROW(Città)-MIN(ROW(Città))+1),1),MATCH(MIN(IF(COUNTIF($A$9:A79,Città)+ISBLANK(Città)>0,\"\",COUNTIF(Città,\"<\"&Città)+1)),INDEX(IF(ISBLANK(Città),\"\",COUNTIF(Città,\"<\"&Città)+1),SMALL(IF(SMALL(IF(COUNTIF($A$9:A79,Città)+ISBLANK(Città)=0,COUNTIF(Città,\"<\"&Città)+1,\"\"),1)=IF(ISBLANK(Città),\"\",COUNTIF(Città,\"<\"&Città)+1),ROW(Città)-MIN(ROW(Città))+1),1),,1),0),1)","v":{"$error":"#NUM!"}},{"$f":"INDEX(Casa,SMALL(IF(SMALL(IF(COUNTIF($B$9:B79,Casa)+ISBLANK(Casa)=0,COUNTIF(Casa,\"<\"&Casa)+1,\"\"),1)=IF(ISBLANK(Casa),\"\",COUNTIF(Casa,\"<\"&Casa)+1),ROW(Casa)-MIN(ROW(Casa))+1),1),MATCH(MIN(IF(COUNTIF($B$9:B79,Casa)+ISBLANK(Casa)>0,\"\",COUNTIF(Casa,\"<\"&Casa)+1)),INDEX(IF(ISBLANK(Casa),\"\",COUNTIF(Casa,\"<\"&Casa)+1),SMALL(IF(SMALL(IF(COUNTIF($B$9:B79,Casa)+ISBLANK(Casa)=0,COUNTIF(Casa,\"<\"&Casa)+1,\"\"),1)=IF(ISBLANK(Casa),\"\",COUNTIF(Casa,\"<\"&Casa)+1),ROW(Casa)-MIN(ROW(Casa))+1),1),,1),0),1)","v":{"$error":"#NUM!"}},"Udine","AUDI",152,4818400]
[{"$f":"INDEX(Città,SMALL(IF(SMALL(IF(COUNTIF($A$9:A80,Città)+ISBLANK(Città)=0,COUNTIF(Città,\"<\"&Città)+1,\"\"),1)=IF(ISBLANK(Città),\"\",COUNTIF(Città,\"<\"&Città)+1),ROW(Città)-MIN(ROW(Città))+1),1),MATCH(MIN(IF(COUNTIF($A$9:A80,Città)+ISBLANK(Città)>0,\"\",COUNTIF(Città,\"<\"&Città)+1)),INDEX(IF(ISBLANK(Città),\"\",COUNTIF(Città,\"<\"&Città)+1),SMALL(IF(SMALL(IF(COUNTIF($A$9:A80,Città)+ISBLANK(Città)=0,COUNTIF(Città,\"<\"&Città)+1,\"\"),1)=IF(ISBLANK(Città),\"\",COUNTIF(Città,\"<\"&Città)+1),ROW(Città)-MIN(ROW(Città))+1),1),,1),0),1)","v":{"$error":"#NUM!"}},{"$f":"INDEX(Casa,SMALL(IF(SMALL(IF(COUNTIF($B$9:B80,Casa)+ISBLANK(Casa)=0,COUNTIF(Casa,\"<\"&Casa)+1,\"\"),1)=IF(ISBLANK(Casa),\"\",COUNTIF(Casa,\"<\"&Casa)+1),ROW(Casa)-MIN(ROW(Casa))+1),1),MATCH(MIN(IF(COUNTIF($B$9:B80,Casa)+ISBLANK(Casa)>0,\"\",COUNTIF(Casa,\"<\"&Casa)+1)),INDEX(IF(ISBLANK(Casa),\"\",COUNTIF(Casa,\"<\"&Casa)+1),SMALL(IF(SMALL(IF(COUNTIF($B$9:B80,Casa)+ISBLANK(Casa)=0,COUNTIF(Casa,\"<\"&Casa)+1,\"\"),1)=IF(ISBLANK(Casa),\"\",COUNTIF(Casa,\"<\"&Casa)+1),ROW(Casa)-MIN(ROW(Casa))+1),1),,1),0),1)","v":{"$error":"#NUM!"}},"Udine","RENAULT",137,3677080]
[{"$f":"INDEX(Città,SMALL(IF(SMALL(IF(COUNTIF($A$9:A81,Città)+ISBLANK(Città)=0,COUNTIF(Città,\"<\"&Città)+1,\"\"),1)=IF(ISBLANK(Città),\"\",COUNTIF(Città,\"<\"&Città)+1),ROW(Città)-MIN(ROW(Città))+1),1),MATCH(MIN(IF(COUNTIF($A$9:A81,Città)+ISBLANK(Città)>0,\"\",COUNTIF(Città,\"<\"&Città)+1)),INDEX(IF(ISBLANK(Città),\"\",COUNTIF(Città,\"<\"&Città)+1),SMALL(IF(SMALL(IF(COUNTIF($A$9:A81,Città)+ISBLANK(Città)=0,COUNTIF(Città,\"<\"&Città)+1,\"\"),1)=IF(ISBLANK(Città),\"\",COUNTIF(Città,\"<\"&Città)+1),ROW(Città)-MIN(ROW(Città))+1),1),,1),0),1)","v":{"$error":"#NUM!"}},{"$f":"INDEX(Casa,SMALL(IF(SMALL(IF(COUNTIF($B$9:B81,Casa)+ISBLANK(Casa)=0,COUNTIF(Casa,\"<\"&Casa)+1,\"\"),1)=IF(ISBLANK(Casa),\"\",COUNTIF(Casa,\"<\"&Casa)+1),ROW(Casa)-MIN(ROW(Casa))+1),1),MATCH(MIN(IF(COUNTIF($B$9:B81,Casa)+ISBLANK(Casa)>0,\"\",COUNTIF(Casa,\"<\"&Casa)+1)),INDEX(IF(ISBLANK(Casa),\"\",COUNTIF(Casa,\"<\"&Casa)+1),SMALL(IF(SMALL(IF(COUNTIF($B$9:B81,Casa)+ISBLANK(Casa)=0,COUNTIF(Casa,\"<\"&Casa)+1,\"\"),1)=IF(ISBLANK(Casa),\"\",COUNTIF(Casa,\"<\"&Casa)+1),ROW(Casa)-MIN(ROW(Casa))+1),1),,1),0),1)","v":{"$error":"#NUM!"}},"Vicenza","GOLF",154,4543000]
[{"$f":"INDEX(Città,SMALL(IF(SMALL(IF(COUNTIF($A$9:A82,Città)+ISBLANK(Città)=0,COUNTIF(Città,\"<\"&Città)+1,\"\"),1)=IF(ISBLANK(Città),\"\",COUNTIF(Città,\"<\"&Città)+1),ROW(Città)-MIN(ROW(Città))+1),1),MATCH(MIN(IF(COUNTIF($A$9:A82,Città)+ISBLANK(Città)>0,\"\",COUNTIF(Città,\"<\"&Città)+1)),INDEX(IF(ISBLANK(Città),\"\",COUNTIF(Città,\"<\"&Città)+1),SMALL(IF(SMALL(IF(COUNTIF($A$9:A82,Città)+ISBLANK(Città)=0,COUNTIF(Città,\"<\"&Città)+1,\"\"),1)=IF(ISBLANK(Città),\"\",COUNTIF(Città,\"<\"&Città)+1),ROW(Città)-MIN(ROW(Città))+1),1),,1),0),1)","v":{"$error":"#NUM!"}},{"$f":"INDEX(Casa,SMALL(IF(SMALL(IF(COUNTIF($B$9:B82,Casa)+ISBLANK(Casa)=0,COUNTIF(Casa,\"<\"&Casa)+1,\"\"),1)=IF(ISBLANK(Casa),\"\",COUNTIF(Casa,\"<\"&Casa)+1),ROW(Casa)-MIN(ROW(Casa))+1),1),MATCH(MIN(IF(COUNTIF($B$9:B82,Casa)+ISBLANK(Casa)>0,\"\",COUNTIF(Casa,\"<\"&Casa)+1)),INDEX(IF(ISBLANK(Casa),\"\",COUNTIF(Casa,\"<\"&Casa)+1),SMALL(IF(SMALL(IF(COUNTIF($B$9:B82,Casa)+ISBLANK(Casa)=0,COUNTIF(Casa,\"<\"&Casa)+1,\"\"),1)=IF(ISBLANK(Casa),\"\",COUNTIF(Casa,\"<\"&Casa)+1),ROW(Casa)-MIN(ROW(Casa))+1),1),,1),0),1)","v":{"$error":"#NUM!"}},"Vicenza","NISSAN",141,4018500]
[{"$f":"INDEX(Città,SMALL(IF(SMALL(IF(COUNTIF($A$9:A83,Città)+ISBLANK(Città)=0,COUNTIF(Città,\"<\"&Città)+1,\"\"),1)=IF(ISBLANK(Città),\"\",COUNTIF(Città,\"<\"&Città)+1),ROW(Città)-MIN(ROW(Città))+1),1),MATCH(MIN(IF(COUNTIF($A$9:A83,Città)+ISBLANK(Città)>0,\"\",COUNTIF(Città,\"<\"&Città)+1)),INDEX(IF(ISBLANK(Città),\"\",COUNTIF(Città,\"<\"&Città)+1),SMALL(IF(SMALL(IF(COUNTIF($A$9:A83,Città)+ISBLANK(Città)=0,COUNTIF(Città,\"<\"&Città)+1,\"\"),1)=IF(ISBLANK(Città),\"\",COUNTIF(Città,\"<\"&Città)+1),ROW(Città)-MIN(ROW(Città))+1),1),,1),0),1)","v":{"$error":"#NUM!"}},{"$f":"INDEX(Casa,SMALL(IF(SMALL(IF(COUNTIF($B$9:B83,Casa)+ISBLANK(Casa)=0,COUNTIF(Casa,\"<\"&Casa)+1,\"\"),1)=IF(ISBLANK(Casa),\"\",COUNTIF(Casa,\"<\"&Casa)+1),ROW(Casa)-MIN(ROW(Casa))+1),1),MATCH(MIN(IF(COUNTIF($B$9:B83,Casa)+ISBLANK(Casa)>0,\"\",COUNTIF(Casa,\"<\"&Casa)+1)),INDEX(IF(ISBLANK(Casa),\"\",COUNTIF(Casa,\"<\"&Casa)+1),SMALL(IF(SMALL(IF(COUNTIF($B$9:B83,Casa)+ISBLANK(Casa)=0,COUNTIF(Casa,\"<\"&Casa)+1,\"\"),1)=IF(ISBLANK(Casa),\"\",COUNTIF(Casa,\"<\"&Casa)+1),ROW(Casa)-MIN(ROW(Casa))+1),1),,1),0),1)","v":{"$error":"#NUM!"}},"Vicenza","BMW",130,4114500]
[{"$f":"INDEX(Città,SMALL(IF(SMALL(IF(COUNTIF($A$9:A84,Città)+ISBLANK(Città)=0,COUNTIF(Città,\"<\"&Città)+1,\"\"),1)=IF(ISBLANK(Città),\"\",COUNTIF(Città,\"<\"&Città)+1),ROW(Città)-MIN(ROW(Città))+1),1),MATCH(MIN(IF(COUNTIF($A$9:A84,Città)+ISBLANK(Città)>0,\"\",COUNTIF(Città,\"<\"&Città)+1)),INDEX(IF(ISBLANK(Città),\"\",COUNTIF(Città,\"<\"&Città)+1),SMALL(IF(SMALL(IF(COUNTIF($A$9:A84,Città)+ISBLANK(Città)=0,COUNTIF(Città,\"<\"&Città)+1,\"\"),1)=IF(ISBLANK(Città),\"\",COUNTIF(Città,\"<\"&Città)+1),ROW(Città)-MIN(ROW(Città))+1),1),,1),0),1)","v":{"$error":"#NUM!"}},{"$f":"INDEX(Casa,SMALL(IF(SMALL(IF(COUNTIF($B$9:B84,Casa)+ISBLANK(Casa)=0,COUNTIF(Casa,\"<\"&Casa)+1,\"\"),1)=IF(ISBLANK(Casa),\"\",COUNTIF(Casa,\"<\"&Casa)+1),ROW(Casa)-MIN(ROW(Casa))+1),1),MATCH(MIN(IF(COUNTIF($B$9:B84,Casa)+ISBLANK(Casa)>0,\"\",COUNTIF(Casa,\"<\"&Casa)+1)),INDEX(IF(ISBLANK(Casa),\"\",COUNTIF(Casa,\"<\"&Casa)+1),SMALL(IF(SMALL(IF(COUNTIF($B$9:B84,Casa)+ISBLANK(Casa)=0,COUNTIF(Casa,\"<\"&Casa)+1,\"\"),1)=IF(ISBLANK(Casa),\"\",COUNTIF(Casa,\"<\"&Casa)+1),ROW(Casa)-MIN(ROW(Casa))+1),1),,1),0),1)","v":{"$error":"#NUM!"}},"Vicenza","MERCEDES",121,4071650]
[{"$f":"INDEX(Città,SMALL(IF(SMALL(IF(COUNTIF($A$9:A85,Città)+ISBLANK(Città)=0,COUNTIF(Città,\"<\"&Città)+1,\"\"),1)=IF(ISBLANK(Città),\"\",COUNTIF(Città,\"<\"&Città)+1),ROW(Città)-MIN(ROW(Città))+1),1),MATCH(MIN(IF(COUNTIF($A$9:A85,Città)+ISBLANK(Città)>0,\"\",COUNTIF(Città,\"<\"&Città)+1)),INDEX(IF(ISBLANK(Città),\"\",COUNTIF(Città,\"<\"&Città)+1),SMALL(IF(SMALL(IF(COUNTIF($A$9:A85,Città)+ISBLANK(Città)=0,COUNTIF(Città,\"<\"&Città)+1,\"\"),1)=IF(ISBLANK(Città),\"\",COUNTIF(Città,\"<\"&Città)+1),ROW(Città)-MIN(ROW(Città))+1),1),,1),0),1)","v":{"$error":"#NUM!"}},{"$f":"INDEX(Casa,SMALL(IF(SMALL(IF(COUNTIF($B$9:B85,Casa)+ISBLANK(Casa)=0,COUNTIF(Casa,\"<\"&Casa)+1,\"\"),1)=IF(ISBLANK(Casa),\"\",COUNTIF(Casa,\"<\"&Casa)+1),ROW(Casa)-MIN(ROW(Casa))+1),1),MATCH(MIN(IF(COUNTIF($B$9:B85,Casa)+ISBLANK(Casa)>0,\"\",COUNTIF(Casa,\"<\"&Casa)+1)),INDEX(IF(ISBLANK(Casa),\"\",COUNTIF(Casa,\"<\"&Casa)+1),SMALL(IF(SMALL(IF(COUNTIF($B$9:B85,Casa)+ISBLANK(Casa)=0,COUNTIF(Casa,\"<\"&Casa)+1,\"\"),1)=IF(ISBLANK(Casa),\"\",COUNTIF(Casa,\"<\"&Casa)+1),ROW(Casa)-MIN(ROW(Casa))+1),1),,1),0),1)","v":{"$error":"#NUM!"}},"Vicenza","AUDI",118,3740600]
[{"$f":"INDEX(Città,SMALL(IF(SMALL(IF(COUNTIF($A$9:A86,Città)+ISBLANK(Città)=0,COUNTIF(Città,\"<\"&Città)+1,\"\"),1)=IF(ISBLANK(Città),\"\",COUNTIF(Città,\"<\"&Città)+1),ROW(Città)-MIN(ROW(Città))+1),1),MATCH(MIN(IF(COUNTIF($A$9:A86,Città)+ISBLANK(Città)>0,\"\",COUNTIF(Città,\"<\"&Città)+1)),INDEX(IF(ISBLANK(Città),\"\",COUNTIF(Città,\"<\"&Città)+1),SMALL(IF(SMALL(IF(COUNTIF($A$9:A86,Città)+ISBLANK(Città)=0,COUNTIF(Città,\"<\"&Città)+1,\"\"),1)=IF(ISBLANK(Città),\"\",COUNTIF(Città,\"<\"&Città)+1),ROW(Città)-MIN(ROW(Città))+1),1),,1),0),1)","v":{"$error":"#NUM!"}},{"$f":"INDEX(Casa,SMALL(IF(SMALL(IF(COUNTIF($B$9:B86,Casa)+ISBLANK(Casa)=0,COUNTIF(Casa,\"<\"&Casa)+1,\"\"),1)=IF(ISBLANK(Casa),\"\",COUNTIF(Casa,\"<\"&Casa)+1),ROW(Casa)-MIN(ROW(Casa))+1),1),MATCH(MIN(IF(COUNTIF($B$9:B86,Casa)+ISBLANK(Casa)>0,\"\",COUNTIF(Casa,\"<\"&Casa)+1)),INDEX(IF(ISBLANK(Casa),\"\",COUNTIF(Casa,\"<\"&Casa)+1),SMALL(IF(SMALL(IF(COUNTIF($B$9:B86,Casa)+ISBLANK(Casa)=0,COUNTIF(Casa,\"<\"&Casa)+1,\"\"),1)=IF(ISBLANK(Casa),\"\",COUNTIF(Casa,\"<\"&Casa)+1),ROW(Casa)-MIN(ROW(Casa))+1),1),,1),0),1)","v":{"$error":"#NUM!"}},"Vicenza","RENAULT",108,2898720]
[]
[]
[]
[]
[]
[]
[]
[]
[]
[]
[]
[]
[]
[]
[]
[]
[]
[]
[]
[]
[]
[null,null,null,null,null,null,null,null,null,null,null,null,null,1,null,null,"In questa sezione del Foglio ho inserito le voci dei marchi e le foto senza un preciso ordine"]
[null,null,null,null,null,null,null,null,null,null,null,null,null,2,null,null,"Se la formula presente nel foglio Formule!B2 non trova una corrispondenza seleziona la prima riga di questo foglio"]
[null,null,null,null,null,null,null,null,null,null,null,null,"RENAULT",3]
[null,null,null,null,null,null,null,null,null,null,null,null,null,4]
[null,null,null,null,null,null,null,null,null,null,null,null,"BMW",5]
[null,null,null,null,null,null,null,null,null,null,null,null,"GOLF",6]
[null,null,null,null,null,null,null,null,null,null,null,null,null,7]
[null,null,null,null,null,null,null,null,null,null,null,null,"MERCEDES",8]
[null,null,null,null,null,null,null,null,null,null,null,null,null,9]
[null,null,null,null,null,null,null,null,null,null,null,null,"AUDI",10]
[null,null,null,null,null,null,null,null,null,null,null,null,"NISSAN",11]
[null,null,null,null,null,null,null,null,null,null,null,null,null,12]
[null,null,null,null,null,null,null,null,null,null,null,null,null,13]
[null,null,null,null,null,null,null,null,null,null,null,null,null,14]
[null,null,null,null,null,null,null,null,null,null,null,null,null,15]
[null,null,null,null,null,null,null,null,null,null,null,null,null,16]
[null,null,null,null,null,null,null,null,null,null,null,null,null,17]
[null,null,null,null,null,null,null,null,null,null,null,null,null,18]
[null,null,null,null,null,null,null,null,null,null,null,null,null,19]
[null,null,null,null,null,null,null,null,null,null,null,null,null,20]
[null,null,null,null,null,null,null,null,null,null,null,null,null,21]
[null,null,null,null,null,null,null,null,null,null,null,null,null,22]
[null,null,null,null,null,null,null,null,null,null,null,null,null,23]
[null,null,null,null,null,null,null,null,null,null,null,null,null,24]
[null,null,null,null,null,null,null,null,null,null,null,null,null,25]

{"sheet":"Luca_73","index":5,"n_rows":86,"n_cols":6,"rows_kept":86,"cut":false,"hidden":false,"merged":[[1,2,1,3],[1,4,1,5],[6,2,6,5]]}
[]
[null,null,"SELEZIONA VALORI",null,"ESTRAPOLA VALORI"]
[null,null,"Città","Casa","N.Automobili Vendute","Totali VENDITE"]
[null,null,"cesena","golf",{"$f":"DSUM(C8:F86,E3,C3:D4)","v":84},{"$f":"DSUM(C8:F86,F3,C3:D4)","v":2478000}]
[]
[]
[null,null,"VENDITE REGISTRATE NEL 2014 CASE AUTOMOBILISTICHE"]
[null,null,"Città","Casa","N.Automobili Vendute","Totali VENDITE"]
[null,null,"Arezzo","NISSAN",165,4702500]
[null,null,"Arezzo","BMW",162,5127300]
[null,null,"Arezzo","GOLF",145,4277500]
[null,null,"Arezzo","AUDI",132,4184400]
[null,null,"Arezzo","MERCEDES",111,3735150]
[null,null,"Arezzo","RENAULT",98,2630320]
[null,null,"Bari","MERCEDES",178,5989700]
[null,null,"Bari","BMW",163,5158950]
[null,null,"Bari","NISSAN",145,4132500]
[null,null,"Bari","GOLF",132,3894000]
[null,null,"Bari","RENAULT",121,3247640]
[null,null,"Bari","AUDI",108,3423600]
[null,null,"Cesena","NISSAN",132,3762000]
[null,null,"Cesena","BMW",124,3924600]
[null,null,"Cesena","AUDI",108,3423600]
[null,null,"Cesena","MERCEDES",95,3196750]
[null,null,"Cesena","GOLF",84,2478000]
[null,null,"Cesena","RENAULT",72,1932480]
[null,null,"Ferrara","AUDI",106,3360200]
[null,null,"Ferrara","RENAULT",98,2630320]
[null,null,"Ferrara","BMW",94,2975100]
[null,null,"Ferrara","NISSAN",81,2308500]
[null,null,"Ferrara","MERCEDES",77,2591050]
[null,null,"Ferrara","GOLF",75,2212500]
[null,null,"Firenze","GOLF",123,3628500]
[null,null,"Firenze","NISSAN",114,3249000]
[null,null,"Firenze","BMW",107,3386550]
[null,null,"Firenze","MERCEDES",102,3432300]
[null,null,"Firenze","AUDI",95,3011500]
[null,null,"Firenze","RENAULT",94,2522960]
[null,null,"Monza","BMW",132,4177800]
[null,null,"Monza","AUDI",121,3835700]
[null,null,"Monza","NISSAN",116,3306000]
[null,null,"Monza","MERCEDES",114,3836100]
[null,null,"Monza","GOLF",102,3009000]
[null,null,"Monza","RENAULT",97,2603480]
[null,null,"Napoli","GOLF",195,5752500]
[null,null,"Napoli","RENAULT",192,5153280]
[null,null,"Napoli","BMW",188,5950200]
[null,null,"Napoli","AUDI",162,5135400]
[null,null,"Napoli","NISSAN",145,4132500]
[null,null,"Napoli","MERCEDES",132,4441800]
[null,null,"Padova","MERCEDES",140,4711000]
[null,null,"Padova","AUDI",132,4184400]
[null,null,"Padova","NISSAN",128,3648000]
[null,null,"Padova","GOLF",122,3599000]
[null,null,"Padova","RENAULT",114,3059760]
[null,null,"Padova","BMW",108,3418200]
[null,null,"Palermo","BMW",141,4462650]
[null,null,"Palermo","RENAULT",138,3703920]
[null,null,"Palermo","GOLF",125,3687500]
[null,null,"Palermo","MERCEDES",118,3970700]
[null,null,"Palermo","NISSAN",109,3106500]
[null,null,"Palermo","AUDI",97,3074900]
[null,null,"Roma","BMW",208,6583200]
[null,null,"Roma","MERCEDES",192,6460800]
[null,null,"Roma","NISSAN",184,5244000]
[null,null,"Roma","GOLF",167,4926500]
[null,null,"Roma","RENAULT",148,3972320]
[null,null,"Roma","AUDI",132,4184400]
[null,null,"Trieste","GOLF",109,3215500]
[null,null,"Trieste","AUDI",96,3043200]
[null,null,"Trieste","BMW",91,2880150]
[null,null,"Trieste","MERCEDES",84,2826600]
[null,null,"Trieste","NISSAN",81,2308500]
[null,null,"Trieste","RENAULT",74,1986160]
[null,null,"Udine","BMW",197,6235050]
[null,null,"Udine","GOLF",184,5428000]
[null,null,"Udine","NISSAN",164,4674000]
[null,null,"Udine","MERCEDES",154,5182100]
[null,null,"Udine","AUDI",152,4818400]
[null,null,"Udine","RENAULT",137,3677080]
[null,null,"Vicenza","GOLF",154,4543000]
[null,null,"Vicenza","NISSAN",141,4018500]
[null,null,"Vicenza","BMW",130,4114500]
[null,null,"Vicenza","MERCEDES",121,4071650]
[null,null,"Vicenza","AUDI",118,3740600]
[null,null,"Vicenza","RENAULT",108,2898720]

{"sheet":"Mister_x","index":6,"n_rows":86,"n_cols":12,"rows_kept":86,"cut":false,"hidden":false,"merged":[[1,2,1,3],[1,4,1,5],[6,2,6,5],[7,10,7,11]]}
[]
[null,null,"SELEZIONA VALORI",null,"ESTRAPOLA VALORI"]
[null,null,"Città","Casa","N.Automobili Vendute","Totali VENDITE"]
[null,null,"Napoli","NISSAN",{"$f":"SUMIFS(E9:E86,$C$9:$C$86,$C$4,$D$9:$D$86,$D$4)","v":145},{"$f":"SUMIFS(F9:F86,$C$9:$C$86,$C$4,$D$9:$D$86,$D$4)","v":4132500}]
[]
[]
[null,null,"VENDITE REGISTRATE NEL 2014 CASE AUTOMOBILISTICHE"]
[null,null,"Città","Casa","N.Automobili Vendute","Totali VENDITE",null,null,null,null,"Tabella collegata alla convalida dati"]
[null,null,"Arezzo","NISSAN",165,4702500,null,null,null,null,"Arezzo","GOLF"]
[null,null,"Arezzo","BMW",162,5127300,null,null,null,null,"Bari","AUDI"]
[null,null,"Arezzo","GOLF",145,4277500,null,null,null,null,"Cesena","BMW"]
[null,null,"Arezzo","AUDI",132,4184400,null,null,null,null,"Ferrara","MERCEDES"]
[null,null,"Arezzo","MERCEDES",111,3735150,null,null,null,null,"Firenze","NISSAN"]
[null,null,"Arezzo","RENAULT",98,2630320,null,null,null,null,"Monza","RENAULT"]
[null,null,"Bari","MERCEDES",178,5989700,null,null,null,null,"Napoli",""]
[null,null,"Bari","BMW",163,5158950,null,null,null,null,"Padova",""]
[null,null,"Bari","NISSAN",145,4132500,null,null,null,null,"Palermo",""]
[null,null,"Bari","GOLF",132,3894000,null,null,null,null,"Roma",""]
[null,null,"Bari","RENAULT",121,3247640,null,null,null,null,"Trieste",""]
[null,null,"Bari","AUDI",108,3423600,null,null,null,null,"Udine",""]
[null,null,"Cesena","NISSAN",132,3762000,null,null,null,null,"Vicenza",""]
[null,null,"Cesena","BMW",124,3924600]
[null,null,"Cesena","AUDI",108,3423600]
[null,null,"Cesena","MERCEDES",95,3196750,null,null,null,null,"",""]
[null,null,"Cesena","GOLF",84,2478000,null,null,null,null,"",""]
[null,null,"Cesena","RENAULT",72,1932480,null,null,null,null,"",""]
[null,null,"Ferrara","AUDI",106,3360200,null,null,null,null,"",""]
[null,null,"Ferrara","RENAULT",98,2630320]
[null,null,"Ferrara","BMW",94,2975100]
[null,null,"Ferrara","NISSAN",81,2308500]
[null,null,"Ferrara","MERCEDES",77,2591050]
[null,null,"Ferrara","GOLF",75,2212500]
[null,null,"Firenze","GOLF",123,3628500]
[null,null,"Firenze","NISSAN",114,3249000]
[null,null,"Firenze","BMW",107,3386550]
[null,null,"Firenze","MERCEDES",102,3432300]
[null,null,"Firenze","AUDI",95,3011500]
[null,null,"Firenze","RENAULT",94,2522960]
[null,null,"Monza","BMW",132,4177800]
[null,null,"Monza","AUDI",121,3835700]
[null,null,"Monza","NISSAN",116,3306000]
[null,null,"Monza","MERCEDES",114,3836100]
[null,null,"Monza","GOLF",102,3009000]
[null,null,"Monza","RENAULT",97,2603480]
[null,null,"Napoli","GOLF",195,5752500]
[null,null,"Napoli","RENAULT",192,5153280]
[null,null,"Napoli","BMW",188,5950200]
[null,null,"Napoli","AUDI",162,5135400]
[null,null,"Napoli","NISSAN",145,4132500]
[null,null,"Napoli","MERCEDES",132,4441800]
[null,null,"Padova","MERCEDES",140,4711000]
[null,null,"Padova","AUDI",132,4184400]
[null,null,"Padova","NISSAN",128,3648000]
[null,null,"Padova","GOLF",122,3599000]
[null,null,"Padova","RENAULT",114,3059760]
[null,null,"Padova","BMW",108,3418200]
[null,null,"Palermo","BMW",141,4462650]
[null,null,"Palermo","RENAULT",138,3703920]
[null,null,"Palermo","GOLF",125,3687500]
[null,null,"Palermo","MERCEDES",118,3970700]
[null,null,"Palermo","NISSAN",109,3106500]
[null,null,"Palermo","AUDI",97,3074900]
[null,null,"Roma","BMW",208,6583200]
[null,null,"Roma","MERCEDES",192,6460800]
[null,null,"Roma","NISSAN",184,5244000]
[null,null,"Roma","GOLF",167,4926500]
[null,null,"Roma","RENAULT",148,3972320]
[null,null,"Roma","AUDI",132,4184400]
[null,null,"Trieste","GOLF",109,3215500]
[null,null,"Trieste","AUDI",96,3043200]
[null,null,"Trieste","BMW",91,2880150]
[null,null,"Trieste","MERCEDES",84,2826600]
[null,null,"Trieste","NISSAN",81,2308500]
[null,null,"Trieste","RENAULT",74,1986160]
[null,null,"Udine","BMW",197,6235050]
[null,null,"Udine","GOLF",184,5428000]
[null,null,"Udine","NISSAN",164,4674000]
[null,null,"Udine","MERCEDES",154,5182100]
[null,null,"Udine","AUDI",152,4818400]
[null,null,"Udine","RENAULT",137,3677080]
[null,null,"Vicenza","GOLF",154,4543000]
[null,null,"Vicenza","NISSAN",141,4018500]
[null,null,"Vicenza","BMW",130,4114500]
[null,null,"Vicenza","MERCEDES",121,4071650]
[null,null,"Vicenza","AUDI",118,3740600]
[null,null,"Vicenza","RENAULT",108,2898720]

{"sheet":"ninai","index":7,"n_rows":86,"n_cols":12,"rows_kept":86,"cut":false,"hidden":false,"merged":[[1,2,1,3],[1,4,1,5],[6,2,6,5],[7,10,7,11]]}
[]
[null,null,"SELEZIONA VALORI",null,"ESTRAPOLA VALORI"]
[null,null,"Città","Casa","N.Automobili Vendute","Totali VENDITE"]
[null,null,"Napoli","NISSAN",{"$f":"SUMPRODUCT(($C$9:$C$86=$C$4)*($D$9:$D$86=$D$4)*E9:E86)","v":145},{"$f":"SUMPRODUCT(($C$9:$C$86=$C$4)*($D$9:$D$86=$D$4)*F9:F86)","v":4132500}]
[]
[]
[null,null,"VENDITE REGISTRATE NEL 2014 CASE AUTOMOBILISTICHE"]
[null,null,"Città","Casa","N.Automobili Vendute","Totali VENDITE",null,null,null,null,"Formule per elenco valori univoci"]
[null,null,"Arezzo","NISSAN",165,4702500,null,null,null,null,{"$f":"IFERROR(INDEX(C$9:C$86,MATCH(0,INDEX(COUNTIF(K$8:K8,C$9:C$86&\"\"),),0)),\"\")","v":"Arezzo"},{"$f":"IFERROR(INDEX(D$9:D$86,MATCH(0,INDEX(COUNTIF(L$8:L8,D$9:D$86&\"\")+(C$9:C$86<>$C$4),),0)),\"\")","v":"GOLF"}]
[null,null,"Arezzo","BMW",162,5127300,null,null,null,null,{"$f":"IFERROR(INDEX(C$9:C$86,MATCH(0,INDEX(COUNTIF(K$8:K9,C$9:C$86&\"\"),),0)),\"\")","v":"Bari"},{"$f":"IFERROR(INDEX(D$9:D$86,MATCH(0,INDEX(COUNTIF(L$8:L9,D$9:D$86&\"\")+(C$9:C$86<>$C$4),),0)),\"\")","v":"RENAULT"}]
[null,null,"Arezzo","GOLF",145,4277500,null,null,null,null,{"$f":"IFERROR(INDEX(C$9:C$86,MATCH(0,INDEX(COUNTIF(K$8:K10,C$9:C$86&\"\"),),0)),\"\")","v":"Cesena"},{"$f":"IFERROR(INDEX(D$9:D$86,MATCH(0,INDEX(COUNTIF(L$8:L10,D$9:D$86&\"\")+(C$9:C$86<>$C$4),),0)),\"\")","v":"BMW"}]
[null,null,"Arezzo","AUDI",132,4184400,null,null,null,null,{"$f":"IFERROR(INDEX(C$9:C$86,MATCH(0,INDEX(COUNTIF(K$8:K11,C$9:C$86&\"\"),),0)),\"\")","v":"Ferrara"},{"$f":"IFERROR(INDEX(D$9:D$86,MATCH(0,INDEX(COUNTIF(L$8:L11,D$9:D$86&\"\")+(C$9:C$86<>$C$4),),0)),\"\")","v":"AUDI"}]
[null,null,"Arezzo","MERCEDES",111,3735150,null,null,null,null,{"$f":"IFERROR(INDEX(C$9:C$86,MATCH(0,INDEX(COUNTIF(K$8:K12,C$9:C$86&\"\"),),0)),\"\")","v":"Firenze"},{"$f":"IFERROR(INDEX(D$9:D$86,MATCH(0,INDEX(COUNTIF(L$8:L12,D$9:D$86&\"\")+(C$9:C$86<>$C$4),),0)),\"\")","v":"NISSAN"}]
[null,null,"Arezzo","RENAULT",98,2630320,null,null,null,null,{"$f":"IFERROR(INDEX(C$9:C$86,MATCH(0,INDEX(COUNTIF(K$8:K13,C$9:C$86&\"\"),),0)),\"\")","v":"Monza"},{"$f":"IFERROR(INDEX(D$9:D$86,MATCH(0,INDEX(COUNTIF(L$8:L13,D$9:D$86&\"\")+(C$9:C$86<>$C$4),),0)),\"\")","v":"MERCEDES"}]
[null,null,"Bari","MERCEDES",178,5989700,null,null,null,null,{"$f":"IFERROR(INDEX(C$9:C$86,MATCH(0,INDEX(COUNTIF(K$8:K14,C$9:C$86&\"\"),),0)),\"\")","v":"Napoli"},{"$f":"IFERROR(INDEX(D$9:D$86,MATCH(0,INDEX(COUNTIF(L$8:L14,D$9:D$86&\"\")+(C$9:C$86<>$C$4),),0)),\"\")","v":""}]
[null,null,"Bari","BMW",163,5158950,null,null,null,null,{"$f":"IFERROR(INDEX(C$9:C$86,MATCH(0,INDEX(COUNTIF(K$8:K15,C$9:C$86&\"\"),),0)),\"\")","v":"Padova"},{"$f":"IFERROR(INDEX(D$9:D$86,MATCH(0,INDEX(COUNTIF(L$8:L15,D$9:D$86&\"\")+(C$9:C$86<>$C$4),),0)),\"\")","v":""}]
[null,null,"Bari","NISSAN",145,4132500,null,null,null,null,{"$f":"IFERROR(INDEX(C$9:C$86,MATCH(0,INDEX(COUNTIF(K$8:K16,C$9:C$86&\"\"),),0)),\"\")","v":"Palermo"},{"$f":"IFERROR(INDEX(D$9:D$86,MATCH(0,INDEX(COUNTIF(L$8:L16,D$9:D$86&\"\")+(C$9:C$86<>$C$4),),0)),\"\")","v":""}]
[null,null,"Bari","GOLF",132,3894000,null,null,null,null,{"$f":"IFERROR(INDEX(C$9:C$86,MATCH(0,INDEX(COUNTIF(K$8:K17,C$9:C$86&\"\"),),0)),\"\")","v":"Roma"},{"$f":"IFERROR(INDEX(D$9:D$86,MATCH(0,INDEX(COUNTIF(L$8:L17,D$9:D$86&\"\")+(C$9:C$86<>$C$4),),0)),\"\")","v":""}]
[null,null,"Bari","RENAULT",121,3247640,null,null,null,null,{"$f":"IFERROR(INDEX(C$9:C$86,MATCH(0,INDEX(COUNTIF(K$8:K18,C$9:C$86&\"\"),),0)),\"\")","v":"Trieste"},{"$f":"IFERROR(INDEX(D$9:D$86,MATCH(0,INDEX(COUNTIF(L$8:L18,D$9:D$86&\"\")+(C$9:C$86<>$C$4),),0)),\"\")","v":""}]
[null,null,"Bari","AUDI",108,3423600,null,null,null,null,{"$f":"IFERROR(INDEX(C$9:C$86,MATCH(0,INDEX(COUNTIF(K$8:K19,C$9:C$86&\"\"),),0)),\"\")","v":"Udine"},{"$f":"IFERROR(INDEX(D$9:D$86,MATCH(0,INDEX(COUNTIF(L$8:L19,D$9:D$86&\"\")+(C$9:C$86<>$C$4),),0)),\"\")","v":""}]
[null,null,"Cesena","NISSAN",132,3762000,null,null,null,null,{"$f":"IFERROR(INDEX(C$9:C$86,MATCH(0,INDEX(COUNTIF(K$8:K20,C$9:C$86&\"\"),),0)),\"\")","v":"Vicenza"},{"$f":"IFERROR(INDEX(D$9:D$86,MATCH(0,INDEX(COUNTIF(L$8:L20,D$9:D$86&\"\")+(C$9:C$86<>$C$4),),0)),\"\")","v":""}]
[null,null,"Cesena","BMW",124,3924600,null,null,null,null,{"$f":"IFERROR(INDEX(C$9:C$86,MATCH(0,INDEX(COUNTIF(K$8:K21,C$9:C$86&\"\"),),0)),\"\")","v":""},{"$f":"IFERROR(INDEX(D$9:D$86,MATCH(0,INDEX(COUNTIF(L$8:L21,D$9:D$86&\"\")+(C$9:C$86<>$C$4),),0)),\"\")","v":""}]
[null,null,"Cesena","AUDI",108,3423600,null,null,null,null,{"$f":"IFERROR(INDEX(C$9:C$86,MATCH(0,INDEX(COUNTIF(K$8:K22,C$9:C$86&\"\"),),0)),\"\")","v":""},{"$f":"IFERROR(INDEX(D$9:D$86,MATCH(0,INDEX(COUNTIF(L$8:L22,D$9:D$86&\"\")+(C$9:C$86<>$C$4),),0)),\"\")","v":""}]
[null,null,"Cesena","MERCEDES",95,3196750,null,null,null,null,{"$f":"IFERROR(INDEX(C$9:C$86,MATCH(0,INDEX(COUNTIF(K$8:K23,C$9:C$86&\"\"),),0)),\"\")","v":""},{"$f":"IFERROR(INDEX(D$9:D$86,MATCH(0,INDEX(COUNTIF(L$8:L23,D$9:D$86&\"\")+(C$9:C$86<>$C$4),),0)),\"\")","v":""}]
[null,null,"Cesena","GOLF",84,2478000,null,null,null,null,{"$f":"IFERROR(INDEX(C$9:C$86,MATCH(0,INDEX(COUNTIF(K$8:K24,C$9:C$86&\"\"),),0)),\"\")","v":""},{"$f":"IFERROR(INDEX(D$9:D$86,MATCH(0,INDEX(COUNTIF(L$8:L24,D$9:D$86&\"\")+(C$9:C$86<>$C$4),),0)),\"\")","v":""}]
[null,null,"Cesena","RENAULT",72,1932480]
[null,null,"Ferrara","AUDI",106,3360200]
[null,null,"Ferrara","RENAULT",98,2630320]
[null,null,"Ferrara","BMW",94,2975100]
[null,null,"Ferrara","NISSAN",81,2308500]
[null,null,"Ferrara","MERCEDES",77,2591050]
[null,null,"Ferrara","GOLF",75,2212500]
[null,null,"Firenze","GOLF",123,3628500]
[null,null,"Firenze","NISSAN",114,3249000]
[null,null,"Firenze","BMW",107,3386550]
[null,null,"Firenze","MERCEDES",102,3432300]
[null,null,"Firenze","AUDI",95,3011500]
[null,null,"Firenze","RENAULT",94,2522960]
[null,null,"Monza","BMW",132,4177800]
[null,null,"Monza","AUDI",121,3835700]
[null,null,"Monza","NISSAN",116,3306000]
[null,null,"Monza","MERCEDES",114,3836100]
[null,null,"Monza","GOLF",102,3009000]
[null,null,"Monza","RENAULT",97,2603480]
[null,null,"Napoli","GOLF",195,5752500]
[null,null,"Napoli","RENAULT",192,5153280]
[null,null,"Napoli","BMW",188,5950200]
[null,null,"Napoli","AUDI",162,5135400]
[null,null,"Napoli","NISSAN",145,4132500]
[null,null,"Napoli","MERCEDES",132,4441800]
[null,null,"Padova","MERCEDES",140,4711000]
[null,null,"Padova","AUDI",132,4184400]
[null,null,"Padova","NISSAN",128,3648000]
[null,null,"Padova","GOLF",122,3599000]
[null,null,"Padova","RENAULT",114,3059760]
[null,null,"Padova","BMW",108,3418200]
[null,null,"Palermo","BMW",141,4462650]
[null,null,"Palermo","RENAULT",138,3703920]
[null,null,"Palermo","GOLF",125,3687500]
[null,null,"Palermo","MERCEDES",118,3970700]
[null,null,"Palermo","NISSAN",109,3106500]
[null,null,"Palermo","AUDI",97,3074900]
[null,null,"Roma","BMW",208,6583200]
[null,null,"Roma","MERCEDES",192,6460800]
[null,null,"Roma","NISSAN",184,5244000]
[null,null,"Roma","GOLF",167,4926500]
[null,null,"Roma","RENAULT",148,3972320]
[null,null,"Roma","AUDI",132,4184400]
[null,null,"Trieste","GOLF",109,3215500]
[null,null,"Trieste","AUDI",96,3043200]
[null,null,"Trieste","BMW",91,2880150]
[null,null,"Trieste","MERCEDES",84,2826600]
[null,null,"Trieste","NISSAN",81,2308500]
[null,null,"Trieste","RENAULT",74,1986160]
[null,null,"Udine","BMW",197,6235050]
[null,null,"Udine","GOLF",184,5428000]
[null,null,"Udine","NISSAN",164,4674000]
[null,null,"Udine","MERCEDES",154,5182100]
[null,null,"Udine","AUDI",152,4818400]
[null,null,"Udine","RENAULT",137,3677080]
[null,null,"Vicenza","GOLF",154,4543000]
[null,null,"Vicenza","NISSAN",141,4018500]
[null,null,"Vicenza","BMW",130,4114500]
[null,null,"Vicenza","MERCEDES",121,4071650]
[null,null,"Vicenza","AUDI",118,3740600]
[null,null,"Vicenza","RENAULT",108,2898720]

{"sheet":"Textomb","index":8,"n_rows":86,"n_cols":6,"rows_kept":86,"cut":false,"hidden":false,"merged":[[1,4,1,5],[1,2,1,3],[6,2,6,5]]}
[]
[null,null,"SELEZIONA VALORI",null,"ESTRAPOLA VALORI"]
[null,null,"Città","Casa","N.Automobili Vendute","Totali VENDITE"]
[null,null,"Cesena","GOLF",{"$f":"OFFSET(C8,MATCH(C4&D4,C9:C86&D9:D86,0),2)","v":84},{"$f":"OFFSET(D8,MATCH(D4&E4,D9:D86&E9:E86,0),2)","v":2478000}]
[]
[]
[null,null,"VENDITE REGISTRATE NEL 2014 CASE AUTOMOBILISTICHE"]
[null,null,"Città","Casa","N.Automobili Vendute","Totali VENDITE"]
[null,null,"Arezzo","NISSAN",165,4702500]
[null,null,"Arezzo","BMW",162,5127300]
[null,null,"Arezzo","GOLF",145,4277500]
[null,null,"Arezzo","AUDI",132,4184400]
[null,null,"Arezzo","MERCEDES",111,3735150]
[null,null,"Arezzo","RENAULT",98,2630320]
[null,null,"Bari","MERCEDES",178,5989700]
[null,null,"Bari","BMW",163,5158950]
[null,null,"Bari","NISSAN",145,4132500]
[null,null,"Bari","GOLF",132,3894000]
[null,null,"Bari","RENAULT",121,3247640]
[null,null,"Bari","AUDI",108,3423600]
[null,null,"Cesena","NISSAN",132,3762000]
[null,null,"Cesena","BMW",124,3924600]
[null,null,"Cesena","AUDI",108,3423600]
[null,null,"Cesena","MERCEDES",95,3196750]
[null,null,"Cesena","GOLF",84,2478000]
[null,null,"Cesena","RENAULT",72,1932480]
[null,null,"Ferrara","AUDI",106,3360200]
[null,null,"Ferrara","RENAULT",98,2630320]
[null,null,"Ferrara","BMW",94,2975100]
[null,null,"Ferrara","NISSAN",81,2308500]
[null,null,"Ferrara","MERCEDES",77,2591050]
[null,null,"Ferrara","GOLF",75,2212500]
[null,null,"Firenze","GOLF",123,3628500]
[null,null,"Firenze","NISSAN",114,3249000]
[null,null,"Firenze","BMW",107,3386550]
[null,null,"Firenze","MERCEDES",102,3432300]
[null,null,"Firenze","AUDI",95,3011500]
[null,null,"Firenze","RENAULT",94,2522960]
[null,null,"Monza","BMW",132,4177800]
[null,null,"Monza","AUDI",121,3835700]
[null,null,"Monza","NISSAN",116,3306000]
[null,null,"Monza","MERCEDES",114,3836100]
[null,null,"Monza","GOLF",102,3009000]
[null,null,"Monza","RENAULT",97,2603480]
[null,null,"Napoli","GOLF",195,5752500]
[null,null,"Napoli","RENAULT",192,5153280]
[null,null,"Napoli","BMW",188,5950200]
[null,null,"Napoli","AUDI",162,5135400]
[null,null,"Napoli","NISSAN",145,4132500]
[null,null,"Napoli","MERCEDES",132,4441800]
[null,null,"Padova","MERCEDES",140,4711000]
[null,null,"Padova","AUDI",132,4184400]
[null,null,"Padova","NISSAN",128,3648000]
[null,null,"Padova","GOLF",122,3599000]
[null,null,"Padova","RENAULT",114,3059760]
[null,null,"Padova","BMW",108,3418200]
[null,null,"Palermo","BMW",141,4462650]
[null,null,"Palermo","RENAULT",138,3703920]
[null,null,"Palermo","GOLF",125,3687500]
[null,null,"Palermo","MERCEDES",118,3970700]
[null,null,"Palermo","NISSAN",109,3106500]
[null,null,"Palermo","AUDI",97,3074900]
[null,null,"Roma","BMW",208,6583200]
[null,null,"Roma","MERCEDES",192,6460800]
[null,null,"Roma","NISSAN",184,5244000]
[null,null,"Roma","GOLF",167,4926500]
[null,null,"Roma","RENAULT",148,3972320]
[null,null,"Roma","AUDI",132,4184400]
[null,null,"Trieste","GOLF",109,3215500]
[null,null,"Trieste","AUDI",96,3043200]
[null,null,"Trieste","BMW",91,2880150]
[null,null,"Trieste","MERCEDES",84,2826600]
[null,null,"Trieste","NISSAN",81,2308500]
[null,null,"Trieste","RENAULT",74,1986160]
[null,null,"Udine","BMW",197,6235050]
[null,null,"Udine","GOLF",184,5428000]
[null,null,"Udine","NISSAN",164,4674000]
[null,null,"Udine","MERCEDES",154,5182100]
[null,null,"Udine","AUDI",152,4818400]
[null,null,"Udine","RENAULT",137,3677080]
[null,null,"Vicenza","GOLF",154,4543000]
[null,null,"Vicenza","NISSAN",141,4018500]
[null,null,"Vicenza","BMW",130,4114500]
[null,null,"Vicenza","MERCEDES",121,4071650]
[null,null,"Vicenza","AUDI",118,3740600]
[null,null,"Vicenza","RENAULT",108,2898720]

{"sheet":"Zohra","index":9,"n_rows":86,"n_cols":14,"rows_kept":86,"cut":false,"hidden":false,"merged":[[1,2,1,3],[1,5,1,6],[6,2,6,6],[7,12,7,13]]}
[]
[null,null,"SELEZIONA VALORI",null,null,"ESTRAPOLA VALORI"]
[null,null,"Città","Casa","colonna nascosta","N.Automobili Vendute","Totali VENDITE"]
[null,null,"Ferrara","BMW",{"$f":"CONCATENATE(C4,D4)","v":"FerraraBMW"},{"$f":"VLOOKUP(E4,$E$9:$G$86,2,FALSE)","v":94},{"$f":"VLOOKUP(E4,$E$9:$G$86,3,FALSE)","v":2975100}]
[]
[]
[null,null,"VENDITE REGISTRATE NEL 2014 CASE AUTOMOBILISTICHE"]
[null,null,"Città","Casa","colonna nascosta","N.Automobili Vendute","Totali VENDITE",null,null,null,null,null,"Tabella collegata alla convalida dati"]
[null,null,"Arezzo","AUDI","ArezzoAUDI",132,4184400,null,null,null,null,null,"Arezzo","NISSAN"]
[null,null,"Arezzo","BMW","ArezzoBMW",162,5127300,null,null,null,null,null,"Bari","BMW"]
[null,null,"Arezzo","GOLF","ArezzoGOLF",145,4277500,null,null,null,null,null,"Cesena","GOLF"]
[null,null,"Arezzo","MERCEDES","ArezzoMERCEDES",111,3735150,null,"Città","Cesena",null,null,"Ferrara","AUDI"]
[null,null,"Arezzo","NISSAN","ArezzoNISSAN",165,4702500,null,"Casa","MERCEDES",null,null,"Firenze","MERCEDES"]
[null,null,"Arezzo","RENAULT","ArezzoRENAULT",98,2630320,null,null,null,null,null,"Monza","RENAULT"]
[null,null,"Bari","AUDI","BariAUDI",108,3423600,null,"Somma di N.Automobili Vendute","Somma di Totali VENDITE",null,null,"Napoli"]
[null,null,"Bari","BMW","BariBMW",163,5158950,null,95,3196750,null,null,"Padova"]
[null,null,"Bari","GOLF","BariGOLF",132,3894000,null,null,null,null,null,"Palermo"]
[null,null,"Bari","MERCEDES","BariMERCEDES",178,5989700,null,null,null,null,null,"Roma"]
[null,null,"Bari","NISSAN","BariNISSAN",145,4132500,null,null,null,null,null,"Trieste"]
[null,null,"Bari","RENAULT","BariRENAULT",121,3247640,null,null,null,null,null,"Udine"]
[null,null,"Cesena","AUDI","CesenaAUDI",108,3423600,null,null,null,null,null,"Vicenza"]
[null,null,"Cesena","BMW","CesenaBMW",124,3924600]
[null,null,"Cesena","GOLF","CesenaGOLF",84,2478000]
[null,null,"Cesena","MERCEDES","CesenaMERCEDES",95,3196750]
[null,null,"Cesena","NISSAN","CesenaNISSAN",132,3762000]
[null,null,"Cesena","RENAULT","CesenaRENAULT",72,1932480]
[null,null,"Ferrara","AUDI","FerraraAUDI",106,3360200]
[null,null,"Ferrara","BMW","FerraraBMW",94,2975100]
[null,null,"Ferrara","GOLF","FerraraGOLF",75,2212500]
[null,null,"Ferrara","MERCEDES","FerraraMERCEDES",77,2591050]
[null,null,"Ferrara","NISSAN","FerraraNISSAN",81,2308500]
[null,null,"Ferrara","RENAULT","FerraraRENAULT",98,2630320]
[null,null,"Firenze","AUDI","FirenzeAUDI",95,3011500]
[null,null,"Firenze","BMW","FirenzeBMW",107,3386550]
[null,null,"Firenze","GOLF","FirenzeGOLF",123,3628500]
[null,null,"Firenze","MERCEDES","FirenzeMERCEDES",102,3432300]
[null,null,"Firenze","NISSAN","FirenzeNISSAN",114,3249000]
[null,null,"Firenze","RENAULT","FirenzeRENAULT",94,2522960]
[null,null,"Monza","AUDI","MonzaAUDI",121,3835700]
[null,null,"Monza","BMW","MonzaBMW",132,4177800]
[null,null,"Monza","GOLF","MonzaGOLF",102,3009000]
[null,null,"Monza","MERCEDES","MonzaMERCEDES",114,3836100]
[null,null,"Monza","NISSAN","MonzaNISSAN",116,3306000]
[null,null,"Monza","RENAULT","MonzaRENAULT",97,2603480]
[null,null,"Napoli","AUDI","NapoliAUDI",162,5135400]
[null,null,"Napoli","BMW","NapoliBMW",188,5950200]
[null,null,"Napoli","GOLF","NapoliGOLF",195,5752500]
[null,null,"Napoli","MERCEDES","NapoliMERCEDES",132,4441800]
[null,null,"Napoli","NISSAN","NapoliNISSAN",145,4132500]
[null,null,"Napoli","RENAULT","NapoliRENAULT",192,5153280]
[null,null,"Padova","AUDI","PadovaAUDI",132,4184400]
[null,null,"Padova","BMW","PadovaBMW",108,3418200]
[null,null,"Padova","GOLF","PadovaGOLF",122,3599000]
[null,null,"Padova","MERCEDES","PadovaMERCEDES",140,4711000]
[null,null,"Padova","NISSAN","PadovaNISSAN",128,3648000]
[null,null,"Padova","RENAULT","PadovaRENAULT",114,3059760]
[null,null,"Palermo","AUDI","PalermoAUDI",97,3074900]
[null,null,"Palermo","BMW","PalermoBMW",141,4462650]
[null,null,"Palermo","GOLF","PalermoGOLF",125,3687500]
[null,null,"Palermo","MERCEDES","PalermoMERCEDES",118,3970700]
[null,null,"Palermo","NISSAN","PalermoNISSAN",109,3106500]
[null,null,"Palermo","RENAULT","PalermoRENAULT",138,3703920]
[null,null,"Roma","AUDI","RomaAUDI",132,4184400]
[null,null,"Roma","BMW","RomaBMW",208,6583200]
[null,null,"Roma","GOLF","RomaGOLF",167,4926500]
[null,null,"Roma","MERCEDES","RomaMERCEDES",192,6460800]
[null,null,"Roma","NISSAN","RomaNISSAN",184,5244000]
[null,null,"Roma","RENAULT","RomaRENAULT",148,3972320]
[null,null,"Trieste","AUDI","TriesteAUDI",96,3043200]
[null,null,"Trieste","BMW","TriesteBMW",91,2880150]
[null,null,"Trieste","GOLF","TriesteGOLF",109,3215500]
[null,null,"Trieste","MERCEDES","TriesteMERCEDES",84,2826600]
[null,null,"Trieste","NISSAN","TriesteNISSAN",81,2308500]
[null,null,"Trieste","RENAULT","TriesteRENAULT",74,1986160]
[null,null,"Udine","AUDI","UdineAUDI",152,4818400]
[null,null,"Udine","BMW","UdineBMW",197,6235050]
[null,null,"Udine","GOLF","UdineGOLF",184,5428000]
[null,null,"Udine","MERCEDES","UdineMERCEDES",154,5182100]
[null,null,"Udine","NISSAN","UdineNISSAN",164,4674000]
[null,null,"Udine","RENAULT","UdineRENAULT",137,3677080]
[null,null,"Vicenza","AUDI","VicenzaAUDI",118,3740600]
[null,null,"Vicenza","BMW","VicenzaBMW",130,4114500]
[null,null,"Vicenza","GOLF","VicenzaGOLF",154,4543000]
[null,null,"Vicenza","MERCEDES","VicenzaMERCEDES",121,4071650]
[null,null,"Vicenza","NISSAN","VicenzaNISSAN",141,4018500]
[null,null,"Vicenza","RENAULT","VicenzaRENAULT",108,2898720]

{"sheet":"Foglio3","index":10,"n_rows":0,"n_cols":0,"rows_kept":0,"cut":false,"hidden":false,"merged":[]}